﻿Body Name,Body,Service Area Categorisation,Service Division Categorisation,Responsible Unit,Expenses Type,Detailed Expenses Type,Payment Date,Transaction Number,Payment Amount,Supplier Type,Supplier Name,Supplier Id
Portsmouth City Council,PCC,Adult Social Care,Mental Health Support Older People (65 - 74),ADULT SERVICES,Third Party Payments,Other establishments,05/04/18,6215583,974.64,VENDOR,ADMIRAL CARE LTD,138025
Portsmouth City Council,PCC,Adult Social Care,Mental Health Support Older People (65 - 74),ADULT SERVICES,Third Party Payments,Other establishments,05/04/18,6215583,23.58,VENDOR,ADMIRAL CARE LTD,138025
Portsmouth City Council,PCC,Adult Social Care,Social Care Activities,ADULT SERVICES,Third Party Payments,Other establishments,20/04/18,6218533,2818.4,VENDOR,ADMIRAL CARE LTD,138025
Portsmouth City Council,PCC,Adult Social Care,Social Care Activities,ADULT SERVICES,Third Party Payments,Other establishments,20/04/18,6218533,1120.7,VENDOR,ADMIRAL CARE LTD,138025
Portsmouth City Council,PCC,Adult Social Care,Social Care Activities,ADULT SERVICES,Third Party Payments,Other establishments,20/04/18,6218533,1691.7,VENDOR,ADMIRAL CARE LTD,138025
Portsmouth City Council,PCC,Adult Social Care,Physical Support Older People (85+),ADULT SERVICES,Third Party Payments,Other establishments,20/04/18,6218533,146.6,VENDOR,ADMIRAL CARE LTD,138025
Portsmouth City Council,PCC,Adult Social Care,Mental Health Support Older People (65 - 74),ADULT SERVICES,Third Party Payments,Other establishments,20/04/18,6218533,787.55,VENDOR,ADMIRAL CARE LTD,138025
Portsmouth City Council,PCC,Adult Social Care,Mental Health Support Older People (65 - 74),ADULT SERVICES,Third Party Payments,Other establishments,20/04/18,6218533,1296.9,VENDOR,ADMIRAL CARE LTD,138025
Portsmouth City Council,PCC,Adult Social Care,Physical Support Older People (85+),ADULT SERVICES,Third Party Payments,Other establishments,20/04/18,6218533,559.2,VENDOR,ADMIRAL CARE LTD,138025
Portsmouth City Council,PCC,Adult Social Care,Physical Support Older People (85+),ADULT SERVICES,Third Party Payments,Other establishments,06/04/18,6215820,793.93,VENDOR,ADMIRAL CARE LTD,138025
Portsmouth City Council,PCC,Adult Social Care,Physical Support Older People (85+),ADULT SERVICES,Third Party Payments,Other establishments,20/04/18,6218533,2131.2,VENDOR,ADMIRAL CARE LTD,138025
Portsmouth City Council,PCC,Adult Social Care,Physical Support Older People (85+),ADULT SERVICES,Third Party Payments,Other establishments,20/04/18,6218533,896.04,VENDOR,ADMIRAL CARE LTD,138025
Portsmouth City Council,PCC,Adult Social Care,Physical Support Older People (85+),ADULT SERVICES,Third Party Payments,Other establishments,20/04/18,6218533,668.1,VENDOR,ADMIRAL CARE LTD,138025
Portsmouth City Council,PCC,Adult Social Care,Mental Health Support Older People (65 - 74),ADULT SERVICES,Third Party Payments,Other establishments,20/04/18,6218533,62.88,VENDOR,ADMIRAL CARE LTD,138025
Portsmouth City Council,PCC,Adult Social Care,Physical Support Older People (85+),ADULT SERVICES,Third Party Payments,Other establishments,20/04/18,6218533,448.94,VENDOR,ADMIRAL CARE LTD,138025
Portsmouth City Council,PCC,Adult Social Care,Physical Support Older People (85+),ADULT SERVICES,Third Party Payments,Other establishments,06/04/18,6215820,-31.41,VENDOR,ADMIRAL CARE LTD,138025
Portsmouth City Council,PCC,Adult Social Care,Physical Support Older People (85+),ADULT SERVICES,Third Party Payments,Other establishments,05/04/18,6215583,420,VENDOR,ADMIRAL CARE LTD,138025
Portsmouth City Council,PCC,Adult Social Care,Physical Support Older People (85+),ADULT SERVICES,Third Party Payments,Other establishments,05/04/18,6215583,365,VENDOR,ADMIRAL CARE LTD,138025
Portsmouth City Council,PCC,Adult Social Care,Physical Support Older People (85+),ADULT SERVICES,Third Party Payments,Other establishments,05/04/18,6215583,420,VENDOR,ADMIRAL CARE LTD,138025
Portsmouth City Council,PCC,Adult Social Care,Physical Support Older People (85+),ADULT SERVICES,Third Party Payments,Other establishments,05/04/18,6215583,760,VENDOR,ADMIRAL CARE LTD,138025
Portsmouth City Council,PCC,Adult Social Care,Physical Support Older People (85+),ADULT SERVICES,Third Party Payments,Other establishments,05/04/18,6215583,800,VENDOR,ADMIRAL CARE LTD,138025
Portsmouth City Council,PCC,Adult Social Care,Physical Support Older People (85+),ADULT SERVICES,Third Party Payments,Other establishments,05/04/18,6215583,420,VENDOR,ADMIRAL CARE LTD,138025
Portsmouth City Council,PCC,Adult Social Care,Learning Disability Support  Adults (18 - 64),ADULT SERVICES,Third Party Payments,Other establishments,13/04/18,6216915,2127,VENDOR,AFFINITY TRUST LTD,135643
Portsmouth City Council,PCC,Adult Social Care,Learning Disability Support  Adults (18 - 64),ADULT SERVICES,Third Party Payments,Other establishments,06/04/18,6215821,503.96,VENDOR,AFFINITY TRUST LTD,135643
Portsmouth City Council,PCC,Adult Social Care,Learning Disability Support  Adults (18 - 64),ADULT SERVICES,Third Party Payments,Other establishments,13/04/18,6216915,3527.55,VENDOR,AFFINITY TRUST LTD,135643
Portsmouth City Council,PCC,Adult Social Care,Learning Disability Support  Adults (18 - 64),ADULT SERVICES,Third Party Payments,Other establishments,13/04/18,6216915,3527.55,VENDOR,AFFINITY TRUST LTD,135643
Portsmouth City Council,PCC,Adult Social Care,Learning Disability Support  Adults (18 - 64),ADULT SERVICES,Third Party Payments,Other establishments,13/04/18,6216915,3023.61,VENDOR,AFFINITY TRUST LTD,135643
Portsmouth City Council,PCC,Adult Social Care,Learning Disability Support  Adults (18 - 64),ADULT SERVICES,Third Party Payments,Other establishments,13/04/18,6216915,10078.71,VENDOR,AFFINITY TRUST LTD,135643
Portsmouth City Council,PCC,Adult Social Care,Learning Disability Support  Adults (18 - 64),ADULT SERVICES,Third Party Payments,Other establishments,13/04/18,6216915,3527.55,VENDOR,AFFINITY TRUST LTD,135643
Portsmouth City Council,PCC,Adult Social Care,Learning Disability Support  Adults (18 - 64),ADULT SERVICES,Third Party Payments,Other establishments,13/04/18,6216915,3527.55,VENDOR,AFFINITY TRUST LTD,135643
Portsmouth City Council,PCC,Adult Social Care,Learning Disability Support  Adults (18 - 64),ADULT SERVICES,Third Party Payments,Other establishments,13/04/18,6216915,3527.55,VENDOR,AFFINITY TRUST LTD,135643
Portsmouth City Council,PCC,Adult Social Care,Learning Disability Support  Adults (18 - 64),ADULT SERVICES,Third Party Payments,Other establishments,13/04/18,6216915,3527.55,VENDOR,AFFINITY TRUST LTD,135643
Portsmouth City Council,PCC,Adult Social Care,Learning Disability Support  Adults (18 - 64),ADULT SERVICES,Third Party Payments,Other establishments,13/04/18,6216915,3527.55,VENDOR,AFFINITY TRUST LTD,135643
Portsmouth City Council,PCC,Adult Social Care,Learning Disability Support  Adults (18 - 64),ADULT SERVICES,Third Party Payments,Other establishments,13/04/18,6216915,3527.55,VENDOR,AFFINITY TRUST LTD,135643
Portsmouth City Council,PCC,Adult Social Care,Learning Disability Support  Adults (18 - 64),ADULT SERVICES,Third Party Payments,Other establishments,13/04/18,6216915,3527.55,VENDOR,AFFINITY TRUST LTD,135643
Portsmouth City Council,PCC,Adult Social Care,Learning Disability Support  Adults (18 - 64),ADULT SERVICES,Third Party Payments,Other establishments,13/04/18,6216915,3527.55,VENDOR,AFFINITY TRUST LTD,135643
Portsmouth City Council,PCC,Adult Social Care,Learning Disability Support  Adults (18 - 64),ADULT SERVICES,Third Party Payments,Other establishments,13/04/18,6216915,3527.55,VENDOR,AFFINITY TRUST LTD,135643
Portsmouth City Council,PCC,Adult Social Care,Learning Disability Support  Adults (18 - 64),ADULT SERVICES,Third Party Payments,Other establishments,13/04/18,6216915,7807.8,VENDOR,AFFINITY TRUST LTD,135643
Portsmouth City Council,PCC,Adult Social Care,Learning Disability Support  Adults (18 - 64),ADULT SERVICES,Third Party Payments,Other establishments,13/04/18,6216915,5722.34,VENDOR,AFFINITY TRUST LTD,135643
Portsmouth City Council,PCC,Adult Social Care,Learning Disability Support  Adults (18 - 64),ADULT SERVICES,Third Party Payments,Other establishments,13/04/18,6216915,7807.8,VENDOR,AFFINITY TRUST LTD,135643
Portsmouth City Council,PCC,Adult Social Care,Learning Disability Support  Adults (18 - 64),ADULT SERVICES,Third Party Payments,Other establishments,13/04/18,6216915,7361.06,VENDOR,AFFINITY TRUST LTD,135643
Portsmouth City Council,PCC,Adult Social Care,Learning Disability Support  Adults (18 - 64),ADULT SERVICES,Third Party Payments,Other establishments,13/04/18,6216915,6200.3,VENDOR,AFFINITY TRUST LTD,135643
Portsmouth City Council,PCC,Adult Social Care,Learning Disability Support  Adults (18 - 64),ADULT SERVICES,Third Party Payments,Other establishments,06/04/18,6215821,5282.13,VENDOR,AFFINITY TRUST LTD,135643
Portsmouth City Council,PCC,Adult Social Care,Support with Memory and Cognition Older People (85+),ADULT SERVICES,Third Party Payments,Other establishments,09/04/18,6215952,1750,VENDOR,AGINCARE UK,134367
Portsmouth City Council,PCC,Adult Social Care,Physical Support Older People (85+),ADULT SERVICES,Third Party Payments,Other establishments,09/04/18,6215952,1457.16,VENDOR,AGINCARE UK,134367
Portsmouth City Council,PCC,Adult Social Care,Learning Disability Support  Adults (18 - 64),ADULT SERVICES,Third Party Payments,Other establishments,12/04/18,6216685,22670.87,VENDOR,AITCH CARE HOMES (LONDON) LIMITED,125606
Portsmouth City Council,PCC,Adult Social Care,Learning Disability Support  Adults (18 - 64),ADULT SERVICES,Third Party Payments,Other establishments,12/04/18,6216686,5313.6,VENDOR,ALBANY FARM CARE (HAMPSHIRE) LTD,140215
Portsmouth City Council,PCC,Adult Social Care,Learning Disability Support  Adults (18 - 64),ADULT SERVICES,Third Party Payments,Other establishments,12/04/18,6216686,3304.5,VENDOR,ALBANY FARM CARE (HAMPSHIRE) LTD,140215
Portsmouth City Council,PCC,Adult Social Care,Learning Disability Support  Adults (18 - 64),ADULT SERVICES,Third Party Payments,Other establishments,12/04/18,6216688,1170,VENDOR,ALLIED CARE LTD,123734
Portsmouth City Council,PCC,Adult Social Care,Learning Disability Support  Adults (18 - 64),ADULT SERVICES,Third Party Payments,Other establishments,12/04/18,6216687,3977.4,VENDOR,ALLIED CARE LTD,123734
Portsmouth City Council,PCC,Adult Social Care,Learning Disability Support  Adults (18 - 64),ADULT SERVICES,Third Party Payments,Other establishments,12/04/18,6216689,4062.6,VENDOR,ALLIED CARE LTD,123734
Portsmouth City Council,PCC,Adult Social Care,Physical Support Older People (85+),ADULT SERVICES,Third Party Payments,Other establishments,12/04/18,6216691,2108.7,VENDOR,ALTON MANOR CARE HOME,130289
Portsmouth City Council,PCC,Adult Social Care,Support with Memory and Cognition Older People (85+),ADULT SERVICES,Third Party Payments,Other establishments,12/04/18,6216691,32706.26,VENDOR,ALTON MANOR CARE HOME,130289
Portsmouth City Council,PCC,Adult Social Care,Mental Health Support Adults (18 - 64),ADULT SERVICES,Third Party Payments,Other establishments,12/04/18,6216691,3852.63,VENDOR,ALTON MANOR CARE HOME,130289
Portsmouth City Council,PCC,Adult Social Care,Physical Support Adults (18 - 64),ADULT SERVICES,Third Party Payments,Other establishments,12/04/18,6216692,2422.8,VENDOR,ANGEL CARE,117208
Portsmouth City Council,PCC,Adult Social Care,Information and Early Intervention,ADULT SERVICES,Third Party Payments,Other establishments,06/04/18,6215823,18326,VENDOR,APETITO LTD,100127
Portsmouth City Council,PCC,Adult Social Care,Information and Early Intervention,ADULT SERVICES,Third Party Payments,Other establishments,06/04/18,6215823,1599,VENDOR,APETITO LTD,100127
Portsmouth City Council,PCC,Adult Social Care,Information and Early Intervention,ADULT SERVICES,Income,Customer and client receipts,06/04/18,6215823,-1599,VENDOR,APETITO LTD,100127
Portsmouth City Council,PCC,Adult Social Care,Information and Early Intervention,ADULT SERVICES,Income,Customer and client receipts,06/04/18,6215823,-18326,VENDOR,APETITO LTD,100127
Portsmouth City Council,PCC,Adult Social Care,Social Care Activities,ADULT SERVICES,Third Party Payments,Other establishments,19/04/18,6218406,87.6,VENDOR,APEX PROPERTY VENTURES LTD,108437
Portsmouth City Council,PCC,Adult Social Care,Physical Support Older People (85+),ADULT SERVICES,Third Party Payments,Other establishments,19/04/18,6218406,744.46,VENDOR,APEX PROPERTY VENTURES LTD,108437
Portsmouth City Council,PCC,Adult Social Care,Physical Support Adults (75 - 84),ADULT SERVICES,Third Party Payments,Other establishments,06/04/18,6215824,353.7,VENDOR,APEX PROPERTY VENTURES LTD,108437
Portsmouth City Council,PCC,Adult Social Care,Physical Support Older People (85+),ADULT SERVICES,Third Party Payments,Other establishments,06/04/18,6215824,212.22,VENDOR,APEX PROPERTY VENTURES LTD,108437
Portsmouth City Council,PCC,Adult Social Care,Social Care Activities,ADULT SERVICES,Third Party Payments,Other establishments,06/04/18,6215824,9277.85,VENDOR,APEX PROPERTY VENTURES LTD,108437
Portsmouth City Council,PCC,Adult Social Care,Physical Support Older People (85+),ADULT SERVICES,Third Party Payments,Other establishments,06/04/18,6215824,440.16,VENDOR,APEX PROPERTY VENTURES LTD,108437
Portsmouth City Council,PCC,Adult Social Care,Physical Support Adults (75 - 84),ADULT SERVICES,Third Party Payments,Other establishments,06/04/18,6215824,51.09,VENDOR,APEX PROPERTY VENTURES LTD,108437
Portsmouth City Council,PCC,Adult Social Care,Physical Support Older People (85+),ADULT SERVICES,Third Party Payments,Other establishments,06/04/18,6215824,192.06,VENDOR,APEX PROPERTY VENTURES LTD,108437
Portsmouth City Council,PCC,Adult Social Care,Physical Support Older People (85+),ADULT SERVICES,Third Party Payments,Other establishments,06/04/18,6215824,1068.96,VENDOR,APEX PROPERTY VENTURES LTD,108437
Portsmouth City Council,PCC,Adult Social Care,Social Care Activities,ADULT SERVICES,Third Party Payments,Other establishments,06/04/18,6215824,2098.62,VENDOR,APEX PROPERTY VENTURES LTD,108437
Portsmouth City Council,PCC,Adult Social Care,Physical Support Older People (85+),ADULT SERVICES,Third Party Payments,Other establishments,06/04/18,6215824,47.16,VENDOR,APEX PROPERTY VENTURES LTD,108437
Portsmouth City Council,PCC,Adult Social Care,Physical Support Adults (18 - 64),ADULT SERVICES,Third Party Payments,Other establishments,06/04/18,6215824,188.64,VENDOR,APEX PROPERTY VENTURES LTD,108437
Portsmouth City Council,PCC,Adult Social Care,Physical Support Adults (18 - 64),ADULT SERVICES,Third Party Payments,Other establishments,06/04/18,6215824,86.46,VENDOR,APEX PROPERTY VENTURES LTD,108437
Portsmouth City Council,PCC,Adult Social Care,Physical Support Older People (85+),ADULT SERVICES,Third Party Payments,Other establishments,06/04/18,6215824,2118.84,VENDOR,APEX PROPERTY VENTURES LTD,108437
Portsmouth City Council,PCC,Adult Social Care,Physical Support Older People (85+),ADULT SERVICES,Third Party Payments,Other establishments,06/04/18,6215824,200.43,VENDOR,APEX PROPERTY VENTURES LTD,108437
Portsmouth City Council,PCC,Adult Social Care,Physical Support Older People (85+),ADULT SERVICES,Third Party Payments,Other establishments,06/04/18,6215824,660.24,VENDOR,APEX PROPERTY VENTURES LTD,108437
Portsmouth City Council,PCC,Adult Social Care,Physical Support Adults (75 - 84),ADULT SERVICES,Third Party Payments,Other establishments,06/04/18,6215824,345.84,VENDOR,APEX PROPERTY VENTURES LTD,108437
Portsmouth City Council,PCC,Adult Social Care,Physical Support Older People (85+),ADULT SERVICES,Third Party Payments,Other establishments,06/04/18,6215824,302.61,VENDOR,APEX PROPERTY VENTURES LTD,108437
Portsmouth City Council,PCC,Adult Social Care,Physical Support Adults (75 - 84),ADULT SERVICES,Third Party Payments,Other establishments,12/04/18,6216693,448.02,VENDOR,APEX PROPERTY VENTURES LTD,108437
Portsmouth City Council,PCC,Adult Social Care,Physical Support Older People (85+),ADULT SERVICES,Third Party Payments,Other establishments,06/04/18,6215824,1980.72,VENDOR,APEX PROPERTY VENTURES LTD,108437
Portsmouth City Council,PCC,Adult Social Care,Physical Support Adults (18 - 64),ADULT SERVICES,Third Party Payments,Other establishments,06/04/18,6215824,627.27,VENDOR,APEX PROPERTY VENTURES LTD,108437
Portsmouth City Council,PCC,Adult Social Care,Physical Support Adults (18 - 64),ADULT SERVICES,Third Party Payments,Other establishments,06/04/18,6215824,220.08,VENDOR,APEX PROPERTY VENTURES LTD,108437
Portsmouth City Council,PCC,Adult Social Care,Physical Support Adults (75 - 84),ADULT SERVICES,Third Party Payments,Other establishments,06/04/18,6215824,330.12,VENDOR,APEX PROPERTY VENTURES LTD,108437
Portsmouth City Council,PCC,Adult Social Care,Physical Support Older People (85+),ADULT SERVICES,Third Party Payments,Other establishments,12/04/18,6216693,1760.64,VENDOR,APEX PROPERTY VENTURES LTD,108437
Portsmouth City Council,PCC,Adult Social Care,Physical Support Adults (75 - 84),ADULT SERVICES,Third Party Payments,Other establishments,06/04/18,6215824,31.44,VENDOR,APEX PROPERTY VENTURES LTD,108437
Portsmouth City Council,PCC,Adult Social Care,Physical Support Adults (75 - 84),ADULT SERVICES,Third Party Payments,Other establishments,06/04/18,6215824,172.92,VENDOR,APEX PROPERTY VENTURES LTD,108437
Portsmouth City Council,PCC,Adult Social Care,Social Support - Support for Carer,ADULT SERVICES,Third Party Payments,Other establishments,06/04/18,6215824,66.5,VENDOR,APEX PROPERTY VENTURES LTD,108437
Portsmouth City Council,PCC,Adult Social Care,Physical Support Adults (75 - 84),ADULT SERVICES,Third Party Payments,Other establishments,06/04/18,6215824,542.34,VENDOR,APEX PROPERTY VENTURES LTD,108437
Portsmouth City Council,PCC,Adult Social Care,Physical Support Older People (85+),ADULT SERVICES,Third Party Payments,Other establishments,06/04/18,6215824,440.16,VENDOR,APEX PROPERTY VENTURES LTD,108437
Portsmouth City Council,PCC,Adult Social Care,Physical Support Older People (85+),ADULT SERVICES,Third Party Payments,Other establishments,06/04/18,6215824,302.61,VENDOR,APEX PROPERTY VENTURES LTD,108437
Portsmouth City Council,PCC,Adult Social Care,Physical Support Older People (85+),ADULT SERVICES,Third Party Payments,Other establishments,06/04/18,6215824,872.46,VENDOR,APEX PROPERTY VENTURES LTD,108437
Portsmouth City Council,PCC,Adult Social Care,Physical Support Older People (85+),ADULT SERVICES,Third Party Payments,Other establishments,06/04/18,6215824,220.08,VENDOR,APEX PROPERTY VENTURES LTD,108437
Portsmouth City Council,PCC,Adult Social Care,Physical Support Older People (85+),ADULT SERVICES,Third Party Payments,Other establishments,06/04/18,6215824,546.27,VENDOR,APEX PROPERTY VENTURES LTD,108437
Portsmouth City Council,PCC,Adult Social Care,Physical Support Older People (85+),ADULT SERVICES,Third Party Payments,Other establishments,06/04/18,6215824,440.16,VENDOR,APEX PROPERTY VENTURES LTD,108437
Portsmouth City Council,PCC,Adult Social Care,Physical Support Older People (65-74),ADULT SERVICES,Third Party Payments,Other establishments,06/04/18,6215824,1540.56,VENDOR,APEX PROPERTY VENTURES LTD,108437
Portsmouth City Council,PCC,Adult Social Care,Support with Memory and Cognition Older People (75 - 84),ADULT SERVICES,Third Party Payments,Other establishments,06/04/18,6215824,1760.64,VENDOR,APEX PROPERTY VENTURES LTD,108437
Portsmouth City Council,PCC,Adult Social Care,Physical Support Adults (75 - 84),ADULT SERVICES,Third Party Payments,Other establishments,06/04/18,6215824,220.08,VENDOR,APEX PROPERTY VENTURES LTD,108437
Portsmouth City Council,PCC,Adult Social Care,Physical Support Adults (75 - 84),ADULT SERVICES,Third Party Payments,Other establishments,06/04/18,6215824,648.45,VENDOR,APEX PROPERTY VENTURES LTD,108437
Portsmouth City Council,PCC,Adult Social Care,Physical Support Older People (85+),ADULT SERVICES,Third Party Payments,Other establishments,06/04/18,6215824,1980.72,VENDOR,APEX PROPERTY VENTURES LTD,108437
Portsmouth City Council,PCC,Adult Social Care,Physical Support Older People (85+),ADULT SERVICES,Third Party Payments,Other establishments,06/04/18,6215824,220.08,VENDOR,APEX PROPERTY VENTURES LTD,108437
Portsmouth City Council,PCC,Adult Social Care,Support with Memory and Cognition Older People (75 - 84),ADULT SERVICES,Third Party Payments,Other establishments,06/04/18,6215824,86.46,VENDOR,APEX PROPERTY VENTURES LTD,108437
Portsmouth City Council,PCC,Adult Social Care,Physical Support Adults (75 - 84),ADULT SERVICES,Third Party Payments,Other establishments,06/04/18,6215824,282.96,VENDOR,APEX PROPERTY VENTURES LTD,108437
Portsmouth City Council,PCC,Adult Social Care,Physical Support Adults (75 - 84),ADULT SERVICES,Third Party Payments,Other establishments,06/04/18,6215824,888.18,VENDOR,APEX PROPERTY VENTURES LTD,108437
Portsmouth City Council,PCC,Adult Social Care,Physical Support Older People (85+),ADULT SERVICES,Third Party Payments,Other establishments,06/04/18,6215824,94.32,VENDOR,APEX PROPERTY VENTURES LTD,108437
Portsmouth City Council,PCC,Adult Social Care,Physical Support Older People (85+),ADULT SERVICES,Third Party Payments,Other establishments,06/04/18,6215824,47.16,VENDOR,APEX PROPERTY VENTURES LTD,108437
Portsmouth City Council,PCC,Adult Social Care,Physical Support Adults (18 - 64),ADULT SERVICES,Third Party Payments,Other establishments,06/04/18,6215824,322.26,VENDOR,APEX PROPERTY VENTURES LTD,108437
Portsmouth City Council,PCC,Adult Social Care,Physical Support Older People (85+),ADULT SERVICES,Third Party Payments,Other establishments,06/04/18,6215824,137.85,VENDOR,APEX PROPERTY VENTURES LTD,108437
Portsmouth City Council,PCC,Adult Social Care,Support with Memory and Cognition Older People (75 - 84),ADULT SERVICES,Third Party Payments,Other establishments,06/04/18,6215824,880.32,VENDOR,APEX PROPERTY VENTURES LTD,108437
Portsmouth City Council,PCC,Adult Social Care,Physical Support Adults (18 - 64),ADULT SERVICES,Third Party Payments,Other establishments,06/04/18,6215824,605.22,VENDOR,APEX PROPERTY VENTURES LTD,108437
Portsmouth City Council,PCC,Adult Social Care,Physical Support Older People (85+),ADULT SERVICES,Third Party Payments,Other establishments,06/04/18,6215824,440.16,VENDOR,APEX PROPERTY VENTURES LTD,108437
Portsmouth City Council,PCC,Adult Social Care,Physical Support Older People (85+),ADULT SERVICES,Third Party Payments,Other establishments,06/04/18,6215824,337.98,VENDOR,APEX PROPERTY VENTURES LTD,108437
Portsmouth City Council,PCC,Adult Social Care,Physical Support Older People (85+),ADULT SERVICES,Third Party Payments,Other establishments,06/04/18,6215824,256.02,VENDOR,APEX PROPERTY VENTURES LTD,108437
Portsmouth City Council,PCC,Adult Social Care,Physical Support Adults (75 - 84),ADULT SERVICES,Third Party Payments,Other establishments,06/04/18,6215824,110.04,VENDOR,APEX PROPERTY VENTURES LTD,108437
Portsmouth City Council,PCC,Adult Social Care,Physical Support Older People (85+),ADULT SERVICES,Third Party Payments,Other establishments,06/04/18,6215824,94.32,VENDOR,APEX PROPERTY VENTURES LTD,108437
Portsmouth City Council,PCC,Adult Social Care,Physical Support Older People (85+),ADULT SERVICES,Third Party Payments,Other establishments,06/04/18,6215824,1917.84,VENDOR,APEX PROPERTY VENTURES LTD,108437
Portsmouth City Council,PCC,Adult Social Care,Physical Support Older People (85+),ADULT SERVICES,Third Party Payments,Other establishments,06/04/18,6215824,1383.36,VENDOR,APEX PROPERTY VENTURES LTD,108437
Portsmouth City Council,PCC,Adult Social Care,Physical Support Older People (85+),ADULT SERVICES,Third Party Payments,Other establishments,06/04/18,6215824,941.79,VENDOR,APEX PROPERTY VENTURES LTD,108437
Portsmouth City Council,PCC,Adult Social Care,Physical Support Older People (85+),ADULT SERVICES,Third Party Payments,Other establishments,06/04/18,6215824,94.32,VENDOR,APEX PROPERTY VENTURES LTD,108437
Portsmouth City Council,PCC,Adult Social Care,Physical Support Older People (85+),ADULT SERVICES,Third Party Payments,Other establishments,06/04/18,6215824,220.08,VENDOR,APEX PROPERTY VENTURES LTD,108437
Portsmouth City Council,PCC,Adult Social Care,Physical Support Adults (75 - 84),ADULT SERVICES,Third Party Payments,Other establishments,06/04/18,6215824,393,VENDOR,APEX PROPERTY VENTURES LTD,108437
Portsmouth City Council,PCC,Adult Social Care,Physical Support Older People (85+),ADULT SERVICES,Third Party Payments,Other establishments,06/04/18,6215824,224.01,VENDOR,APEX PROPERTY VENTURES LTD,108437
Portsmouth City Council,PCC,Adult Social Care,Physical Support Older People (85+),ADULT SERVICES,Third Party Payments,Other establishments,06/04/18,6215824,451.95,VENDOR,APEX PROPERTY VENTURES LTD,108437
Portsmouth City Council,PCC,Adult Social Care,Social Care Activities,ADULT SERVICES,Third Party Payments,Other establishments,06/04/18,6215824,2200.8,VENDOR,APEX PROPERTY VENTURES LTD,108437
Portsmouth City Council,PCC,Adult Social Care,Physical Support Older People (85+),ADULT SERVICES,Third Party Payments,Other establishments,06/04/18,6215824,330.12,VENDOR,APEX PROPERTY VENTURES LTD,108437
Portsmouth City Council,PCC,Adult Social Care,Learning Disability Support  Adults (18 - 64),ADULT SERVICES,Third Party Payments,Other establishments,06/04/18,6215824,1147.56,VENDOR,APEX PROPERTY VENTURES LTD,108437
Portsmouth City Council,PCC,Adult Social Care,Physical Support Older People (85+),ADULT SERVICES,Third Party Payments,Other establishments,06/04/18,6215824,880.58,VENDOR,APEX PROPERTY VENTURES LTD,108437
Portsmouth City Council,PCC,Adult Social Care,Physical Support Adults (75 - 84),ADULT SERVICES,Third Party Payments,Other establishments,06/04/18,6215824,546.27,VENDOR,APEX PROPERTY VENTURES LTD,108437
Portsmouth City Council,PCC,Adult Social Care,Physical Support Adults (75 - 84),ADULT SERVICES,Third Party Payments,Other establishments,06/04/18,6215824,864.6,VENDOR,APEX PROPERTY VENTURES LTD,108437
Portsmouth City Council,PCC,Adult Social Care,Physical Support Older People (85+),ADULT SERVICES,Third Party Payments,Other establishments,06/04/18,6215824,62.88,VENDOR,APEX PROPERTY VENTURES LTD,108437
Portsmouth City Council,PCC,Adult Social Care,Physical Support Adults (75 - 84),ADULT SERVICES,Third Party Payments,Other establishments,06/04/18,6215824,1980.72,VENDOR,APEX PROPERTY VENTURES LTD,108437
Portsmouth City Council,PCC,Adult Social Care,Physical Support Adults (18 - 64),ADULT SERVICES,Third Party Payments,Other establishments,06/04/18,6215824,700.8,VENDOR,APEX PROPERTY VENTURES LTD,108437
Portsmouth City Council,PCC,Adult Social Care,Physical Support Adults (18 - 64),ADULT SERVICES,Third Party Payments,Other establishments,06/04/18,6215824,78.6,VENDOR,APEX PROPERTY VENTURES LTD,108437
Portsmouth City Council,PCC,Adult Social Care,Physical Support Adults (18 - 64),ADULT SERVICES,Third Party Payments,Other establishments,06/04/18,6215824,702.56,VENDOR,APEX PROPERTY VENTURES LTD,108437
Portsmouth City Council,PCC,Adult Social Care,Social Support - Support for Carer,ADULT SERVICES,Third Party Payments,Other establishments,06/04/18,6215824,189.28,VENDOR,APEX PROPERTY VENTURES LTD,108437
Portsmouth City Council,PCC,Adult Social Care,Physical Support Older People (85+),ADULT SERVICES,Third Party Payments,Other establishments,06/04/18,6215824,62.88,VENDOR,APEX PROPERTY VENTURES LTD,108437
Portsmouth City Council,PCC,Adult Social Care,Physical Support Older People (85+),ADULT SERVICES,Third Party Payments,Other establishments,06/04/18,6215824,212.22,VENDOR,APEX PROPERTY VENTURES LTD,108437
Portsmouth City Council,PCC,Adult Social Care,Physical Support Older People (85+),ADULT SERVICES,Third Party Payments,Other establishments,06/04/18,6215824,2153.64,VENDOR,APEX PROPERTY VENTURES LTD,108437
Portsmouth City Council,PCC,Adult Social Care,Physical Support Older People (65-74),ADULT SERVICES,Third Party Payments,Other establishments,06/04/18,6215824,157.2,VENDOR,APEX PROPERTY VENTURES LTD,108437
Portsmouth City Council,PCC,Adult Social Care,Physical Support Older People (85+),ADULT SERVICES,Third Party Payments,Other establishments,06/04/18,6215824,703.47,VENDOR,APEX PROPERTY VENTURES LTD,108437
Portsmouth City Council,PCC,Adult Social Care,Physical Support Adults (18 - 64),ADULT SERVICES,Third Party Payments,Other establishments,06/04/18,6215824,282.96,VENDOR,APEX PROPERTY VENTURES LTD,108437
Portsmouth City Council,PCC,Adult Social Care,Physical Support Older People (85+),ADULT SERVICES,Third Party Payments,Other establishments,06/04/18,6215824,122.96,VENDOR,APEX PROPERTY VENTURES LTD,108437
Portsmouth City Council,PCC,Adult Social Care,Physical Support Adults (18 - 64),ADULT SERVICES,Third Party Payments,Other establishments,06/04/18,6215824,94.32,VENDOR,APEX PROPERTY VENTURES LTD,108437
Portsmouth City Council,PCC,Adult Social Care,Physical Support Older People (85+),ADULT SERVICES,Third Party Payments,Other establishments,06/04/18,6215824,1980.72,VENDOR,APEX PROPERTY VENTURES LTD,108437
Portsmouth City Council,PCC,Adult Social Care,Physical Support Older People (85+),ADULT SERVICES,Third Party Payments,Other establishments,06/04/18,6215824,220.08,VENDOR,APEX PROPERTY VENTURES LTD,108437
Portsmouth City Council,PCC,Adult Social Care,Physical Support Older People (85+),ADULT SERVICES,Third Party Payments,Other establishments,06/04/18,6215824,990.36,VENDOR,APEX PROPERTY VENTURES LTD,108437
Portsmouth City Council,PCC,Adult Social Care,Physical Support Older People (85+),ADULT SERVICES,Third Party Payments,Other establishments,06/04/18,6215824,613.08,VENDOR,APEX PROPERTY VENTURES LTD,108437
Portsmouth City Council,PCC,Adult Social Care,Physical Support Older People (65-74),ADULT SERVICES,Third Party Payments,Other establishments,06/04/18,6215824,377.28,VENDOR,APEX PROPERTY VENTURES LTD,108437
Portsmouth City Council,PCC,Adult Social Care,Physical Support Older People (85+),ADULT SERVICES,Third Party Payments,Other establishments,06/04/18,6215824,1320.48,VENDOR,APEX PROPERTY VENTURES LTD,108437
Portsmouth City Council,PCC,Adult Social Care,Support with Memory and Cognition Adults (18 - 64),ADULT SERVICES,Third Party Payments,Other establishments,06/04/18,6215824,486.72,VENDOR,APEX PROPERTY VENTURES LTD,108437
Portsmouth City Council,PCC,Adult Social Care,Social Support - Support for Carer,ADULT SERVICES,Third Party Payments,Other establishments,06/04/18,6215824,189.28,VENDOR,APEX PROPERTY VENTURES LTD,108437
Portsmouth City Council,PCC,Adult Social Care,Physical Support Adults (75 - 84),ADULT SERVICES,Third Party Payments,Other establishments,06/04/18,6215824,220.08,VENDOR,APEX PROPERTY VENTURES LTD,108437
Portsmouth City Council,PCC,Adult Social Care,Physical Support Adults (75 - 84),ADULT SERVICES,Third Party Payments,Other establishments,06/04/18,6215824,440.16,VENDOR,APEX PROPERTY VENTURES LTD,108437
Portsmouth City Council,PCC,Adult Social Care,Physical Support Older People (85+),ADULT SERVICES,Third Party Payments,Other establishments,06/04/18,6215824,220.08,VENDOR,APEX PROPERTY VENTURES LTD,108437
Portsmouth City Council,PCC,Adult Social Care,Physical Support Adults (75 - 84),ADULT SERVICES,Third Party Payments,Other establishments,06/04/18,6215824,330.12,VENDOR,APEX PROPERTY VENTURES LTD,108437
Portsmouth City Council,PCC,Adult Social Care,Physical Support Older People (85+),ADULT SERVICES,Third Party Payments,Other establishments,06/04/18,6215824,220.08,VENDOR,APEX PROPERTY VENTURES LTD,108437
Portsmouth City Council,PCC,Adult Social Care,Physical Support Older People (85+),ADULT SERVICES,Third Party Payments,Other establishments,06/04/18,6215824,39.3,VENDOR,APEX PROPERTY VENTURES LTD,108437
Portsmouth City Council,PCC,Adult Social Care,Physical Support Adults (75 - 84),ADULT SERVICES,Third Party Payments,Other establishments,06/04/18,6215824,1540.56,VENDOR,APEX PROPERTY VENTURES LTD,108437
Portsmouth City Council,PCC,Adult Social Care,Physical Support Older People (65-74),ADULT SERVICES,Third Party Payments,Other establishments,06/04/18,6215824,546.27,VENDOR,APEX PROPERTY VENTURES LTD,108437
Portsmouth City Council,PCC,Adult Social Care,Physical Support Older People (85+),ADULT SERVICES,Third Party Payments,Other establishments,06/04/18,6215824,1237.95,VENDOR,APEX PROPERTY VENTURES LTD,108437
Portsmouth City Council,PCC,Adult Social Care,Physical Support Older People (85+),ADULT SERVICES,Third Party Payments,Other establishments,06/04/18,6215824,384.32,VENDOR,APEX PROPERTY VENTURES LTD,108437
Portsmouth City Council,PCC,Adult Social Care,Physical Support Older People (85+),ADULT SERVICES,Third Party Payments,Other establishments,06/04/18,6215824,314.4,VENDOR,APEX PROPERTY VENTURES LTD,108437
Portsmouth City Council,PCC,Adult Social Care,Physical Support Adults (75 - 84),ADULT SERVICES,Third Party Payments,Other establishments,06/04/18,6215824,212.22,VENDOR,APEX PROPERTY VENTURES LTD,108437
Portsmouth City Council,PCC,Adult Social Care,Physical Support Adults (75 - 84),ADULT SERVICES,Third Party Payments,Other establishments,06/04/18,6215824,1349.68,VENDOR,APEX PROPERTY VENTURES LTD,108437
Portsmouth City Council,PCC,Adult Social Care,Physical Support Older People (85+),ADULT SERVICES,Third Party Payments,Other establishments,06/04/18,6215824,110.04,VENDOR,APEX PROPERTY VENTURES LTD,108437
Portsmouth City Council,PCC,Adult Social Care,Physical Support Older People (85+),ADULT SERVICES,Third Party Payments,Other establishments,06/04/18,6215824,180.78,VENDOR,APEX PROPERTY VENTURES LTD,108437
Portsmouth City Council,PCC,Adult Social Care,Physical Support Older People (85+),ADULT SERVICES,Third Party Payments,Other establishments,06/04/18,6215824,440.16,VENDOR,APEX PROPERTY VENTURES LTD,108437
Portsmouth City Council,PCC,Adult Social Care,Physical Support Older People (65-74),ADULT SERVICES,Third Party Payments,Other establishments,06/04/18,6215824,125.76,VENDOR,APEX PROPERTY VENTURES LTD,108437
Portsmouth City Council,PCC,Adult Social Care,Physical Support Older People (65-74),ADULT SERVICES,Third Party Payments,Other establishments,06/04/18,6215824,212.22,VENDOR,APEX PROPERTY VENTURES LTD,108437
Portsmouth City Council,PCC,Adult Social Care,Physical Support Older People (85+),ADULT SERVICES,Third Party Payments,Other establishments,06/04/18,6215824,440.16,VENDOR,APEX PROPERTY VENTURES LTD,108437
Portsmouth City Council,PCC,Adult Social Care,Physical Support Older People (85+),ADULT SERVICES,Third Party Payments,Other establishments,06/04/18,6215824,2200.8,VENDOR,APEX PROPERTY VENTURES LTD,108437
Portsmouth City Council,PCC,Adult Social Care,Physical Support Older People (85+),ADULT SERVICES,Third Party Payments,Other establishments,06/04/18,6215824,550.2,VENDOR,APEX PROPERTY VENTURES LTD,108437
Portsmouth City Council,PCC,Adult Social Care,Learning Disability Support  Adults (18 - 64),ADULT SERVICES,Third Party Payments,Other establishments,06/04/18,6215824,275.1,VENDOR,APEX PROPERTY VENTURES LTD,108437
Portsmouth City Council,PCC,Adult Social Care,Physical Support Older People (85+),ADULT SERVICES,Third Party Payments,Other establishments,06/04/18,6215824,1611.3,VENDOR,APEX PROPERTY VENTURES LTD,108437
Portsmouth City Council,PCC,Adult Social Care,Physical Support Older People (85+),ADULT SERVICES,Third Party Payments,Other establishments,06/04/18,6215824,841.02,VENDOR,APEX PROPERTY VENTURES LTD,108437
Portsmouth City Council,PCC,Adult Social Care,Physical Support Adults (75 - 84),ADULT SERVICES,Third Party Payments,Other establishments,06/04/18,6215824,455.88,VENDOR,APEX PROPERTY VENTURES LTD,108437
Portsmouth City Council,PCC,Adult Social Care,Physical Support Older People (85+),ADULT SERVICES,Third Party Payments,Other establishments,06/04/18,6215824,1980.72,VENDOR,APEX PROPERTY VENTURES LTD,108437
Portsmouth City Council,PCC,Adult Social Care,Physical Support Adults (18 - 64),ADULT SERVICES,Third Party Payments,Other establishments,06/04/18,6215824,227.94,VENDOR,APEX PROPERTY VENTURES LTD,108437
Portsmouth City Council,PCC,Adult Social Care,Physical Support Older People (85+),ADULT SERVICES,Third Party Payments,Other establishments,06/04/18,6215824,440.16,VENDOR,APEX PROPERTY VENTURES LTD,108437
Portsmouth City Council,PCC,Adult Social Care,Physical Support Older People (85+),ADULT SERVICES,Third Party Payments,Other establishments,06/04/18,6215824,157.2,VENDOR,APEX PROPERTY VENTURES LTD,108437
Portsmouth City Council,PCC,Adult Social Care,Physical Support Older People (85+),ADULT SERVICES,Third Party Payments,Other establishments,06/04/18,6215824,688.02,VENDOR,APEX PROPERTY VENTURES LTD,108437
Portsmouth City Council,PCC,Adult Social Care,Physical Support Older People (85+),ADULT SERVICES,Third Party Payments,Other establishments,06/04/18,6215824,94.32,VENDOR,APEX PROPERTY VENTURES LTD,108437
Portsmouth City Council,PCC,Adult Social Care,Physical Support Older People (85+),ADULT SERVICES,Third Party Payments,Other establishments,06/04/18,6215824,94.32,VENDOR,APEX PROPERTY VENTURES LTD,108437
Portsmouth City Council,PCC,Adult Social Care,Physical Support Older People (85+),ADULT SERVICES,Third Party Payments,Other establishments,06/04/18,6215824,770.28,VENDOR,APEX PROPERTY VENTURES LTD,108437
Portsmouth City Council,PCC,Adult Social Care,Physical Support Older People (65-74),ADULT SERVICES,Third Party Payments,Other establishments,06/04/18,6215824,149.34,VENDOR,APEX PROPERTY VENTURES LTD,108437
Portsmouth City Council,PCC,Adult Social Care,Physical Support Older People (85+),ADULT SERVICES,Third Party Payments,Other establishments,06/04/18,6215824,157.2,VENDOR,APEX PROPERTY VENTURES LTD,108437
Portsmouth City Council,PCC,Adult Social Care,Physical Support Older People (85+),ADULT SERVICES,Third Party Payments,Other establishments,06/04/18,6215824,107.8,VENDOR,APEX PROPERTY VENTURES LTD,108437
Portsmouth City Council,PCC,Adult Social Care,Sensory Support Adults (18 - 64),ADULT SERVICES,Third Party Payments,Other establishments,06/04/18,6215824,451.95,VENDOR,APEX PROPERTY VENTURES LTD,108437
Portsmouth City Council,PCC,Adult Social Care,Sensory Support Older People (75 - 84),ADULT SERVICES,Third Party Payments,Other establishments,06/04/18,6215824,220.08,VENDOR,APEX PROPERTY VENTURES LTD,108437
Portsmouth City Council,PCC,Adult Social Care,Physical Support Older People (85+),ADULT SERVICES,Third Party Payments,Other establishments,06/04/18,6215824,188.64,VENDOR,APEX PROPERTY VENTURES LTD,108437
Portsmouth City Council,PCC,Adult Social Care,Physical Support Older People (85+),ADULT SERVICES,Third Party Payments,Other establishments,06/04/18,6215824,408.72,VENDOR,APEX PROPERTY VENTURES LTD,108437
Portsmouth City Council,PCC,Adult Social Care,Physical Support Adults (75 - 84),ADULT SERVICES,Third Party Payments,Other establishments,06/04/18,6215824,1760.64,VENDOR,APEX PROPERTY VENTURES LTD,108437
Portsmouth City Council,PCC,Adult Social Care,Physical Support Older People (85+),ADULT SERVICES,Third Party Payments,Other establishments,06/04/18,6215824,220.08,VENDOR,APEX PROPERTY VENTURES LTD,108437
Portsmouth City Council,PCC,Adult Social Care,Physical Support Older People (85+),ADULT SERVICES,Third Party Payments,Other establishments,06/04/18,6215824,247.59,VENDOR,APEX PROPERTY VENTURES LTD,108437
Portsmouth City Council,PCC,Adult Social Care,Physical Support Older People (85+),ADULT SERVICES,Third Party Payments,Other establishments,06/04/18,6215824,1320.48,VENDOR,APEX PROPERTY VENTURES LTD,108437
Portsmouth City Council,PCC,Adult Social Care,Learning Disability Support  Adults (18 - 64),ADULT SERVICES,Third Party Payments,Other establishments,06/04/18,6215824,220.08,VENDOR,APEX PROPERTY VENTURES LTD,108437
Portsmouth City Council,PCC,Adult Social Care,Learning Disability Support  Adults (18 - 64),ADULT SERVICES,Third Party Payments,Other establishments,06/04/18,6215824,282.96,VENDOR,APEX PROPERTY VENTURES LTD,108437
Portsmouth City Council,PCC,Adult Social Care,Physical Support Older People (85+),ADULT SERVICES,Third Party Payments,Other establishments,06/04/18,6215824,2216.52,VENDOR,APEX PROPERTY VENTURES LTD,108437
Portsmouth City Council,PCC,Adult Social Care,Physical Support Older People (85+),ADULT SERVICES,Third Party Payments,Other establishments,06/04/18,6215824,636.66,VENDOR,APEX PROPERTY VENTURES LTD,108437
Portsmouth City Council,PCC,Adult Social Care,Physical Support Adults (18 - 64),ADULT SERVICES,Third Party Payments,Other establishments,06/04/18,6215824,935.34,VENDOR,APEX PROPERTY VENTURES LTD,108437
Portsmouth City Council,PCC,Adult Social Care,Support with Memory and Cognition Adults (18 - 64),ADULT SERVICES,Third Party Payments,Other establishments,06/04/18,6215824,216.15,VENDOR,APEX PROPERTY VENTURES LTD,108437
Portsmouth City Council,PCC,Adult Social Care,Physical Support Older People (85+),ADULT SERVICES,Third Party Payments,Other establishments,06/04/18,6215824,227.94,VENDOR,APEX PROPERTY VENTURES LTD,108437
Portsmouth City Council,PCC,Adult Social Care,Physical Support Adults (75 - 84),ADULT SERVICES,Third Party Payments,Other establishments,06/04/18,6215824,177.98,VENDOR,APEX PROPERTY VENTURES LTD,108437
Portsmouth City Council,PCC,Adult Social Care,Physical Support Older People (85+),ADULT SERVICES,Third Party Payments,Other establishments,06/04/18,6215824,125.76,VENDOR,APEX PROPERTY VENTURES LTD,108437
Portsmouth City Council,PCC,Adult Social Care,Social Care Activities,ADULT SERVICES,Third Party Payments,Other establishments,06/04/18,6215824,440.16,VENDOR,APEX PROPERTY VENTURES LTD,108437
Portsmouth City Council,PCC,Adult Social Care,Physical Support Older People (85+),ADULT SERVICES,Third Party Payments,Other establishments,06/04/18,6215824,393,VENDOR,APEX PROPERTY VENTURES LTD,108437
Portsmouth City Council,PCC,Adult Social Care,Physical Support Adults (18 - 64),ADULT SERVICES,Third Party Payments,Other establishments,06/04/18,6215824,172.92,VENDOR,APEX PROPERTY VENTURES LTD,108437
Portsmouth City Council,PCC,Adult Social Care,Physical Support Older People (65-74),ADULT SERVICES,Third Party Payments,Other establishments,06/04/18,6215824,1760.64,VENDOR,APEX PROPERTY VENTURES LTD,108437
Portsmouth City Council,PCC,Adult Social Care,Physical Support Adults (75 - 84),ADULT SERVICES,Third Party Payments,Other establishments,06/04/18,6215824,141.48,VENDOR,APEX PROPERTY VENTURES LTD,108437
Portsmouth City Council,PCC,Adult Social Care,Physical Support Older People (85+),ADULT SERVICES,Third Party Payments,Other establishments,06/04/18,6215824,306.03,VENDOR,APEX PROPERTY VENTURES LTD,108437
Portsmouth City Council,PCC,Adult Social Care,Physical Support Older People (85+),ADULT SERVICES,Third Party Payments,Other establishments,06/04/18,6215824,31.44,VENDOR,APEX PROPERTY VENTURES LTD,108437
Portsmouth City Council,PCC,Adult Social Care,Physical Support Adults (75 - 84),ADULT SERVICES,Third Party Payments,Other establishments,06/04/18,6215824,376.47,VENDOR,APEX PROPERTY VENTURES LTD,108437
Portsmouth City Council,PCC,Adult Social Care,Physical Support Adults (75 - 84),ADULT SERVICES,Third Party Payments,Other establishments,06/04/18,6215824,62.88,VENDOR,APEX PROPERTY VENTURES LTD,108437
Portsmouth City Council,PCC,Adult Social Care,Physical Support Adults (75 - 84),ADULT SERVICES,Third Party Payments,Other establishments,06/04/18,6215824,220.08,VENDOR,APEX PROPERTY VENTURES LTD,108437
Portsmouth City Council,PCC,Adult Social Care,Physical Support Adults (75 - 84),ADULT SERVICES,Third Party Payments,Other establishments,06/04/18,6215824,1100.4,VENDOR,APEX PROPERTY VENTURES LTD,108437
Portsmouth City Council,PCC,Adult Social Care,Physical Support Older People (65-74),ADULT SERVICES,Third Party Payments,Other establishments,06/04/18,6215824,188.64,VENDOR,APEX PROPERTY VENTURES LTD,108437
Portsmouth City Council,PCC,Adult Social Care,Physical Support Adults (18 - 64),ADULT SERVICES,Third Party Payments,Other establishments,06/04/18,6215824,329.1,VENDOR,APEX PROPERTY VENTURES LTD,108437
Portsmouth City Council,PCC,Adult Social Care,Physical Support Adults (18 - 64),ADULT SERVICES,Third Party Payments,Other establishments,06/04/18,6215824,396.93,VENDOR,APEX PROPERTY VENTURES LTD,108437
Portsmouth City Council,PCC,Adult Social Care,Physical Support Older People (85+),ADULT SERVICES,Third Party Payments,Other establishments,06/04/18,6215824,432.3,VENDOR,APEX PROPERTY VENTURES LTD,108437
Portsmouth City Council,PCC,Adult Social Care,Physical Support Older People (85+),ADULT SERVICES,Third Party Payments,Other establishments,06/04/18,6215824,997.71,VENDOR,APEX PROPERTY VENTURES LTD,108437
Portsmouth City Council,PCC,Adult Social Care,Physical Support Older People (85+),ADULT SERVICES,Third Party Payments,Other establishments,06/04/18,6215824,31.44,VENDOR,APEX PROPERTY VENTURES LTD,108437
Portsmouth City Council,PCC,Adult Social Care,Physical Support Older People (85+),ADULT SERVICES,Third Party Payments,Other establishments,06/04/18,6215824,440.16,VENDOR,APEX PROPERTY VENTURES LTD,108437
Portsmouth City Council,PCC,Adult Social Care,Physical Support Older People (65-74),ADULT SERVICES,Third Party Payments,Other establishments,06/04/18,6215824,1965,VENDOR,APEX PROPERTY VENTURES LTD,108437
Portsmouth City Council,PCC,Adult Social Care,Physical Support Older People (85+),ADULT SERVICES,Third Party Payments,Other establishments,06/04/18,6215824,125.76,VENDOR,APEX PROPERTY VENTURES LTD,108437
Portsmouth City Council,PCC,Adult Social Care,Physical Support Older People (85+),ADULT SERVICES,Third Party Payments,Other establishments,06/04/18,6215824,1752.78,VENDOR,APEX PROPERTY VENTURES LTD,108437
Portsmouth City Council,PCC,Adult Social Care,Physical Support Older People (85+),ADULT SERVICES,Third Party Payments,Other establishments,06/04/18,6215824,408.72,VENDOR,APEX PROPERTY VENTURES LTD,108437
Portsmouth City Council,PCC,Adult Social Care,Physical Support Older People (85+),ADULT SERVICES,Third Party Payments,Other establishments,06/04/18,6215824,432.3,VENDOR,APEX PROPERTY VENTURES LTD,108437
Portsmouth City Council,PCC,Adult Social Care,Physical Support Older People (85+),ADULT SERVICES,Third Party Payments,Other establishments,06/04/18,6215824,1540.56,VENDOR,APEX PROPERTY VENTURES LTD,108437
Portsmouth City Council,PCC,Adult Social Care,Physical Support Older People (65-74),ADULT SERVICES,Third Party Payments,Other establishments,06/04/18,6215824,188.64,VENDOR,APEX PROPERTY VENTURES LTD,108437
Portsmouth City Council,PCC,Adult Social Care,Physical Support Older People (85+),ADULT SERVICES,Third Party Payments,Other establishments,06/04/18,6215824,330.12,VENDOR,APEX PROPERTY VENTURES LTD,108437
Portsmouth City Council,PCC,Adult Social Care,Learning Disability Support  Adults (18 - 64),ADULT SERVICES,Third Party Payments,Other establishments,06/04/18,6215824,157.2,VENDOR,APEX PROPERTY VENTURES LTD,108437
Portsmouth City Council,PCC,Adult Social Care,Physical Support Older People (85+),ADULT SERVICES,Third Party Payments,Other establishments,06/04/18,6215824,94.32,VENDOR,APEX PROPERTY VENTURES LTD,108437
Portsmouth City Council,PCC,Adult Social Care,Social Care Activities,ADULT SERVICES,Third Party Payments,Other establishments,19/04/18,6218406,-10.95,VENDOR,APEX PROPERTY VENTURES LTD,108437
Portsmouth City Council,PCC,Adult Social Care,Physical Support Adults (75 - 84),ADULT SERVICES,Third Party Payments,Other establishments,12/04/18,6216693,-7.86,VENDOR,APEX PROPERTY VENTURES LTD,108437
Portsmouth City Council,PCC,Adult Social Care,Social Care Activities,ADULT SERVICES,Third Party Payments,Other establishments,18/04/18,6217891,3029.04,VENDOR,APPLETREE SUPPORT LTD,126285
Portsmouth City Council,PCC,Adult Social Care,Learning Disability Support  Adults (18 - 64),ADULT SERVICES,Transport-Related Expenditure,Public transport,09/04/18,6215959,2232.1,VENDOR,AQUA CARS LIMITED,100011
Portsmouth City Council,PCC,Adult Social Care,Learning Disability Support  Adults (18 - 64),ADULT SERVICES,Transport-Related Expenditure,Public transport,16/04/18,6217134,2150.8,VENDOR,AQUA CARS LIMITED,100011
Portsmouth City Council,PCC,Adult Social Care,Learning Disability Support  Adults (18 - 64),ADULT SERVICES,Transport-Related Expenditure,Public transport,23/04/18,6218726,2189.2,VENDOR,AQUA CARS LIMITED,100011
Portsmouth City Council,PCC,Adult Social Care,Support with Memory and Cognition Older People (65 - 74),ADULT SERVICES,Supplies and Services,"Equipment, furniture and materials",18/04/18,6217894,522,COMPANY,ARJO UK LIMITED,101045
Portsmouth City Council,PCC,Adult Social Care,Learning Disability Support  Adults (18 - 64),ADULT SERVICES,Third Party Payments,Other establishments,12/04/18,6216696,5827.8,VENDOR,ASHFIELD CARE HOMES LIMITED,100570
Portsmouth City Council,PCC,Adult Social Care,Learning Disability Support  Adults (18 - 64),ADULT SERVICES,Third Party Payments,Other establishments,12/04/18,6216697,8563.8,VENDOR,ASSURE HEALTH CARE GROUP,140779
Portsmouth City Council,PCC,Adult Social Care,Learning Disability Support  Adults (18 - 64),ADULT SERVICES,Third Party Payments,Other establishments,12/04/18,6216697,7029,VENDOR,ASSURE HEALTH CARE GROUP,140779
Portsmouth City Council,PCC,Adult Social Care,Social Care Activities,ADULT SERVICES,Third Party Payments,Other establishments,24/04/18,6218891,5093.28,VENDOR,ASTER CARE LTD,130238
Portsmouth City Council,PCC,Adult Social Care,Social Care Activities,ADULT SERVICES,Third Party Payments,Other establishments,24/04/18,6218891,188.64,VENDOR,ASTER CARE LTD,130238
Portsmouth City Council,PCC,Adult Social Care,Social Care Activities,ADULT SERVICES,Third Party Payments,Other establishments,24/04/18,6218891,6366.6,VENDOR,ASTER CARE LTD,130238
Portsmouth City Council,PCC,Adult Social Care,Social Care Activities,ADULT SERVICES,Third Party Payments,Other establishments,24/04/18,6218891,3819.96,VENDOR,ASTER CARE LTD,130238
Portsmouth City Council,PCC,Adult Social Care,Social Care Activities,ADULT SERVICES,Third Party Payments,Other establishments,24/04/18,6218891,188.73,VENDOR,ASTER CARE LTD,130238
Portsmouth City Council,PCC,Adult Social Care,Social Care Activities,ADULT SERVICES,Third Party Payments,Other establishments,24/04/18,6218891,188.55,VENDOR,ASTER CARE LTD,130238
Portsmouth City Council,PCC,Adult Social Care,Social Care Activities,ADULT SERVICES,Third Party Payments,Other establishments,25/04/18,6219029,9686.75,VENDOR,ASTER CARE LTD,130238
Portsmouth City Council,PCC,Adult Social Care,Social Care Activities,ADULT SERVICES,Third Party Payments,Other establishments,25/04/18,6219029,358.77,VENDOR,ASTER CARE LTD,130238
Portsmouth City Council,PCC,Adult Social Care,Mental Health Support Adults (18 - 64),ADULT SERVICES,Third Party Payments,Other establishments,19/04/18,6218409,1375.92,VENDOR,AUCKLAND CARE LTD,100984
Portsmouth City Council,PCC,Adult Social Care,Mental Health Support Adults (18 - 64),ADULT SERVICES,Third Party Payments,Other establishments,19/04/18,6218409,1831.2,VENDOR,AUCKLAND CARE LTD,100984
Portsmouth City Council,PCC,Adult Social Care,Learning Disability Support  Adults (18 - 64),ADULT SERVICES,Third Party Payments,Other establishments,19/04/18,6218410,951.97,VENDOR,AUTISM HAMPSHIRE,139112
Portsmouth City Council,PCC,Adult Social Care,Information and Early Intervention,ADULT SERVICES,Third Party Payments,Other establishments,13/04/18,6216925,12354.67,VENDOR,AUTISM HAMPSHIRE,139112
Portsmouth City Council,PCC,Adult Social Care,Information and Early Intervention,ADULT SERVICES,Third Party Payments,Other establishments,13/04/18,6216925,1011.3,VENDOR,AUTISM HAMPSHIRE,139112
Portsmouth City Council,PCC,Adult Social Care,Learning Disability Support  Adults (18 - 64),ADULT SERVICES,Third Party Payments,Other establishments,16/04/18,6217142,3711.84,VENDOR,AUTISM HAMPSHIRE,139112
Portsmouth City Council,PCC,Adult Social Care,Learning Disability Support  Adults (18 - 64),ADULT SERVICES,Third Party Payments,Other establishments,19/04/18,6218410,919.23,VENDOR,AUTISM HAMPSHIRE,139112
Portsmouth City Council,PCC,Adult Social Care,Social Care Activities,ADULT SERVICES,Third Party Payments,Other establishments,13/04/18,6216925,43503.5,VENDOR,AUTISM HAMPSHIRE,139112
Portsmouth City Council,PCC,Adult Social Care,Support with Memory and Cognition Older People (85+),ADULT SERVICES,Third Party Payments,Other establishments,12/04/18,6216699,14466.9,VENDOR,AUTUMN VALE REST HOME,100551
Portsmouth City Council,PCC,Adult Social Care,Mental Health Support Adults (18 - 64),ADULT SERVICES,Third Party Payments,Other establishments,12/04/18,6216699,19538.4,VENDOR,AUTUMN VALE REST HOME,100551
Portsmouth City Council,PCC,Adult Social Care,Physical Support Older People (85+),ADULT SERVICES,Third Party Payments,Other establishments,30/04/18,6219892,47.16,VENDOR,B S CARE LTD,100114
Portsmouth City Council,PCC,Adult Social Care,Physical Support Older People (85+),ADULT SERVICES,Third Party Payments,Other establishments,30/04/18,6219892,16.36,VENDOR,B S CARE LTD,100114
Portsmouth City Council,PCC,Adult Social Care,Physical Support Older People (85+),ADULT SERVICES,Third Party Payments,Other establishments,30/04/18,6219892,98.25,VENDOR,B S CARE LTD,100114
Portsmouth City Council,PCC,Adult Social Care,Physical Support Older People (85+),ADULT SERVICES,Third Party Payments,Other establishments,30/04/18,6219892,159.51,VENDOR,B S CARE LTD,100114
Portsmouth City Council,PCC,Adult Social Care,Physical Support Older People (85+),ADULT SERVICES,Third Party Payments,Other establishments,30/04/18,6219892,1223.86,VENDOR,B S CARE LTD,100114
Portsmouth City Council,PCC,Adult Social Care,Physical Support Older People (85+),ADULT SERVICES,Third Party Payments,Other establishments,30/04/18,6219892,501.6,VENDOR,B S CARE LTD,100114
Portsmouth City Council,PCC,Adult Social Care,Learning Disability Support  Adults (18 - 64),ADULT SERVICES,Third Party Payments,Other establishments,30/04/18,6219892,70.74,VENDOR,B S CARE LTD,100114
Portsmouth City Council,PCC,Adult Social Care,Learning Disability Support  Adults (18 - 64),ADULT SERVICES,Third Party Payments,Other establishments,30/04/18,6219892,24.54,VENDOR,B S CARE LTD,100114
Portsmouth City Council,PCC,Adult Social Care,Physical Support Older People (85+),ADULT SERVICES,Third Party Payments,Other establishments,30/04/18,6219892,314.4,VENDOR,B S CARE LTD,100114
Portsmouth City Council,PCC,Adult Social Care,Physical Support Older People (85+),ADULT SERVICES,Third Party Payments,Other establishments,30/04/18,6219892,122.7,VENDOR,B S CARE LTD,100114
Portsmouth City Council,PCC,Adult Social Care,Physical Support Adults (18 - 64),ADULT SERVICES,Third Party Payments,Other establishments,30/04/18,6219892,1100.4,VENDOR,B S CARE LTD,100114
Portsmouth City Council,PCC,Adult Social Care,Physical Support Older People (85+),ADULT SERVICES,Third Party Payments,Other establishments,30/04/18,6219892,458.08,VENDOR,B S CARE LTD,100114
Portsmouth City Council,PCC,Adult Social Care,Physical Support Adults (75 - 84),ADULT SERVICES,Third Party Payments,Other establishments,30/04/18,6219892,943.2,VENDOR,B S CARE LTD,100114
Portsmouth City Council,PCC,Adult Social Care,Physical Support Older People (85+),ADULT SERVICES,Third Party Payments,Other establishments,30/04/18,6219892,392.64,VENDOR,B S CARE LTD,100114
Portsmouth City Council,PCC,Adult Social Care,Physical Support Older People (85+),ADULT SERVICES,Third Party Payments,Other establishments,30/04/18,6219892,326.19,VENDOR,B S CARE LTD,100114
Portsmouth City Council,PCC,Adult Social Care,Physical Support Older People (85+),ADULT SERVICES,Third Party Payments,Other establishments,30/04/18,6219892,126.79,VENDOR,B S CARE LTD,100114
Portsmouth City Council,PCC,Adult Social Care,Mental Health Support Adults (18 - 64),ADULT SERVICES,Third Party Payments,Other establishments,30/04/18,6219892,510.9,VENDOR,B S CARE LTD,100114
Portsmouth City Council,PCC,Adult Social Care,Physical Support Adults (75 - 84),ADULT SERVICES,Third Party Payments,Other establishments,30/04/18,6219892,157.2,VENDOR,B S CARE LTD,100114
Portsmouth City Council,PCC,Adult Social Care,Physical Support Older People (85+),ADULT SERVICES,Third Party Payments,Other establishments,30/04/18,6219892,65.44,VENDOR,B S CARE LTD,100114
Portsmouth City Council,PCC,Adult Social Care,Physical Support Older People (85+),ADULT SERVICES,Third Party Payments,Other establishments,30/04/18,6219892,235.8,VENDOR,B S CARE LTD,100114
Portsmouth City Council,PCC,Adult Social Care,Physical Support Older People (85+),ADULT SERVICES,Third Party Payments,Other establishments,30/04/18,6219892,98.16,VENDOR,B S CARE LTD,100114
Portsmouth City Council,PCC,Adult Social Care,Physical Support Older People (85+),ADULT SERVICES,Third Party Payments,Other establishments,30/04/18,6219892,314.4,VENDOR,B S CARE LTD,100114
Portsmouth City Council,PCC,Adult Social Care,Physical Support Older People (85+),ADULT SERVICES,Third Party Payments,Other establishments,30/04/18,6219892,130.88,VENDOR,B S CARE LTD,100114
Portsmouth City Council,PCC,Adult Social Care,Physical Support Older People (85+),ADULT SERVICES,Third Party Payments,Other establishments,30/04/18,6219892,542.34,VENDOR,B S CARE LTD,100114
Portsmouth City Council,PCC,Adult Social Care,Physical Support Older People (85+),ADULT SERVICES,Third Party Payments,Other establishments,30/04/18,6219892,224.95,VENDOR,B S CARE LTD,100114
Portsmouth City Council,PCC,Adult Social Care,Physical Support Older People (85+),ADULT SERVICES,Third Party Payments,Other establishments,30/04/18,6219892,479.46,VENDOR,B S CARE LTD,100114
Portsmouth City Council,PCC,Adult Social Care,Physical Support Older People (85+),ADULT SERVICES,Third Party Payments,Other establishments,30/04/18,6219892,188.14,VENDOR,B S CARE LTD,100114
Portsmouth City Council,PCC,Adult Social Care,Physical Support Older People (85+),ADULT SERVICES,Third Party Payments,Other establishments,30/04/18,6219892,314.4,VENDOR,B S CARE LTD,100114
Portsmouth City Council,PCC,Adult Social Care,Physical Support Older People (85+),ADULT SERVICES,Third Party Payments,Other establishments,30/04/18,6219892,130.88,VENDOR,B S CARE LTD,100114
Portsmouth City Council,PCC,Adult Social Care,Physical Support Older People (85+),ADULT SERVICES,Third Party Payments,Other establishments,30/04/18,6219892,471.6,VENDOR,B S CARE LTD,100114
Portsmouth City Council,PCC,Adult Social Care,Physical Support Older People (85+),ADULT SERVICES,Third Party Payments,Other establishments,30/04/18,6219892,196.32,VENDOR,B S CARE LTD,100114
Portsmouth City Council,PCC,Adult Social Care,Physical Support Older People (85+),ADULT SERVICES,Third Party Payments,Other establishments,30/04/18,6219892,243.66,VENDOR,B S CARE LTD,100114
Portsmouth City Council,PCC,Adult Social Care,Physical Support Older People (85+),ADULT SERVICES,Third Party Payments,Other establishments,30/04/18,6219892,73.62,VENDOR,B S CARE LTD,100114
Portsmouth City Council,PCC,Adult Social Care,Physical Support Older People (85+),ADULT SERVICES,Third Party Payments,Other establishments,30/04/18,6219892,70.74,VENDOR,B S CARE LTD,100114
Portsmouth City Council,PCC,Adult Social Care,Physical Support Older People (85+),ADULT SERVICES,Third Party Payments,Other establishments,30/04/18,6219892,314.4,VENDOR,B S CARE LTD,100114
Portsmouth City Council,PCC,Adult Social Care,Physical Support Older People (85+),ADULT SERVICES,Third Party Payments,Other establishments,30/04/18,6219892,130.88,VENDOR,B S CARE LTD,100114
Portsmouth City Council,PCC,Adult Social Care,Physical Support Adults (18 - 64),ADULT SERVICES,Third Party Payments,Other establishments,30/04/18,6219892,62.88,VENDOR,B S CARE LTD,100114
Portsmouth City Council,PCC,Adult Social Care,Physical Support Older People (85+),ADULT SERVICES,Third Party Payments,Other establishments,30/04/18,6219892,330.12,VENDOR,B S CARE LTD,100114
Portsmouth City Council,PCC,Adult Social Care,Physical Support Older People (85+),ADULT SERVICES,Third Party Payments,Other establishments,30/04/18,6219892,163.6,VENDOR,B S CARE LTD,100114
Portsmouth City Council,PCC,Adult Social Care,Physical Support Adults (18 - 64),ADULT SERVICES,Third Party Payments,Other establishments,30/04/18,6219892,176.85,VENDOR,B S CARE LTD,100114
Portsmouth City Council,PCC,Adult Social Care,Physical Support Adults (18 - 64),ADULT SERVICES,Third Party Payments,Other establishments,30/04/18,6219892,61.35,VENDOR,B S CARE LTD,100114
Portsmouth City Council,PCC,Adult Social Care,Physical Support Older People (85+),ADULT SERVICES,Third Party Payments,Other establishments,30/04/18,6219892,62.88,VENDOR,B S CARE LTD,100114
Portsmouth City Council,PCC,Adult Social Care,Physical Support Older People (85+),ADULT SERVICES,Third Party Payments,Other establishments,30/04/18,6219892,141.48,VENDOR,B S CARE LTD,100114
Portsmouth City Council,PCC,Adult Social Care,Physical Support Older People (85+),ADULT SERVICES,Third Party Payments,Other establishments,30/04/18,6219892,57.26,VENDOR,B S CARE LTD,100114
Portsmouth City Council,PCC,Adult Social Care,Physical Support Older People (85+),ADULT SERVICES,Third Party Payments,Other establishments,30/04/18,6219892,298.68,VENDOR,B S CARE LTD,100114
Portsmouth City Council,PCC,Adult Social Care,Physical Support Older People (85+),ADULT SERVICES,Third Party Payments,Other establishments,30/04/18,6219892,114.52,VENDOR,B S CARE LTD,100114
Portsmouth City Council,PCC,Adult Social Care,Physical Support Older People (65-74),ADULT SERVICES,Third Party Payments,Other establishments,30/04/18,6219892,70.74,VENDOR,B S CARE LTD,100114
Portsmouth City Council,PCC,Adult Social Care,Physical Support Older People (85+),ADULT SERVICES,Third Party Payments,Other establishments,30/04/18,6219892,24.54,VENDOR,B S CARE LTD,100114
Portsmouth City Council,PCC,Adult Social Care,Physical Support Older People (85+),ADULT SERVICES,Third Party Payments,Other establishments,30/04/18,6219892,318.33,VENDOR,B S CARE LTD,100114
Portsmouth City Council,PCC,Adult Social Care,Physical Support Older People (85+),ADULT SERVICES,Third Party Payments,Other establishments,30/04/18,6219892,141.48,VENDOR,B S CARE LTD,100114
Portsmouth City Council,PCC,Adult Social Care,Physical Support Older People (85+),ADULT SERVICES,Third Party Payments,Other establishments,30/04/18,6219892,122.7,VENDOR,B S CARE LTD,100114
Portsmouth City Council,PCC,Adult Social Care,Physical Support Older People (85+),ADULT SERVICES,Third Party Payments,Other establishments,30/04/18,6219892,49.08,VENDOR,B S CARE LTD,100114
Portsmouth City Council,PCC,Adult Social Care,Physical Support Older People (85+),ADULT SERVICES,Third Party Payments,Other establishments,30/04/18,6219892,707.4,VENDOR,B S CARE LTD,100114
Portsmouth City Council,PCC,Adult Social Care,Physical Support Older People (85+),ADULT SERVICES,Third Party Payments,Other establishments,30/04/18,6219892,265.85,VENDOR,B S CARE LTD,100114
Portsmouth City Council,PCC,Adult Social Care,Physical Support Older People (85+),ADULT SERVICES,Third Party Payments,Other establishments,30/04/18,6219892,1870.68,VENDOR,B S CARE LTD,100114
Portsmouth City Council,PCC,Adult Social Care,Physical Support Older People (85+),ADULT SERVICES,Third Party Payments,Other establishments,30/04/18,6219892,785.28,VENDOR,B S CARE LTD,100114
Portsmouth City Council,PCC,Adult Social Care,Physical Support Older People (85+),ADULT SERVICES,Third Party Payments,Other establishments,30/04/18,6219892,157.2,VENDOR,B S CARE LTD,100114
Portsmouth City Council,PCC,Adult Social Care,Physical Support Older People (85+),ADULT SERVICES,Third Party Payments,Other establishments,30/04/18,6219892,65.44,VENDOR,B S CARE LTD,100114
Portsmouth City Council,PCC,Adult Social Care,Physical Support Older People (85+),ADULT SERVICES,Third Party Payments,Other establishments,30/04/18,6219892,157.2,VENDOR,B S CARE LTD,100114
Portsmouth City Council,PCC,Adult Social Care,Physical Support Older People (85+),ADULT SERVICES,Third Party Payments,Other establishments,30/04/18,6219892,65.44,VENDOR,B S CARE LTD,100114
Portsmouth City Council,PCC,Adult Social Care,Physical Support Older People (85+),ADULT SERVICES,Third Party Payments,Other establishments,30/04/18,6219892,172.92,VENDOR,B S CARE LTD,100114
Portsmouth City Council,PCC,Adult Social Care,Physical Support Older People (85+),ADULT SERVICES,Third Party Payments,Other establishments,30/04/18,6219892,588.96,VENDOR,B S CARE LTD,100114
Portsmouth City Council,PCC,Adult Social Care,Physical Support Older People (65-74),ADULT SERVICES,Third Party Payments,Other establishments,30/04/18,6219892,39.3,VENDOR,B S CARE LTD,100114
Portsmouth City Council,PCC,Adult Social Care,Physical Support Older People (65-74),ADULT SERVICES,Third Party Payments,Other establishments,30/04/18,6219892,163.6,VENDOR,B S CARE LTD,100114
Portsmouth City Council,PCC,Adult Social Care,Physical Support Older People (85+),ADULT SERVICES,Third Party Payments,Other establishments,30/04/18,6219892,864.6,VENDOR,B S CARE LTD,100114
Portsmouth City Council,PCC,Adult Social Care,Physical Support Older People (85+),ADULT SERVICES,Third Party Payments,Other establishments,30/04/18,6219892,304.42,VENDOR,B S CARE LTD,100114
Portsmouth City Council,PCC,Adult Social Care,Physical Support Older People (85+),ADULT SERVICES,Third Party Payments,Other establishments,30/04/18,6219892,49.08,VENDOR,B S CARE LTD,100114
Portsmouth City Council,PCC,Adult Social Care,Physical Support Older People (85+),ADULT SERVICES,Third Party Payments,Other establishments,30/04/18,6219892,15.72,VENDOR,B S CARE LTD,100114
Portsmouth City Council,PCC,Adult Social Care,Physical Support Older People (85+),ADULT SERVICES,Third Party Payments,Other establishments,30/04/18,6219892,49.08,VENDOR,B S CARE LTD,100114
Portsmouth City Council,PCC,Adult Social Care,Physical Support Adults (18 - 64),ADULT SERVICES,Third Party Payments,Other establishments,30/04/18,6219892,314.4,VENDOR,B S CARE LTD,100114
Portsmouth City Council,PCC,Adult Social Care,Physical Support Adults (18 - 64),ADULT SERVICES,Third Party Payments,Other establishments,30/04/18,6219892,130.88,VENDOR,B S CARE LTD,100114
Portsmouth City Council,PCC,Adult Social Care,Physical Support Older People (85+),ADULT SERVICES,Third Party Payments,Other establishments,30/04/18,6219892,337.98,VENDOR,B S CARE LTD,100114
Portsmouth City Council,PCC,Adult Social Care,Physical Support Older People (85+),ADULT SERVICES,Third Party Payments,Other establishments,30/04/18,6219892,139.06,VENDOR,B S CARE LTD,100114
Portsmouth City Council,PCC,Adult Social Care,Physical Support Older People (85+),ADULT SERVICES,Third Party Payments,Other establishments,30/04/18,6219892,70.74,VENDOR,B S CARE LTD,100114
Portsmouth City Council,PCC,Adult Social Care,Physical Support Older People (85+),ADULT SERVICES,Third Party Payments,Other establishments,30/04/18,6219892,24.54,VENDOR,B S CARE LTD,100114
Portsmouth City Council,PCC,Adult Social Care,Physical Support Older People (85+),ADULT SERVICES,Third Party Payments,Other establishments,30/04/18,6219892,707.4,VENDOR,B S CARE LTD,100114
Portsmouth City Council,PCC,Adult Social Care,Physical Support Older People (85+),ADULT SERVICES,Third Party Payments,Other establishments,30/04/18,6219892,220.86,VENDOR,B S CARE LTD,100114
Portsmouth City Council,PCC,Adult Social Care,Physical Support Older People (85+),ADULT SERVICES,Third Party Payments,Other establishments,30/04/18,6219892,550.2,VENDOR,B S CARE LTD,100114
Portsmouth City Council,PCC,Adult Social Care,Physical Support Older People (85+),ADULT SERVICES,Third Party Payments,Other establishments,30/04/18,6219892,225.11,VENDOR,B S CARE LTD,100114
Portsmouth City Council,PCC,Adult Social Care,Physical Support Adults (18 - 64),ADULT SERVICES,Third Party Payments,Other establishments,30/04/18,6219892,471.6,VENDOR,B S CARE LTD,100114
Portsmouth City Council,PCC,Adult Social Care,Physical Support Adults (18 - 64),ADULT SERVICES,Third Party Payments,Other establishments,30/04/18,6219892,196.32,VENDOR,B S CARE LTD,100114
Portsmouth City Council,PCC,Adult Social Care,Physical Support Older People (85+),ADULT SERVICES,Third Party Payments,Other establishments,30/04/18,6219892,1246.28,VENDOR,B S CARE LTD,100114
Portsmouth City Council,PCC,Adult Social Care,Physical Support Older People (85+),ADULT SERVICES,Third Party Payments,Other establishments,30/04/18,6219892,31.44,VENDOR,B S CARE LTD,100114
Portsmouth City Council,PCC,Adult Social Care,Physical Support Older People (85+),ADULT SERVICES,Third Party Payments,Other establishments,30/04/18,6219892,31.44,VENDOR,B S CARE LTD,100114
Portsmouth City Council,PCC,Adult Social Care,Physical Support Older People (85+),ADULT SERVICES,Third Party Payments,Other establishments,30/04/18,6219892,526.04,VENDOR,B S CARE LTD,100114
Portsmouth City Council,PCC,Adult Social Care,Physical Support Older People (85+),ADULT SERVICES,Third Party Payments,Other establishments,30/04/18,6219892,31.44,VENDOR,B S CARE LTD,100114
Portsmouth City Council,PCC,Adult Social Care,Physical Support Older People (85+),ADULT SERVICES,Third Party Payments,Other establishments,30/04/18,6219892,314.4,VENDOR,B S CARE LTD,100114
Portsmouth City Council,PCC,Adult Social Care,Physical Support Older People (85+),ADULT SERVICES,Third Party Payments,Other establishments,30/04/18,6219892,130.88,VENDOR,B S CARE LTD,100114
Portsmouth City Council,PCC,Adult Social Care,Physical Support Older People (85+),ADULT SERVICES,Third Party Payments,Other establishments,30/04/18,6219892,707.4,VENDOR,B S CARE LTD,100114
Portsmouth City Council,PCC,Adult Social Care,Physical Support Older People (85+),ADULT SERVICES,Third Party Payments,Other establishments,30/04/18,6219892,286.62,VENDOR,B S CARE LTD,100114
Portsmouth City Council,PCC,Adult Social Care,Physical Support Older People (85+),ADULT SERVICES,Third Party Payments,Other establishments,30/04/18,6219892,314.4,VENDOR,B S CARE LTD,100114
Portsmouth City Council,PCC,Adult Social Care,Physical Support Older People (85+),ADULT SERVICES,Third Party Payments,Other establishments,30/04/18,6219892,130.88,VENDOR,B S CARE LTD,100114
Portsmouth City Council,PCC,Adult Social Care,Physical Support Older People (85+),ADULT SERVICES,Third Party Payments,Other establishments,30/04/18,6219892,102.18,VENDOR,B S CARE LTD,100114
Portsmouth City Council,PCC,Adult Social Care,Physical Support Older People (85+),ADULT SERVICES,Third Party Payments,Other establishments,30/04/18,6219892,65.44,VENDOR,B S CARE LTD,100114
Portsmouth City Council,PCC,Adult Social Care,Physical Support Older People (85+),ADULT SERVICES,Third Party Payments,Other establishments,30/04/18,6219892,157.2,VENDOR,B S CARE LTD,100114
Portsmouth City Council,PCC,Adult Social Care,Physical Support Older People (85+),ADULT SERVICES,Third Party Payments,Other establishments,30/04/18,6219892,65.44,VENDOR,B S CARE LTD,100114
Portsmouth City Council,PCC,Adult Social Care,Physical Support Older People (85+),ADULT SERVICES,Third Party Payments,Other establishments,30/04/18,6219892,554.13,VENDOR,B S CARE LTD,100114
Portsmouth City Council,PCC,Adult Social Care,Physical Support Adults (75 - 84),ADULT SERVICES,Third Party Payments,Other establishments,30/04/18,6219892,314.4,VENDOR,B S CARE LTD,100114
Portsmouth City Council,PCC,Adult Social Care,Physical Support Older People (85+),ADULT SERVICES,Third Party Payments,Other establishments,30/04/18,6219892,130.88,VENDOR,B S CARE LTD,100114
Portsmouth City Council,PCC,Adult Social Care,Physical Support Adults (18 - 64),ADULT SERVICES,Third Party Payments,Other establishments,30/04/18,6219892,212.22,VENDOR,B S CARE LTD,100114
Portsmouth City Council,PCC,Adult Social Care,Physical Support Adults (18 - 64),ADULT SERVICES,Third Party Payments,Other establishments,30/04/18,6219892,23.58,VENDOR,B S CARE LTD,100114
Portsmouth City Council,PCC,Adult Social Care,Physical Support Adults (18 - 64),ADULT SERVICES,Third Party Payments,Other establishments,30/04/18,6219892,49.08,VENDOR,B S CARE LTD,100114
Portsmouth City Council,PCC,Adult Social Care,Physical Support Adults (18 - 64),ADULT SERVICES,Third Party Payments,Other establishments,30/04/18,6219892,24.54,VENDOR,B S CARE LTD,100114
Portsmouth City Council,PCC,Adult Social Care,Physical Support Adults (18 - 64),ADULT SERVICES,Third Party Payments,Other establishments,30/04/18,6219892,70.74,VENDOR,B S CARE LTD,100114
Portsmouth City Council,PCC,Adult Social Care,Physical Support Adults (18 - 64),ADULT SERVICES,Third Party Payments,Other establishments,30/04/18,6219892,70.74,VENDOR,B S CARE LTD,100114
Portsmouth City Council,PCC,Adult Social Care,Physical Support Adults (18 - 64),ADULT SERVICES,Third Party Payments,Other establishments,30/04/18,6219892,24.54,VENDOR,B S CARE LTD,100114
Portsmouth City Council,PCC,Adult Social Care,Physical Support Adults (18 - 64),ADULT SERVICES,Third Party Payments,Other establishments,30/04/18,6219892,24.54,VENDOR,B S CARE LTD,100114
Portsmouth City Council,PCC,Adult Social Care,Physical Support Older People (85+),ADULT SERVICES,Third Party Payments,Other establishments,30/04/18,6219892,157.2,VENDOR,B S CARE LTD,100114
Portsmouth City Council,PCC,Adult Social Care,Physical Support Older People (85+),ADULT SERVICES,Third Party Payments,Other establishments,30/04/18,6219892,65.44,VENDOR,B S CARE LTD,100114
Portsmouth City Council,PCC,Adult Social Care,Social Care Activities,ADULT SERVICES,Third Party Payments,Other establishments,30/04/18,6219892,110.04,VENDOR,B S CARE LTD,100114
Portsmouth City Council,PCC,Adult Social Care,Physical Support Older People (85+),ADULT SERVICES,Third Party Payments,Other establishments,30/04/18,6219892,561.99,VENDOR,B S CARE LTD,100114
Portsmouth City Council,PCC,Adult Social Care,Physical Support Older People (85+),ADULT SERVICES,Third Party Payments,Other establishments,30/04/18,6219892,233.13,VENDOR,B S CARE LTD,100114
Portsmouth City Council,PCC,Adult Social Care,Physical Support Adults (75 - 84),ADULT SERVICES,Third Party Payments,Other establishments,30/04/18,6219892,495.18,VENDOR,B S CARE LTD,100114
Portsmouth City Council,PCC,Adult Social Care,Physical Support Adults (18 - 64),ADULT SERVICES,Third Party Payments,Other establishments,30/04/18,6219892,261.76,VENDOR,B S CARE LTD,100114
Portsmouth City Council,PCC,Adult Social Care,Physical Support Older People (65-74),ADULT SERVICES,Third Party Payments,Other establishments,30/04/18,6219892,628.8,VENDOR,B S CARE LTD,100114
Portsmouth City Council,PCC,Adult Social Care,Physical Support Older People (85+),ADULT SERVICES,Third Party Payments,Other establishments,30/04/18,6219892,275.1,VENDOR,B S CARE LTD,100114
Portsmouth City Council,PCC,Adult Social Care,Physical Support Older People (85+),ADULT SERVICES,Third Party Payments,Other establishments,30/04/18,6219892,130.88,VENDOR,B S CARE LTD,100114
Portsmouth City Council,PCC,Adult Social Care,Physical Support Older People (85+),ADULT SERVICES,Third Party Payments,Other establishments,30/04/18,6219892,330.12,VENDOR,B S CARE LTD,100114
Portsmouth City Council,PCC,Adult Social Care,Physical Support Older People (85+),ADULT SERVICES,Third Party Payments,Other establishments,30/04/18,6219892,130.88,VENDOR,B S CARE LTD,100114
Portsmouth City Council,PCC,Adult Social Care,Physical Support Older People (85+),ADULT SERVICES,Third Party Payments,Other establishments,30/04/18,6219892,298.68,VENDOR,B S CARE LTD,100114
Portsmouth City Council,PCC,Adult Social Care,Physical Support Older People (85+),ADULT SERVICES,Third Party Payments,Other establishments,30/04/18,6219892,130.88,VENDOR,B S CARE LTD,100114
Portsmouth City Council,PCC,Adult Social Care,Social Care Activities,ADULT SERVICES,Third Party Payments,Other establishments,30/04/18,6219892,627.67,VENDOR,B S CARE LTD,100114
Portsmouth City Council,PCC,Adult Social Care,Social Care Activities,ADULT SERVICES,Third Party Payments,Other establishments,30/04/18,6219892,30.42,VENDOR,B S CARE LTD,100114
Portsmouth City Council,PCC,Adult Social Care,Social Care Activities,ADULT SERVICES,Third Party Payments,Other establishments,30/04/18,6219892,251.52,VENDOR,B S CARE LTD,100114
Portsmouth City Council,PCC,Adult Social Care,Physical Support Older People (85+),ADULT SERVICES,Third Party Payments,Other establishments,30/04/18,6219892,471.6,VENDOR,B S CARE LTD,100114
Portsmouth City Council,PCC,Adult Social Care,Physical Support Older People (85+),ADULT SERVICES,Third Party Payments,Other establishments,30/04/18,6219892,196.32,VENDOR,B S CARE LTD,100114
Portsmouth City Council,PCC,Adult Social Care,Physical Support Older People (85+),ADULT SERVICES,Third Party Payments,Other establishments,12/04/18,6216702,2616,VENDOR,BARCHESTER HEALTHCARE LTD,117901
Portsmouth City Council,PCC,Adult Social Care,Physical Support Older People (85+),ADULT SERVICES,Third Party Payments,Other establishments,27/04/18,6219734,2545.8,VENDOR,BARCHESTER HEALTHCARE LTD,117901
Portsmouth City Council,PCC,Adult Social Care,Support with Memory and Cognition Older People (85+),ADULT SERVICES,Third Party Payments,Other establishments,13/04/18,6216930,2391.3,VENDOR,BAYITH REST HOME,101832
Portsmouth City Council,PCC,Adult Social Care,Mental Health Support Adults (18 - 64),ADULT SERVICES,Third Party Payments,Other establishments,13/04/18,6216931,1664.1,VENDOR,BEACONSFIELD RESIDENTIAL CARE HOME,100568
Portsmouth City Council,PCC,Adult Social Care,Mental Health Support Adults (18 - 64),ADULT SERVICES,Income,Customer and client receipts,13/04/18,6216931,-438.3,VENDOR,BEACONSFIELD RESIDENTIAL CARE HOME,100568
Portsmouth City Council,PCC,Adult Social Care,Mental Health Support Adults (18 - 64),ADULT SERVICES,Third Party Payments,Other establishments,12/04/18,6216703,1664.1,VENDOR,BEACONSFIELD RESIDENTIAL CARE HOME,100568
Portsmouth City Council,PCC,Adult Social Care,Mental Health Support Adults (18 - 64),ADULT SERVICES,Third Party Payments,Other establishments,12/04/18,6216703,2448,VENDOR,BEACONSFIELD RESIDENTIAL CARE HOME,100568
Portsmouth City Council,PCC,Adult Social Care,Mental Health Support Adults (18 - 64),ADULT SERVICES,Third Party Payments,Other establishments,12/04/18,6216703,1664.1,VENDOR,BEACONSFIELD RESIDENTIAL CARE HOME,100568
Portsmouth City Council,PCC,Adult Social Care,Mental Health Support Adults (18 - 64),ADULT SERVICES,Third Party Payments,Other establishments,12/04/18,6216703,1901.1,VENDOR,BEACONSFIELD RESIDENTIAL CARE HOME,100568
Portsmouth City Council,PCC,Adult Social Care,Mental Health Support Adults (18 - 64),ADULT SERVICES,Third Party Payments,Other establishments,13/04/18,6216931,1664.1,VENDOR,BEACONSFIELD RESIDENTIAL CARE HOME,100568
Portsmouth City Council,PCC,Adult Social Care,Mental Health Support Adults (18 - 64),ADULT SERVICES,Income,Customer and client receipts,13/04/18,6216931,-573,VENDOR,BEACONSFIELD RESIDENTIAL CARE HOME,100568
Portsmouth City Council,PCC,Adult Social Care,Mental Health Support Adults (18 - 64),ADULT SERVICES,Third Party Payments,Other establishments,12/04/18,6216703,1664.1,VENDOR,BEACONSFIELD RESIDENTIAL CARE HOME,100568
Portsmouth City Council,PCC,Adult Social Care,Mental Health Support Adults (18 - 64),ADULT SERVICES,Third Party Payments,Other establishments,12/04/18,6216703,2238.6,VENDOR,BEACONSFIELD RESIDENTIAL CARE HOME,100568
Portsmouth City Council,PCC,Adult Social Care,Mental Health Support Adults (18 - 64),ADULT SERVICES,Third Party Payments,Other establishments,12/04/18,6216703,1664.1,VENDOR,BEACONSFIELD RESIDENTIAL CARE HOME,100568
Portsmouth City Council,PCC,Adult Social Care,Social Care Activities,ADULT SERVICES,Third Party Payments,Other establishments,12/04/18,6216703,3126,VENDOR,BEACONSFIELD RESIDENTIAL CARE HOME,100568
Portsmouth City Council,PCC,Adult Social Care,Mental Health Support Adults (18 - 64),ADULT SERVICES,Third Party Payments,Other establishments,12/04/18,6216703,1664.1,VENDOR,BEACONSFIELD RESIDENTIAL CARE HOME,100568
Portsmouth City Council,PCC,Adult Social Care,Mental Health Support Adults (18 - 64),ADULT SERVICES,Third Party Payments,Other establishments,13/04/18,6216931,1664.1,VENDOR,BEACONSFIELD RESIDENTIAL CARE HOME,100568
Portsmouth City Council,PCC,Adult Social Care,Mental Health Support Adults (18 - 64),ADULT SERVICES,Income,Customer and client receipts,13/04/18,6216931,-438.3,VENDOR,BEACONSFIELD RESIDENTIAL CARE HOME,100568
Portsmouth City Council,PCC,Adult Social Care,Mental Health Support Adults (18 - 64),ADULT SERVICES,Third Party Payments,Other establishments,12/04/18,6216703,1664.1,VENDOR,BEACONSFIELD RESIDENTIAL CARE HOME,100568
Portsmouth City Council,PCC,Adult Social Care,Mental Health Support Adults (18 - 64),ADULT SERVICES,Third Party Payments,Other establishments,12/04/18,6216703,1664.1,VENDOR,BEACONSFIELD RESIDENTIAL CARE HOME,100568
Portsmouth City Council,PCC,Adult Social Care,Support with Memory and Cognition Older People (85+),ADULT SERVICES,Third Party Payments,Other establishments,12/04/18,6216703,1799.1,VENDOR,BEACONSFIELD RESIDENTIAL CARE HOME,100568
Portsmouth City Council,PCC,Adult Social Care,Mental Health Support Adults (18 - 64),ADULT SERVICES,Third Party Payments,Other establishments,13/04/18,6216931,1664.1,VENDOR,BEACONSFIELD RESIDENTIAL CARE HOME,100568
Portsmouth City Council,PCC,Adult Social Care,Mental Health Support Adults (18 - 64),ADULT SERVICES,Income,Customer and client receipts,13/04/18,6216931,-438.3,VENDOR,BEACONSFIELD RESIDENTIAL CARE HOME,100568
Portsmouth City Council,PCC,Adult Social Care,Mental Health Support Adults (18 - 64),ADULT SERVICES,Third Party Payments,Other establishments,12/04/18,6216703,1664.1,VENDOR,BEACONSFIELD RESIDENTIAL CARE HOME,100568
Portsmouth City Council,PCC,Adult Social Care,Mental Health Support Adults (18 - 64),ADULT SERVICES,Income,Customer and client receipts,12/04/18,6216703,-368.1,VENDOR,BEACONSFIELD RESIDENTIAL CARE HOME,100568
Portsmouth City Council,PCC,Adult Social Care,Mental Health Support Adults (18 - 64),ADULT SERVICES,Third Party Payments,Other establishments,12/04/18,6216703,1664.1,VENDOR,BEACONSFIELD RESIDENTIAL CARE HOME,100568
Portsmouth City Council,PCC,Adult Social Care,Mental Health Support Adults (18 - 64),ADULT SERVICES,Third Party Payments,Other establishments,13/04/18,6216931,1664.1,VENDOR,BEACONSFIELD RESIDENTIAL CARE HOME,100568
Portsmouth City Council,PCC,Adult Social Care,Mental Health Support Adults (18 - 64),ADULT SERVICES,Income,Customer and client receipts,13/04/18,6216931,-438.3,VENDOR,BEACONSFIELD RESIDENTIAL CARE HOME,100568
Portsmouth City Council,PCC,Adult Social Care,Mental Health Support Adults (18 - 64),ADULT SERVICES,Third Party Payments,Other establishments,12/04/18,6216703,1664.1,VENDOR,BEACONSFIELD RESIDENTIAL CARE HOME,100568
Portsmouth City Council,PCC,Adult Social Care,Social Care Activities,ADULT SERVICES,Third Party Payments,Other establishments,12/04/18,6216704,3389.15,VENDOR,BEDHAMPTON NURSING HOME,100569
Portsmouth City Council,PCC,Adult Social Care,Social Care Activities,ADULT SERVICES,Third Party Payments,Other establishments,13/04/18,6216932,4221.3,VENDOR,BEDHAMPTON NURSING HOME,100569
Portsmouth City Council,PCC,Adult Social Care,Social Care Activities,ADULT SERVICES,Third Party Payments,Other establishments,13/04/18,6216932,4221.3,VENDOR,BEDHAMPTON NURSING HOME,100569
Portsmouth City Council,PCC,Adult Social Care,Physical Support Older People (85+),ADULT SERVICES,Third Party Payments,Other establishments,25/04/18,6219036,4114.29,VENDOR,BEDHAMPTON NURSING HOME,100569
Portsmouth City Council,PCC,Adult Social Care,Social Care Activities,ADULT SERVICES,Third Party Payments,Other establishments,13/04/18,6216932,3750,VENDOR,BEDHAMPTON NURSING HOME,100569
Portsmouth City Council,PCC,Adult Social Care,Learning Disability Support  Adults (18 - 64),ADULT SERVICES,Third Party Payments,Other establishments,12/04/18,6216705,360,VENDOR,BENEFICIAL FOUNDATION,100585
Portsmouth City Council,PCC,Adult Social Care,Learning Disability Support  Adults (18 - 64),ADULT SERVICES,Third Party Payments,Other establishments,12/04/18,6216705,240,VENDOR,BENEFICIAL FOUNDATION,100585
Portsmouth City Council,PCC,Adult Social Care,Physical Support Older People (65-74),ADULT SERVICES,Supplies and Services,Catering,06/04/18,6215834,195.88,VENDOR,BFS GROUP LTD T/A BIDFOOD,100106
Portsmouth City Council,PCC,Adult Social Care,Support with Memory and Cognition Older People (65 - 74),ADULT SERVICES,Supplies and Services,Catering,06/04/18,6215834,406.3,VENDOR,BFS GROUP LTD T/A BIDFOOD,100106
Portsmouth City Council,PCC,Adult Social Care,Physical Support Older People (65-74),ADULT SERVICES,Supplies and Services,Catering,13/04/18,6216935,113.85,VENDOR,BFS GROUP LTD T/A BIDFOOD,100106
Portsmouth City Council,PCC,Adult Social Care,Physical Support Older People (65-74),ADULT SERVICES,Supplies and Services,Catering,20/04/18,6218547,90.98,VENDOR,BFS GROUP LTD T/A BIDFOOD,100106
Portsmouth City Council,PCC,Adult Social Care,Support with Memory and Cognition Older People (65 - 74),ADULT SERVICES,Supplies and Services,Catering,20/04/18,6218547,334.7,VENDOR,BFS GROUP LTD T/A BIDFOOD,100106
Portsmouth City Council,PCC,Adult Social Care,Social Care Activities,ADULT SERVICES,Third Party Payments,Other establishments,12/04/18,6216709,23116.98,VENDOR,BLUEBELL NURSING HOME,100112
Portsmouth City Council,PCC,Adult Social Care,Social Care Activities,ADULT SERVICES,Third Party Payments,Other establishments,12/04/18,6216709,14829.4,VENDOR,BLUEBELL NURSING HOME,100112
Portsmouth City Council,PCC,Adult Social Care,Social Care Activities,ADULT SERVICES,Third Party Payments,Other establishments,12/04/18,6216709,4848,VENDOR,BLUEBELL NURSING HOME,100112
Portsmouth City Council,PCC,Adult Social Care,Social Care Activities,ADULT SERVICES,Third Party Payments,Other establishments,12/04/18,6216709,3348.3,VENDOR,BLUEBELL NURSING HOME,100112
Portsmouth City Council,PCC,Adult Social Care,Social Care Activities,ADULT SERVICES,Third Party Payments,Other establishments,12/04/18,6216709,25797.9,VENDOR,BLUEBELL NURSING HOME,100112
Portsmouth City Council,PCC,Adult Social Care,Physical Support Older People (65-74),ADULT SERVICES,Third Party Payments,Other establishments,12/04/18,6216709,1799.98,VENDOR,BLUEBELL NURSING HOME,100112
Portsmouth City Council,PCC,Adult Social Care,Physical Support Older People (85+),ADULT SERVICES,Third Party Payments,Other establishments,12/04/18,6216709,36388.09,VENDOR,BLUEBELL NURSING HOME,100112
Portsmouth City Council,PCC,Adult Social Care,Physical Support Older People (85+),ADULT SERVICES,Third Party Payments,Other establishments,12/04/18,6216709,2604,VENDOR,BLUEBELL NURSING HOME,100112
Portsmouth City Council,PCC,Adult Social Care,Support with Memory and Cognition Older People (85+),ADULT SERVICES,Third Party Payments,Other establishments,12/04/18,6216710,2230.68,VENDOR,BLUEWATER CARE HOME LTD,139925
Portsmouth City Council,PCC,Adult Social Care,Commissioning & service delivery,ADULT SERVICES,Employees,Direct employee expenses,03/04/18,6215286,625,VENDOR,BOURNEMOUTH UNIVERSITY,112290
Portsmouth City Council,PCC,Adult Social Care,Commissioning & service delivery,ADULT SERVICES,Employees,Direct employee expenses,03/04/18,6215286,625,VENDOR,BOURNEMOUTH UNIVERSITY,112290
Portsmouth City Council,PCC,Adult Social Care,Commissioning & service delivery,ADULT SERVICES,Employees,Direct employee expenses,03/04/18,6215286,625,VENDOR,BOURNEMOUTH UNIVERSITY,112290
Portsmouth City Council,PCC,Adult Social Care,Commissioning & service delivery,ADULT SERVICES,Employees,Direct employee expenses,03/04/18,6215286,625,VENDOR,BOURNEMOUTH UNIVERSITY,112290
Portsmouth City Council,PCC,Adult Social Care,Commissioning & service delivery,ADULT SERVICES,Employees,Direct employee expenses,03/04/18,6215286,625,VENDOR,BOURNEMOUTH UNIVERSITY,112290
Portsmouth City Council,PCC,Adult Social Care,Social Care Activities,ADULT SERVICES,Third Party Payments,Other establishments,12/04/18,6216713,15576.56,VENDOR,BRAEMAR RCH LIMITED,102015
Portsmouth City Council,PCC,Adult Social Care,Social Care Activities,ADULT SERVICES,Third Party Payments,Other establishments,12/04/18,6216714,3000,VENDOR,BRAEMAR RCH LIMITED,102015
Portsmouth City Council,PCC,Adult Social Care,Physical Support Older People (85+),ADULT SERVICES,Third Party Payments,Other establishments,12/04/18,6216714,-3244.32,VENDOR,BRAEMAR RCH LIMITED,102015
Portsmouth City Council,PCC,Adult Social Care,Support with Memory and Cognition Older People (85+),ADULT SERVICES,Third Party Payments,Other establishments,12/04/18,6216714,38314.23,VENDOR,BRAEMAR RCH LIMITED,102015
Portsmouth City Council,PCC,Adult Social Care,Learning Disability Support  Adults (18 - 64),ADULT SERVICES,Third Party Payments,Other establishments,12/04/18,6216714,3433.2,VENDOR,BRAEMAR RCH LIMITED,102015
Portsmouth City Council,PCC,Adult Social Care,Social Care Activities,ADULT SERVICES,Third Party Payments,Other establishments,12/04/18,6216713,11170.08,VENDOR,BRAEMAR RCH LIMITED,102015
Portsmouth City Council,PCC,Adult Social Care,Physical Support Older People (85+),ADULT SERVICES,Third Party Payments,Other establishments,12/04/18,6216713,30913.86,VENDOR,BRAEMAR RCH LIMITED,102015
Portsmouth City Council,PCC,Adult Social Care,Support with Memory and Cognition Older People (85+),ADULT SERVICES,Third Party Payments,Other establishments,12/04/18,6216713,-1752.66,VENDOR,BRAEMAR RCH LIMITED,102015
Portsmouth City Council,PCC,Adult Social Care,Support with Memory and Cognition Older People (85+),ADULT SERVICES,Third Party Payments,Other establishments,12/04/18,6216713,3670.2,VENDOR,BRAEMAR RCH LIMITED,102015
Portsmouth City Council,PCC,Adult Social Care,Commissioning & service delivery,ADULT SERVICES,Supplies and Services,Communications and computing,18/04/18,6217905,729.79,COMPANY,BRITISH TELECOMMUNICATIONS PLC,100132
Portsmouth City Council,PCC,Adult Social Care,Support with Memory and Cognition Older People (65 - 74),ADULT SERVICES,Supplies and Services,Communications and computing,12/04/18,6216715,39.49,COMPANY,BRITISH TELECOMMUNICATIONS PLC,100132
Portsmouth City Council,PCC,Adult Social Care,Support with Memory and Cognition Older People (65 - 74),ADULT SERVICES,Supplies and Services,Communications and computing,12/04/18,6216715,58.61,COMPANY,BRITISH TELECOMMUNICATIONS PLC,100132
Portsmouth City Council,PCC,Adult Social Care,Learning Disability Support  Adults (18 - 64),ADULT SERVICES,Third Party Payments,Other establishments,12/04/18,6216716,10446,VENDOR,BROOKLANDS CARE LIMITED,128129
Portsmouth City Council,PCC,Adult Social Care,Social Care Activities,ADULT SERVICES,Third Party Payments,Other establishments,12/04/18,6216718,4146.76,VENDOR,BROOKVALE HOMES LTD,101126
Portsmouth City Council,PCC,Adult Social Care,Social Care Activities,ADULT SERVICES,Third Party Payments,Other establishments,12/04/18,6216718,3573.17,VENDOR,BROOKVALE HOMES LTD,101126
Portsmouth City Council,PCC,Adult Social Care,Social Care Activities,ADULT SERVICES,Third Party Payments,Other establishments,12/04/18,6216718,22285.5,VENDOR,BROOKVALE HOMES LTD,101126
Portsmouth City Council,PCC,Adult Social Care,Social Care Activities,ADULT SERVICES,Third Party Payments,Other establishments,12/04/18,6216718,11942.7,VENDOR,BROOKVALE HOMES LTD,101126
Portsmouth City Council,PCC,Adult Social Care,Social Care Activities,ADULT SERVICES,Third Party Payments,Other establishments,12/04/18,6216718,63949.4,VENDOR,BROOKVALE HOMES LTD,101126
Portsmouth City Council,PCC,Adult Social Care,Physical Support Older People (85+),ADULT SERVICES,Third Party Payments,Other establishments,12/04/18,6216718,17513.49,VENDOR,BROOKVALE HOMES LTD,101126
Portsmouth City Council,PCC,Adult Social Care,Physical Support Older People (85+),ADULT SERVICES,Third Party Payments,Other establishments,12/04/18,6216717,2249.1,VENDOR,BROOKVALE HOMES LTD,101126
Portsmouth City Council,PCC,Adult Social Care,Support with Memory and Cognition Older People (85+),ADULT SERVICES,Third Party Payments,Other establishments,23/04/18,6218742,1594.4,VENDOR,CALDWELL & BELING LTD,143865
Portsmouth City Council,PCC,Adult Social Care,Support with Memory and Cognition Older People (85+),ADULT SERVICES,Third Party Payments,Other establishments,23/04/18,6218742,2391.6,VENDOR,CALDWELL & BELING LTD,143865
Portsmouth City Council,PCC,Adult Social Care,Support with Memory and Cognition Older People (85+),ADULT SERVICES,Third Party Payments,Other establishments,23/04/18,6218742,2471.32,VENDOR,CALDWELL & BELING LTD,143865
Portsmouth City Council,PCC,Adult Social Care,Support with Memory and Cognition Older People (85+),ADULT SERVICES,Third Party Payments,Other establishments,12/04/18,6216719,2258.4,VENDOR,CAMPION GARDENS LIMITED,119000
Portsmouth City Council,PCC,Adult Social Care,Learning Disability Support  Adults (18 - 64),ADULT SERVICES,Third Party Payments,Other establishments,12/04/18,6216721,6055.71,VENDOR,CARE MANAGEMENT GROUP LIMITED,101894
Portsmouth City Council,PCC,Adult Social Care,Learning Disability Support  Adults (18 - 64),ADULT SERVICES,Third Party Payments,Other establishments,12/04/18,6216721,3792.86,VENDOR,CARE MANAGEMENT GROUP LIMITED,101894
Portsmouth City Council,PCC,Adult Social Care,Learning Disability Support  Adults (18 - 64),ADULT SERVICES,Third Party Payments,Other establishments,12/04/18,6216721,3848.74,VENDOR,CARE MANAGEMENT GROUP LIMITED,101894
Portsmouth City Council,PCC,Adult Social Care,Learning Disability Support  Adults (18 - 64),ADULT SERVICES,Third Party Payments,Other establishments,12/04/18,6216721,6981.3,VENDOR,CARE MANAGEMENT GROUP LIMITED,101894
Portsmouth City Council,PCC,Adult Social Care,Learning Disability Support  Adults (18 - 64),ADULT SERVICES,Third Party Payments,Other establishments,12/04/18,6216721,4461.43,VENDOR,CARE MANAGEMENT GROUP LIMITED,101894
Portsmouth City Council,PCC,Adult Social Care,Learning Disability Support  Adults (18 - 64),ADULT SERVICES,Third Party Payments,Other establishments,12/04/18,6216721,4041.43,VENDOR,CARE MANAGEMENT GROUP LIMITED,101894
Portsmouth City Council,PCC,Adult Social Care,Learning Disability Support  Adults (18 - 64),ADULT SERVICES,Third Party Payments,Other establishments,12/04/18,6216721,3544.29,VENDOR,CARE MANAGEMENT GROUP LIMITED,101894
Portsmouth City Council,PCC,Adult Social Care,Learning Disability Support  Adults (18 - 64),ADULT SERVICES,Third Party Payments,Other establishments,12/04/18,6216721,3372.86,VENDOR,CARE MANAGEMENT GROUP LIMITED,101894
Portsmouth City Council,PCC,Adult Social Care,Learning Disability Support  Adults (18 - 64),ADULT SERVICES,Third Party Payments,Other establishments,12/04/18,6216721,3527.14,VENDOR,CARE MANAGEMENT GROUP LIMITED,101894
Portsmouth City Council,PCC,Adult Social Care,Learning Disability Support  Adults (18 - 64),ADULT SERVICES,Third Party Payments,Other establishments,12/04/18,6216721,6167.14,VENDOR,CARE MANAGEMENT GROUP LIMITED,101894
Portsmouth City Council,PCC,Adult Social Care,Learning Disability Support  Adults (18 - 64),ADULT SERVICES,Third Party Payments,Other establishments,12/04/18,6216721,5002.76,VENDOR,CARE MANAGEMENT GROUP LIMITED,101894
Portsmouth City Council,PCC,Adult Social Care,Learning Disability Support  Adults (18 - 64),ADULT SERVICES,Third Party Payments,Other establishments,12/04/18,6216721,3998.96,VENDOR,CARE MANAGEMENT GROUP LIMITED,101894
Portsmouth City Council,PCC,Adult Social Care,Learning Disability Support  Adults (18 - 64),ADULT SERVICES,Third Party Payments,Other establishments,12/04/18,6216721,4397.66,VENDOR,CARE MANAGEMENT GROUP LIMITED,101894
Portsmouth City Council,PCC,Adult Social Care,Learning Disability Support  Adults (18 - 64),ADULT SERVICES,Third Party Payments,Other establishments,12/04/18,6216721,4204.29,VENDOR,CARE MANAGEMENT GROUP LIMITED,101894
Portsmouth City Council,PCC,Adult Social Care,Learning Disability Support  Adults (18 - 64),ADULT SERVICES,Third Party Payments,Other establishments,12/04/18,6216721,5537.14,VENDOR,CARE MANAGEMENT GROUP LIMITED,101894
Portsmouth City Council,PCC,Adult Social Care,Social Care Activities,ADULT SERVICES,Third Party Payments,Other establishments,12/04/18,6216722,30289,VENDOR,CARE QUALITY COMMISSION,128722
Portsmouth City Council,PCC,Adult Social Care,Social Care Activities,ADULT SERVICES,Third Party Payments,Other establishments,13/04/18,6216953,15738.6,VENDOR,CARETECH COMMUNITY SERVICES LIMITED,127409
Portsmouth City Council,PCC,Adult Social Care,Mental Health Support Adults (18 - 64),ADULT SERVICES,Third Party Payments,Other establishments,12/04/18,6216723,2630.57,VENDOR,CARETECH COMMUNITY SERVICES LIMITED,127409
Portsmouth City Council,PCC,Adult Social Care,Mental Health Support Adults (18 - 64),ADULT SERVICES,Third Party Payments,Other establishments,12/04/18,6216723,-145.54,VENDOR,CARETECH COMMUNITY SERVICES LIMITED,127409
Portsmouth City Council,PCC,Adult Social Care,Mental Health Support Adults (18 - 64),ADULT SERVICES,Third Party Payments,Other establishments,12/04/18,6216723,2545.71,VENDOR,CARETECH COMMUNITY SERVICES LIMITED,127409
Portsmouth City Council,PCC,Adult Social Care,Mental Health Support Adults (18 - 64),ADULT SERVICES,Third Party Payments,Other establishments,12/04/18,6216723,2630.57,VENDOR,CARETECH COMMUNITY SERVICES LIMITED,127409
Portsmouth City Council,PCC,Adult Social Care,Mental Health Support Adults (18 - 64),ADULT SERVICES,Third Party Payments,Other establishments,12/04/18,6216723,3759.86,VENDOR,CARETECH COMMUNITY SERVICES LIMITED,127409
Portsmouth City Council,PCC,Adult Social Care,Physical Support Older People (85+),ADULT SERVICES,Third Party Payments,Other establishments,05/04/18,6215615,432.3,VENDOR,CARING FOR YOU LIMITED,100116
Portsmouth City Council,PCC,Adult Social Care,Physical Support Older People (65-74),ADULT SERVICES,Third Party Payments,Other establishments,05/04/18,6215615,550.2,VENDOR,CARING FOR YOU LIMITED,100116
Portsmouth City Council,PCC,Adult Social Care,Physical Support Older People (85+),ADULT SERVICES,Third Party Payments,Other establishments,05/04/18,6215615,125.76,VENDOR,CARING FOR YOU LIMITED,100116
Portsmouth City Council,PCC,Adult Social Care,Physical Support Older People (65-74),ADULT SERVICES,Third Party Payments,Other establishments,05/04/18,6215615,-31.44,VENDOR,CARING FOR YOU LIMITED,100116
Portsmouth City Council,PCC,Adult Social Care,Physical Support Older People (85+),ADULT SERVICES,Third Party Payments,Other establishments,26/04/18,6219625,471.6,VENDOR,CARING FOR YOU LIMITED,100116
Portsmouth City Council,PCC,Adult Social Care,Physical Support Older People (85+),ADULT SERVICES,Third Party Payments,Other establishments,26/04/18,6219625,196.32,VENDOR,CARING FOR YOU LIMITED,100116
Portsmouth City Council,PCC,Adult Social Care,Physical Support Older People (85+),ADULT SERVICES,Third Party Payments,Other establishments,26/04/18,6219625,408.72,VENDOR,CARING FOR YOU LIMITED,100116
Portsmouth City Council,PCC,Adult Social Care,Physical Support Older People (85+),ADULT SERVICES,Third Party Payments,Other establishments,26/04/18,6219625,167.85,VENDOR,CARING FOR YOU LIMITED,100116
Portsmouth City Council,PCC,Adult Social Care,Physical Support Older People (85+),ADULT SERVICES,Third Party Payments,Other establishments,26/04/18,6219625,314.4,VENDOR,CARING FOR YOU LIMITED,100116
Portsmouth City Council,PCC,Adult Social Care,Physical Support Older People (85+),ADULT SERVICES,Third Party Payments,Other establishments,26/04/18,6219625,130.88,VENDOR,CARING FOR YOU LIMITED,100116
Portsmouth City Council,PCC,Adult Social Care,Physical Support Older People (85+),ADULT SERVICES,Third Party Payments,Other establishments,26/04/18,6219625,161.13,VENDOR,CARING FOR YOU LIMITED,100116
Portsmouth City Council,PCC,Adult Social Care,Physical Support Older People (85+),ADULT SERVICES,Third Party Payments,Other establishments,26/04/18,6219625,61.51,VENDOR,CARING FOR YOU LIMITED,100116
Portsmouth City Council,PCC,Adult Social Care,Physical Support Older People (85+),ADULT SERVICES,Third Party Payments,Other establishments,26/04/18,6219625,98.16,VENDOR,CARING FOR YOU LIMITED,100116
Portsmouth City Council,PCC,Adult Social Care,Sensory Support Older People (75 - 84),ADULT SERVICES,Third Party Payments,Other establishments,26/04/18,6219625,235.8,VENDOR,CARING FOR YOU LIMITED,100116
Portsmouth City Council,PCC,Adult Social Care,Learning Disability Support  Adults (18 - 64),ADULT SERVICES,Third Party Payments,Other establishments,26/04/18,6219625,282.96,VENDOR,CARING FOR YOU LIMITED,100116
Portsmouth City Council,PCC,Adult Social Care,Learning Disability Support  Adults (18 - 64),ADULT SERVICES,Third Party Payments,Other establishments,26/04/18,6219625,98.16,VENDOR,CARING FOR YOU LIMITED,100116
Portsmouth City Council,PCC,Adult Social Care,Physical Support Older People (65-74),ADULT SERVICES,Third Party Payments,Other establishments,26/04/18,6219625,567.04,VENDOR,CARING FOR YOU LIMITED,100116
Portsmouth City Council,PCC,Adult Social Care,Physical Support Older People (85+),ADULT SERVICES,Third Party Payments,Other establishments,26/04/18,6219625,2.05,VENDOR,CARING FOR YOU LIMITED,100116
Portsmouth City Council,PCC,Adult Social Care,Physical Support Older People (85+),ADULT SERVICES,Third Party Payments,Other establishments,26/04/18,6219625,202.45,VENDOR,CARING FOR YOU LIMITED,100116
Portsmouth City Council,PCC,Adult Social Care,Physical Support Older People (85+),ADULT SERVICES,Third Party Payments,Other establishments,26/04/18,6219625,127.23,VENDOR,CARING FOR YOU LIMITED,100116
Portsmouth City Council,PCC,Adult Social Care,Support with Memory and Cognition Older People (85+),ADULT SERVICES,Third Party Payments,Other establishments,26/04/18,6219625,318.05,VENDOR,CARING FOR YOU LIMITED,100116
Portsmouth City Council,PCC,Adult Social Care,Social Support - Support for Carer,ADULT SERVICES,Third Party Payments,Other establishments,26/04/18,6219625,243.36,VENDOR,CARING FOR YOU LIMITED,100116
Portsmouth City Council,PCC,Adult Social Care,Social Support - Support for Carer,ADULT SERVICES,Third Party Payments,Other establishments,26/04/18,6219625,84.48,VENDOR,CARING FOR YOU LIMITED,100116
Portsmouth City Council,PCC,Adult Social Care,Physical Support Older People (65-74),ADULT SERVICES,Third Party Payments,Other establishments,26/04/18,6219625,503.04,VENDOR,CARING FOR YOU LIMITED,100116
Portsmouth City Council,PCC,Adult Social Care,Physical Support Older People (85+),ADULT SERVICES,Third Party Payments,Other establishments,26/04/18,6219625,261.76,VENDOR,CARING FOR YOU LIMITED,100116
Portsmouth City Council,PCC,Adult Social Care,Physical Support Older People (85+),ADULT SERVICES,Third Party Payments,Other establishments,26/04/18,6219625,49.08,VENDOR,CARING FOR YOU LIMITED,100116
Portsmouth City Council,PCC,Adult Social Care,Physical Support Adults (75 - 84),ADULT SERVICES,Third Party Payments,Other establishments,26/04/18,6219625,24.38,VENDOR,CARING FOR YOU LIMITED,100116
Portsmouth City Council,PCC,Adult Social Care,Physical Support Older People (85+),ADULT SERVICES,Third Party Payments,Other establishments,26/04/18,6219625,23.26,VENDOR,CARING FOR YOU LIMITED,100116
Portsmouth City Council,PCC,Adult Social Care,Learning Disability Support  Adults (18 - 64),ADULT SERVICES,Third Party Payments,Other establishments,26/04/18,6219625,47.16,VENDOR,CARING FOR YOU LIMITED,100116
Portsmouth City Council,PCC,Adult Social Care,Learning Disability Support  Adults (18 - 64),ADULT SERVICES,Third Party Payments,Other establishments,26/04/18,6219625,16.36,VENDOR,CARING FOR YOU LIMITED,100116
Portsmouth City Council,PCC,Adult Social Care,Physical Support Older People (85+),ADULT SERVICES,Third Party Payments,Other establishments,26/04/18,6219625,784.04,VENDOR,CARING FOR YOU LIMITED,100116
Portsmouth City Council,PCC,Adult Social Care,Physical Support Older People (85+),ADULT SERVICES,Third Party Payments,Other establishments,26/04/18,6219625,217.84,VENDOR,CARING FOR YOU LIMITED,100116
Portsmouth City Council,PCC,Adult Social Care,Physical Support Older People (85+),ADULT SERVICES,Third Party Payments,Other establishments,26/04/18,6219625,322.26,VENDOR,CARING FOR YOU LIMITED,100116
Portsmouth City Council,PCC,Adult Social Care,Physical Support Older People (85+),ADULT SERVICES,Third Party Payments,Other establishments,26/04/18,6219625,123.02,VENDOR,CARING FOR YOU LIMITED,100116
Portsmouth City Council,PCC,Adult Social Care,Physical Support Older People (85+),ADULT SERVICES,Third Party Payments,Other establishments,26/04/18,6219625,70.74,VENDOR,CARING FOR YOU LIMITED,100116
Portsmouth City Council,PCC,Adult Social Care,Physical Support Older People (85+),ADULT SERVICES,Third Party Payments,Other establishments,26/04/18,6219625,98.16,VENDOR,CARING FOR YOU LIMITED,100116
Portsmouth City Council,PCC,Adult Social Care,Physical Support Adults (75 - 84),ADULT SERVICES,Third Party Payments,Other establishments,30/04/18,6219902,98.16,VENDOR,CARING FOR YOU LIMITED,100116
Portsmouth City Council,PCC,Adult Social Care,Physical Support Adults (75 - 84),ADULT SERVICES,Third Party Payments,Other establishments,30/04/18,6219902,117.9,VENDOR,CARING FOR YOU LIMITED,100116
Portsmouth City Council,PCC,Adult Social Care,Physical Support Older People (85+),ADULT SERVICES,Third Party Payments,Other establishments,30/04/18,6219902,117.9,VENDOR,CARING FOR YOU LIMITED,100116
Portsmouth City Council,PCC,Adult Social Care,Physical Support Older People (85+),ADULT SERVICES,Third Party Payments,Other establishments,26/04/18,6219625,528.78,VENDOR,CARING FOR YOU LIMITED,100116
Portsmouth City Council,PCC,Adult Social Care,Physical Support Older People (85+),ADULT SERVICES,Third Party Payments,Other establishments,26/04/18,6219625,701.64,VENDOR,CARING FOR YOU LIMITED,100116
Portsmouth City Council,PCC,Adult Social Care,Physical Support Older People (85+),ADULT SERVICES,Third Party Payments,Other establishments,26/04/18,6219625,176.85,VENDOR,CARING FOR YOU LIMITED,100116
Portsmouth City Council,PCC,Adult Social Care,Physical Support Older People (85+),ADULT SERVICES,Third Party Payments,Other establishments,26/04/18,6219625,49.08,VENDOR,CARING FOR YOU LIMITED,100116
Portsmouth City Council,PCC,Adult Social Care,Physical Support Adults (18 - 64),ADULT SERVICES,Third Party Payments,Other establishments,26/04/18,6219625,61.35,VENDOR,CARING FOR YOU LIMITED,100116
Portsmouth City Council,PCC,Adult Social Care,Physical Support Older People (85+),ADULT SERVICES,Third Party Payments,Other establishments,26/04/18,6219625,385.62,VENDOR,CARING FOR YOU LIMITED,100116
Portsmouth City Council,PCC,Adult Social Care,Physical Support Older People (85+),ADULT SERVICES,Third Party Payments,Other establishments,26/04/18,6219625,139.06,VENDOR,CARING FOR YOU LIMITED,100116
Portsmouth City Council,PCC,Adult Social Care,Physical Support Older People (85+),ADULT SERVICES,Third Party Payments,Other establishments,30/04/18,6219902,62.88,VENDOR,CARING FOR YOU LIMITED,100116
Portsmouth City Council,PCC,Adult Social Care,Physical Support Older People (85+),ADULT SERVICES,Third Party Payments,Other establishments,30/04/18,6219902,644.52,VENDOR,CARING FOR YOU LIMITED,100116
Portsmouth City Council,PCC,Adult Social Care,Physical Support Older People (85+),ADULT SERVICES,Third Party Payments,Other establishments,30/04/18,6219902,294.48,VENDOR,CARING FOR YOU LIMITED,100116
Portsmouth City Council,PCC,Adult Social Care,Mental Health Support Adults (18 - 64),ADULT SERVICES,Third Party Payments,Other establishments,26/04/18,6219625,338.25,VENDOR,CARING FOR YOU LIMITED,100116
Portsmouth City Council,PCC,Adult Social Care,Mental Health Support Adults (18 - 64),ADULT SERVICES,Third Party Payments,Other establishments,26/04/18,6219625,138.79,VENDOR,CARING FOR YOU LIMITED,100116
Portsmouth City Council,PCC,Adult Social Care,Physical Support Older People (85+),ADULT SERVICES,Third Party Payments,Other establishments,30/04/18,6219902,39.86,VENDOR,CARING FOR YOU LIMITED,100116
Portsmouth City Council,PCC,Adult Social Care,Physical Support Older People (85+),ADULT SERVICES,Third Party Payments,Other establishments,30/04/18,6219902,106.11,VENDOR,CARING FOR YOU LIMITED,100116
Portsmouth City Council,PCC,Adult Social Care,Physical Support Older People (85+),ADULT SERVICES,Third Party Payments,Other establishments,30/04/18,6219902,60.79,VENDOR,CARING FOR YOU LIMITED,100116
Portsmouth City Council,PCC,Adult Social Care,Physical Support Adults (75 - 84),ADULT SERVICES,Third Party Payments,Other establishments,26/04/18,6219625,691.68,VENDOR,CARING FOR YOU LIMITED,100116
Portsmouth City Council,PCC,Adult Social Care,Physical Support Older People (85+),ADULT SERVICES,Third Party Payments,Other establishments,26/04/18,6219625,310.2,VENDOR,CARING FOR YOU LIMITED,100116
Portsmouth City Council,PCC,Adult Social Care,Physical Support Older People (85+),ADULT SERVICES,Third Party Payments,Other establishments,26/04/18,6219625,94.32,VENDOR,CARING FOR YOU LIMITED,100116
Portsmouth City Council,PCC,Adult Social Care,Physical Support Older People (85+),ADULT SERVICES,Third Party Payments,Other establishments,26/04/18,6219625,32.72,VENDOR,CARING FOR YOU LIMITED,100116
Portsmouth City Council,PCC,Adult Social Care,Physical Support Older People (85+),ADULT SERVICES,Third Party Payments,Other establishments,26/04/18,6219625,65.44,VENDOR,CARING FOR YOU LIMITED,100116
Portsmouth City Council,PCC,Adult Social Care,Support with Memory and Cognition Older People (85+),ADULT SERVICES,Third Party Payments,Other establishments,26/04/18,6219625,157.2,VENDOR,CARING FOR YOU LIMITED,100116
Portsmouth City Council,PCC,Adult Social Care,Physical Support Older People (85+),ADULT SERVICES,Third Party Payments,Other establishments,30/04/18,6219902,74.95,VENDOR,CARING FOR YOU LIMITED,100116
Portsmouth City Council,PCC,Adult Social Care,Physical Support Older People (85+),ADULT SERVICES,Third Party Payments,Other establishments,30/04/18,6219902,239.45,VENDOR,CARING FOR YOU LIMITED,100116
Portsmouth City Council,PCC,Adult Social Care,Physical Support Older People (85+),ADULT SERVICES,Third Party Payments,Other establishments,30/04/18,6219902,123.02,VENDOR,CARING FOR YOU LIMITED,100116
Portsmouth City Council,PCC,Adult Social Care,Physical Support Older People (85+),ADULT SERVICES,Third Party Payments,Other establishments,26/04/18,6219625,307.67,VENDOR,CARING FOR YOU LIMITED,100116
Portsmouth City Council,PCC,Adult Social Care,Physical Support Older People (85+),ADULT SERVICES,Third Party Payments,Other establishments,26/04/18,6219625,137.61,VENDOR,CARING FOR YOU LIMITED,100116
Portsmouth City Council,PCC,Adult Social Care,Physical Support Older People (85+),ADULT SERVICES,Third Party Payments,Other establishments,26/04/18,6219625,248.07,VENDOR,CARING FOR YOU LIMITED,100116
Portsmouth City Council,PCC,Adult Social Care,Physical Support Older People (85+),ADULT SERVICES,Third Party Payments,Other establishments,26/04/18,6219625,85.89,VENDOR,CARING FOR YOU LIMITED,100116
Portsmouth City Council,PCC,Adult Social Care,Physical Support Older People (85+),ADULT SERVICES,Third Party Payments,Other establishments,26/04/18,6219625,322.26,VENDOR,CARING FOR YOU LIMITED,100116
Portsmouth City Council,PCC,Adult Social Care,Physical Support Older People (85+),ADULT SERVICES,Third Party Payments,Other establishments,26/04/18,6219625,99.44,VENDOR,CARING FOR YOU LIMITED,100116
Portsmouth City Council,PCC,Adult Social Care,Physical Support Older People (85+),ADULT SERVICES,Third Party Payments,Other establishments,26/04/18,6219625,428.37,VENDOR,CARING FOR YOU LIMITED,100116
Portsmouth City Council,PCC,Adult Social Care,Physical Support Older People (85+),ADULT SERVICES,Third Party Payments,Other establishments,26/04/18,6219625,377.28,VENDOR,CARING FOR YOU LIMITED,100116
Portsmouth City Council,PCC,Adult Social Care,Physical Support Older People (85+),ADULT SERVICES,Third Party Payments,Other establishments,26/04/18,6219625,209.23,VENDOR,CARING FOR YOU LIMITED,100116
Portsmouth City Council,PCC,Adult Social Care,Physical Support Older People (85+),ADULT SERVICES,Third Party Payments,Other establishments,26/04/18,6219625,416.58,VENDOR,CARING FOR YOU LIMITED,100116
Portsmouth City Council,PCC,Adult Social Care,Physical Support Older People (85+),ADULT SERVICES,Third Party Payments,Other establishments,26/04/18,6219625,134.97,VENDOR,CARING FOR YOU LIMITED,100116
Portsmouth City Council,PCC,Adult Social Care,Physical Support Older People (85+),ADULT SERVICES,Third Party Payments,Other establishments,26/04/18,6219625,155.42,VENDOR,CARING FOR YOU LIMITED,100116
Portsmouth City Council,PCC,Adult Social Care,Physical Support Older People (85+),ADULT SERVICES,Third Party Payments,Other establishments,26/04/18,6219625,70.74,VENDOR,CARING FOR YOU LIMITED,100116
Portsmouth City Council,PCC,Adult Social Care,Physical Support Older People (85+),ADULT SERVICES,Third Party Payments,Other establishments,26/04/18,6219625,24.54,VENDOR,CARING FOR YOU LIMITED,100116
Portsmouth City Council,PCC,Adult Social Care,Physical Support Older People (85+),ADULT SERVICES,Third Party Payments,Other establishments,26/04/18,6219625,416.58,VENDOR,CARING FOR YOU LIMITED,100116
Portsmouth City Council,PCC,Adult Social Care,Physical Support Older People (85+),ADULT SERVICES,Third Party Payments,Other establishments,26/04/18,6219625,62.88,VENDOR,CARING FOR YOU LIMITED,100116
Portsmouth City Council,PCC,Adult Social Care,Physical Support Older People (85+),ADULT SERVICES,Third Party Payments,Other establishments,26/04/18,6219625,165.38,VENDOR,CARING FOR YOU LIMITED,100116
Portsmouth City Council,PCC,Adult Social Care,Physical Support Older People (85+),ADULT SERVICES,Third Party Payments,Other establishments,26/04/18,6219625,57.26,VENDOR,CARING FOR YOU LIMITED,100116
Portsmouth City Council,PCC,Adult Social Care,Physical Support Adults (75 - 84),ADULT SERVICES,Third Party Payments,Other establishments,26/04/18,6219625,70.74,VENDOR,CARING FOR YOU LIMITED,100116
Portsmouth City Council,PCC,Adult Social Care,Physical Support Older People (85+),ADULT SERVICES,Third Party Payments,Other establishments,26/04/18,6219625,24.54,VENDOR,CARING FOR YOU LIMITED,100116
Portsmouth City Council,PCC,Adult Social Care,Physical Support Older People (85+),ADULT SERVICES,Third Party Payments,Other establishments,26/04/18,6219625,71.06,VENDOR,CARING FOR YOU LIMITED,100116
Portsmouth City Council,PCC,Adult Social Care,Physical Support Older People (85+),ADULT SERVICES,Third Party Payments,Other establishments,26/04/18,6219625,24.54,VENDOR,CARING FOR YOU LIMITED,100116
Portsmouth City Council,PCC,Adult Social Care,Physical Support Older People (65-74),ADULT SERVICES,Third Party Payments,Other establishments,26/04/18,6219625,106.59,VENDOR,CARING FOR YOU LIMITED,100116
Portsmouth City Council,PCC,Adult Social Care,Physical Support Older People (85+),ADULT SERVICES,Third Party Payments,Other establishments,26/04/18,6219625,85.89,VENDOR,CARING FOR YOU LIMITED,100116
Portsmouth City Council,PCC,Adult Social Care,Social Support - Support for Carer,ADULT SERVICES,Third Party Payments,Other establishments,26/04/18,6219625,243.36,VENDOR,CARING FOR YOU LIMITED,100116
Portsmouth City Council,PCC,Adult Social Care,Social Support - Support for Carer,ADULT SERVICES,Third Party Payments,Other establishments,26/04/18,6219625,84.48,VENDOR,CARING FOR YOU LIMITED,100116
Portsmouth City Council,PCC,Adult Social Care,Physical Support Older People (85+),ADULT SERVICES,Third Party Payments,Other establishments,26/04/18,6219625,326.83,VENDOR,CARING FOR YOU LIMITED,100116
Portsmouth City Council,PCC,Adult Social Care,Physical Support Older People (85+),ADULT SERVICES,Third Party Payments,Other establishments,26/04/18,6219625,114.52,VENDOR,CARING FOR YOU LIMITED,100116
Portsmouth City Council,PCC,Adult Social Care,Physical Support Older People (85+),ADULT SERVICES,Third Party Payments,Other establishments,26/04/18,6219625,409.52,VENDOR,CARING FOR YOU LIMITED,100116
Portsmouth City Council,PCC,Adult Social Care,Physical Support Older People (85+),ADULT SERVICES,Third Party Payments,Other establishments,26/04/18,6219625,143.15,VENDOR,CARING FOR YOU LIMITED,100116
Portsmouth City Council,PCC,Adult Social Care,Social Support - Support for Carer,ADULT SERVICES,Third Party Payments,Other establishments,26/04/18,6219625,54.08,VENDOR,CARING FOR YOU LIMITED,100116
Portsmouth City Council,PCC,Adult Social Care,Social Support - Support for Carer,ADULT SERVICES,Third Party Payments,Other establishments,26/04/18,6219625,56.32,VENDOR,CARING FOR YOU LIMITED,100116
Portsmouth City Council,PCC,Adult Social Care,Physical Support Older People (85+),ADULT SERVICES,Third Party Payments,Other establishments,26/04/18,6219625,157.2,VENDOR,CARING FOR YOU LIMITED,100116
Portsmouth City Council,PCC,Adult Social Care,Physical Support Older People (85+),ADULT SERVICES,Third Party Payments,Other establishments,26/04/18,6219625,81.8,VENDOR,CARING FOR YOU LIMITED,100116
Portsmouth City Council,PCC,Adult Social Care,Physical Support Older People (85+),ADULT SERVICES,Third Party Payments,Other establishments,26/04/18,6219625,165.06,VENDOR,CARING FOR YOU LIMITED,100116
Portsmouth City Council,PCC,Adult Social Care,Physical Support Older People (85+),ADULT SERVICES,Third Party Payments,Other establishments,26/04/18,6219625,57.58,VENDOR,CARING FOR YOU LIMITED,100116
Portsmouth City Council,PCC,Adult Social Care,Physical Support Adults (75 - 84),ADULT SERVICES,Third Party Payments,Other establishments,26/04/18,6219625,724.56,VENDOR,CARING FOR YOU LIMITED,100116
Portsmouth City Council,PCC,Adult Social Care,Physical Support Older People (85+),ADULT SERVICES,Third Party Payments,Other establishments,26/04/18,6219625,257.67,VENDOR,CARING FOR YOU LIMITED,100116
Portsmouth City Council,PCC,Adult Social Care,Physical Support Older People (85+),ADULT SERVICES,Third Party Payments,Other establishments,26/04/18,6219625,82.85,VENDOR,CARING FOR YOU LIMITED,100116
Portsmouth City Council,PCC,Adult Social Care,Physical Support Older People (85+),ADULT SERVICES,Third Party Payments,Other establishments,26/04/18,6219625,28.63,VENDOR,CARING FOR YOU LIMITED,100116
Portsmouth City Council,PCC,Adult Social Care,Physical Support Adults (18 - 64),ADULT SERVICES,Third Party Payments,Other establishments,26/04/18,6219625,393,VENDOR,CARING FOR YOU LIMITED,100116
Portsmouth City Council,PCC,Adult Social Care,Physical Support Older People (85+),ADULT SERVICES,Third Party Payments,Other establishments,26/04/18,6219625,163.6,VENDOR,CARING FOR YOU LIMITED,100116
Portsmouth City Council,PCC,Adult Social Care,Physical Support Older People (85+),ADULT SERVICES,Third Party Payments,Other establishments,26/04/18,6219625,23.58,VENDOR,CARING FOR YOU LIMITED,100116
Portsmouth City Council,PCC,Adult Social Care,Physical Support Older People (85+),ADULT SERVICES,Third Party Payments,Other establishments,26/04/18,6219625,94.07,VENDOR,CARING FOR YOU LIMITED,100116
Portsmouth City Council,PCC,Adult Social Care,Social Support - Support for Carer,ADULT SERVICES,Third Party Payments,Other establishments,26/04/18,6219625,229.84,VENDOR,CARING FOR YOU LIMITED,100116
Portsmouth City Council,PCC,Adult Social Care,Social Support - Support for Carer,ADULT SERVICES,Third Party Payments,Other establishments,26/04/18,6219625,70.4,VENDOR,CARING FOR YOU LIMITED,100116
Portsmouth City Council,PCC,Adult Social Care,Physical Support Older People (85+),ADULT SERVICES,Third Party Payments,Other establishments,26/04/18,6219625,644.52,VENDOR,CARING FOR YOU LIMITED,100116
Portsmouth City Council,PCC,Adult Social Care,Physical Support Older People (85+),ADULT SERVICES,Third Party Payments,Other establishments,26/04/18,6219625,306.91,VENDOR,CARING FOR YOU LIMITED,100116
Portsmouth City Council,PCC,Adult Social Care,Physical Support Adults (75 - 84),ADULT SERVICES,Third Party Payments,Other establishments,26/04/18,6219625,141.48,VENDOR,CARING FOR YOU LIMITED,100116
Portsmouth City Council,PCC,Adult Social Care,Physical Support Older People (85+),ADULT SERVICES,Third Party Payments,Other establishments,26/04/18,6219625,56.09,VENDOR,CARING FOR YOU LIMITED,100116
Portsmouth City Council,PCC,Adult Social Care,Physical Support Older People (85+),ADULT SERVICES,Third Party Payments,Other establishments,26/04/18,6219625,110.59,VENDOR,CARING FOR YOU LIMITED,100116
Portsmouth City Council,PCC,Adult Social Care,Support with Memory and Cognition Older People (75 - 84),ADULT SERVICES,Third Party Payments,Other establishments,26/04/18,6219625,105.04,VENDOR,CARING FOR YOU LIMITED,100116
Portsmouth City Council,PCC,Adult Social Care,Physical Support Older People (85+),ADULT SERVICES,Third Party Payments,Other establishments,26/04/18,6219625,253.36,VENDOR,CARING FOR YOU LIMITED,100116
Portsmouth City Council,PCC,Adult Social Care,Physical Support Older People (85+),ADULT SERVICES,Third Party Payments,Other establishments,26/04/18,6219625,112.36,VENDOR,CARING FOR YOU LIMITED,100116
Portsmouth City Council,PCC,Adult Social Care,Physical Support Older People (65-74),ADULT SERVICES,Third Party Payments,Other establishments,26/04/18,6219625,358.23,VENDOR,CARING FOR YOU LIMITED,100116
Portsmouth City Council,PCC,Adult Social Care,Physical Support Older People (85+),ADULT SERVICES,Third Party Payments,Other establishments,26/04/18,6219625,122.56,VENDOR,CARING FOR YOU LIMITED,100116
Portsmouth City Council,PCC,Adult Social Care,Physical Support Older People (85+),ADULT SERVICES,Third Party Payments,Other establishments,26/04/18,6219625,32.72,VENDOR,CARING FOR YOU LIMITED,100116
Portsmouth City Council,PCC,Adult Social Care,Physical Support Older People (85+),ADULT SERVICES,Third Party Payments,Other establishments,26/04/18,6219625,154.25,VENDOR,CARING FOR YOU LIMITED,100116
Portsmouth City Council,PCC,Adult Social Care,Physical Support Older People (85+),ADULT SERVICES,Third Party Payments,Other establishments,26/04/18,6219625,247.59,VENDOR,CARING FOR YOU LIMITED,100116
Portsmouth City Council,PCC,Adult Social Care,Social Support - Support for Carer,ADULT SERVICES,Third Party Payments,Other establishments,26/04/18,6219625,94.64,VENDOR,CARING FOR YOU LIMITED,100116
Portsmouth City Council,PCC,Adult Social Care,Social Support - Support for Carer,ADULT SERVICES,Third Party Payments,Other establishments,26/04/18,6219625,49.28,VENDOR,CARING FOR YOU LIMITED,100116
Portsmouth City Council,PCC,Adult Social Care,Physical Support Older People (85+),ADULT SERVICES,Third Party Payments,Other establishments,26/04/18,6219625,840.06,VENDOR,CARING FOR YOU LIMITED,100116
Portsmouth City Council,PCC,Adult Social Care,Physical Support Older People (85+),ADULT SERVICES,Third Party Payments,Other establishments,26/04/18,6219625,314.93,VENDOR,CARING FOR YOU LIMITED,100116
Portsmouth City Council,PCC,Adult Social Care,Physical Support Older People (85+),ADULT SERVICES,Third Party Payments,Other establishments,26/04/18,6219625,157.2,VENDOR,CARING FOR YOU LIMITED,100116
Portsmouth City Council,PCC,Adult Social Care,Physical Support Older People (85+),ADULT SERVICES,Third Party Payments,Other establishments,26/04/18,6219625,65.44,VENDOR,CARING FOR YOU LIMITED,100116
Portsmouth City Council,PCC,Adult Social Care,Physical Support Older People (85+),ADULT SERVICES,Third Party Payments,Other establishments,26/04/18,6219625,157.2,VENDOR,CARING FOR YOU LIMITED,100116
Portsmouth City Council,PCC,Adult Social Care,Physical Support Older People (85+),ADULT SERVICES,Third Party Payments,Other establishments,26/04/18,6219625,65.44,VENDOR,CARING FOR YOU LIMITED,100116
Portsmouth City Council,PCC,Adult Social Care,Physical Support Adults (75 - 84),ADULT SERVICES,Third Party Payments,Other establishments,26/04/18,6219625,39.78,VENDOR,CARING FOR YOU LIMITED,100116
Portsmouth City Council,PCC,Adult Social Care,Physical Support Older People (85+),ADULT SERVICES,Third Party Payments,Other establishments,26/04/18,6219625,89.98,VENDOR,CARING FOR YOU LIMITED,100116
Portsmouth City Council,PCC,Adult Social Care,Physical Support Older People (85+),ADULT SERVICES,Third Party Payments,Other establishments,26/04/18,6219625,220.08,VENDOR,CARING FOR YOU LIMITED,100116
Portsmouth City Council,PCC,Adult Social Care,Physical Support Older People (85+),ADULT SERVICES,Third Party Payments,Other establishments,26/04/18,6219625,149.61,VENDOR,CARING FOR YOU LIMITED,100116
Portsmouth City Council,PCC,Adult Social Care,Physical Support Older People (85+),ADULT SERVICES,Third Party Payments,Other establishments,26/04/18,6219625,45.04,VENDOR,CARING FOR YOU LIMITED,100116
Portsmouth City Council,PCC,Adult Social Care,Physical Support Older People (85+),ADULT SERVICES,Third Party Payments,Other establishments,26/04/18,6219625,685.05,VENDOR,CARING FOR YOU LIMITED,100116
Portsmouth City Council,PCC,Adult Social Care,Physical Support Older People (85+),ADULT SERVICES,Third Party Payments,Other establishments,26/04/18,6219625,293.25,VENDOR,CARING FOR YOU LIMITED,100116
Portsmouth City Council,PCC,Adult Social Care,Physical Support Adults (75 - 84),ADULT SERVICES,Third Party Payments,Other establishments,26/04/18,6219625,157.2,VENDOR,CARING FOR YOU LIMITED,100116
Portsmouth City Council,PCC,Adult Social Care,Physical Support Older People (85+),ADULT SERVICES,Third Party Payments,Other establishments,26/04/18,6219625,65.44,VENDOR,CARING FOR YOU LIMITED,100116
Portsmouth City Council,PCC,Adult Social Care,Physical Support Older People (85+),ADULT SERVICES,Third Party Payments,Other establishments,26/04/18,6219625,628.8,VENDOR,CARING FOR YOU LIMITED,100116
Portsmouth City Council,PCC,Adult Social Care,Physical Support Older People (85+),ADULT SERVICES,Third Party Payments,Other establishments,26/04/18,6219625,89.82,VENDOR,CARING FOR YOU LIMITED,100116
Portsmouth City Council,PCC,Adult Social Care,Physical Support Older People (85+),ADULT SERVICES,Third Party Payments,Other establishments,26/04/18,6219625,229.04,VENDOR,CARING FOR YOU LIMITED,100116
Portsmouth City Council,PCC,Adult Social Care,Physical Support Older People (85+),ADULT SERVICES,Third Party Payments,Other establishments,26/04/18,6219625,6.42,VENDOR,CARING FOR YOU LIMITED,100116
Portsmouth City Council,PCC,Adult Social Care,Physical Support Adults (75 - 84),ADULT SERVICES,Third Party Payments,Other establishments,26/04/18,6219625,373.35,VENDOR,CARING FOR YOU LIMITED,100116
Portsmouth City Council,PCC,Adult Social Care,Physical Support Older People (85+),ADULT SERVICES,Third Party Payments,Other establishments,26/04/18,6219625,122.7,VENDOR,CARING FOR YOU LIMITED,100116
Portsmouth City Council,PCC,Adult Social Care,Physical Support Older People (85+),ADULT SERVICES,Third Party Payments,Other establishments,26/04/18,6219625,70.74,VENDOR,CARING FOR YOU LIMITED,100116
Portsmouth City Council,PCC,Adult Social Care,Physical Support Older People (85+),ADULT SERVICES,Third Party Payments,Other establishments,26/04/18,6219625,24.54,VENDOR,CARING FOR YOU LIMITED,100116
Portsmouth City Council,PCC,Adult Social Care,Physical Support Older People (85+),ADULT SERVICES,Third Party Payments,Other establishments,26/04/18,6219625,370.38,VENDOR,CARING FOR YOU LIMITED,100116
Portsmouth City Council,PCC,Adult Social Care,Physical Support Older People (85+),ADULT SERVICES,Third Party Payments,Other establishments,26/04/18,6219625,139.06,VENDOR,CARING FOR YOU LIMITED,100116
Portsmouth City Council,PCC,Adult Social Care,Physical Support Older People (85+),ADULT SERVICES,Third Party Payments,Other establishments,26/04/18,6219625,393,VENDOR,CARING FOR YOU LIMITED,100116
Portsmouth City Council,PCC,Adult Social Care,Physical Support Older People (85+),ADULT SERVICES,Third Party Payments,Other establishments,26/04/18,6219625,126.8,VENDOR,CARING FOR YOU LIMITED,100116
Portsmouth City Council,PCC,Adult Social Care,Social Support - Support for Carer,ADULT SERVICES,Third Party Payments,Other establishments,26/04/18,6219625,231.77,VENDOR,CARING FOR YOU LIMITED,100116
Portsmouth City Council,PCC,Adult Social Care,Social Support - Support for Carer,ADULT SERVICES,Third Party Payments,Other establishments,26/04/18,6219625,96.54,VENDOR,CARING FOR YOU LIMITED,100116
Portsmouth City Council,PCC,Adult Social Care,Physical Support Adults (18 - 64),ADULT SERVICES,Third Party Payments,Other establishments,26/04/18,6219625,235.8,VENDOR,CARING FOR YOU LIMITED,100116
Portsmouth City Council,PCC,Adult Social Care,Physical Support Adults (18 - 64),ADULT SERVICES,Third Party Payments,Other establishments,26/04/18,6219625,98.16,VENDOR,CARING FOR YOU LIMITED,100116
Portsmouth City Council,PCC,Adult Social Care,Physical Support Older People (65-74),ADULT SERVICES,Third Party Payments,Other establishments,26/04/18,6219625,450.85,VENDOR,CARING FOR YOU LIMITED,100116
Portsmouth City Council,PCC,Adult Social Care,Physical Support Older People (85+),ADULT SERVICES,Third Party Payments,Other establishments,26/04/18,6219625,124.87,VENDOR,CARING FOR YOU LIMITED,100116
Portsmouth City Council,PCC,Adult Social Care,Social Support - Support for Carer,ADULT SERVICES,Third Party Payments,Other establishments,26/04/18,6219625,231.77,VENDOR,CARING FOR YOU LIMITED,100116
Portsmouth City Council,PCC,Adult Social Care,Social Support - Support for Carer,ADULT SERVICES,Third Party Payments,Other establishments,26/04/18,6219625,222.11,VENDOR,CARING FOR YOU LIMITED,100116
Portsmouth City Council,PCC,Adult Social Care,Social Support - Support for Carer,ADULT SERVICES,Third Party Payments,Other establishments,26/04/18,6219625,123.2,VENDOR,CARING FOR YOU LIMITED,100116
Portsmouth City Council,PCC,Adult Social Care,Physical Support Older People (85+),ADULT SERVICES,Third Party Payments,Other establishments,26/04/18,6219625,353.7,VENDOR,CARING FOR YOU LIMITED,100116
Portsmouth City Council,PCC,Adult Social Care,Physical Support Older People (85+),ADULT SERVICES,Third Party Payments,Other establishments,26/04/18,6219625,490.8,VENDOR,CARING FOR YOU LIMITED,100116
Portsmouth City Council,PCC,Adult Social Care,Physical Support Adults (75 - 84),ADULT SERVICES,Third Party Payments,Other establishments,26/04/18,6219625,495.18,VENDOR,CARING FOR YOU LIMITED,100116
Portsmouth City Council,PCC,Adult Social Care,Physical Support Older People (65-74),ADULT SERVICES,Third Party Payments,Other establishments,26/04/18,6219625,58.95,VENDOR,CARING FOR YOU LIMITED,100116
Portsmouth City Council,PCC,Adult Social Care,Physical Support Older People (85+),ADULT SERVICES,Third Party Payments,Other establishments,26/04/18,6219625,98.25,VENDOR,CARING FOR YOU LIMITED,100116
Portsmouth City Council,PCC,Adult Social Care,Physical Support Older People (85+),ADULT SERVICES,Third Party Payments,Other establishments,12/04/18,6216724,481,VENDOR,CEDDAR HOUSE,102425
Portsmouth City Council,PCC,Adult Social Care,Physical Support Adults (18 - 64),ADULT SERVICES,Third Party Payments,Other establishments,12/04/18,6216724,333,VENDOR,CEDDAR HOUSE,102425
Portsmouth City Council,PCC,Adult Social Care,Learning Disability Support  Adults (18 - 64),ADULT SERVICES,Third Party Payments,Other establishments,19/04/18,6218420,866.64,VENDOR,CHAOS SUPPORT LIMITED,138389
Portsmouth City Council,PCC,Adult Social Care,Learning Disability Support  Adults (18 - 64),ADULT SERVICES,Third Party Payments,Other establishments,19/04/18,6218420,577.76,VENDOR,CHAOS SUPPORT LIMITED,138389
Portsmouth City Council,PCC,Adult Social Care,Learning Disability Support  Adults (18 - 64),ADULT SERVICES,Third Party Payments,Other establishments,26/04/18,6219628,866.64,VENDOR,CHAOS SUPPORT LIMITED,138389
Portsmouth City Council,PCC,Adult Social Care,Learning Disability Support  Adults (18 - 64),ADULT SERVICES,Third Party Payments,Other establishments,26/04/18,6219628,577.76,VENDOR,CHAOS SUPPORT LIMITED,138389
Portsmouth City Council,PCC,Adult Social Care,Learning Disability Support  Adults (18 - 64),ADULT SERVICES,Third Party Payments,Other establishments,30/04/18,6219903,726.41,VENDOR,CHAOS SUPPORT LIMITED,138389
Portsmouth City Council,PCC,Adult Social Care,Learning Disability Support  Adults (18 - 64),ADULT SERVICES,Third Party Payments,Other establishments,30/04/18,6219903,2457,VENDOR,CHAOS SUPPORT LIMITED,138389
Portsmouth City Council,PCC,Adult Social Care,Learning Disability Support  Adults (18 - 64),ADULT SERVICES,Third Party Payments,Other establishments,30/04/18,6219903,132.48,VENDOR,CHAOS SUPPORT LIMITED,138389
Portsmouth City Council,PCC,Adult Social Care,Learning Disability Support  Adults (18 - 64),ADULT SERVICES,Third Party Payments,Other establishments,25/04/18,6219053,3500,VENDOR,CHAOS SUPPORT LIMITED,138389
Portsmouth City Council,PCC,Adult Social Care,Learning Disability Support  Adults (18 - 64),ADULT SERVICES,Third Party Payments,Other establishments,25/04/18,6219053,1223.8,VENDOR,CHAOS SUPPORT LIMITED,138389
Portsmouth City Council,PCC,Adult Social Care,Learning Disability Support  Adults (18 - 64),ADULT SERVICES,Third Party Payments,Other establishments,25/04/18,6219053,643.8,VENDOR,CHAOS SUPPORT LIMITED,138389
Portsmouth City Council,PCC,Adult Social Care,Learning Disability Support  Adults (18 - 64),ADULT SERVICES,Third Party Payments,Other establishments,25/04/18,6219053,854.6,VENDOR,CHAOS SUPPORT LIMITED,138389
Portsmouth City Council,PCC,Adult Social Care,Learning Disability Support  Adults (18 - 64),ADULT SERVICES,Third Party Payments,Other establishments,25/04/18,6219053,854.6,VENDOR,CHAOS SUPPORT LIMITED,138389
Portsmouth City Council,PCC,Adult Social Care,Learning Disability Support  Adults (18 - 64),ADULT SERVICES,Third Party Payments,Other establishments,25/04/18,6219053,2447.8,VENDOR,CHAOS SUPPORT LIMITED,138389
Portsmouth City Council,PCC,Adult Social Care,Learning Disability Support  Adults (18 - 64),ADULT SERVICES,Third Party Payments,Other establishments,25/04/18,6219053,616.2,VENDOR,CHAOS SUPPORT LIMITED,138389
Portsmouth City Council,PCC,Adult Social Care,Learning Disability Support  Adults (18 - 64),ADULT SERVICES,Third Party Payments,Other establishments,25/04/18,6219053,700,VENDOR,CHAOS SUPPORT LIMITED,138389
Portsmouth City Council,PCC,Adult Social Care,Learning Disability Support  Adults (18 - 64),ADULT SERVICES,Third Party Payments,Other establishments,25/04/18,6219053,2447.8,VENDOR,CHAOS SUPPORT LIMITED,138389
Portsmouth City Council,PCC,Adult Social Care,Learning Disability Support  Adults (18 - 64),ADULT SERVICES,Third Party Payments,Other establishments,25/04/18,6219053,700,VENDOR,CHAOS SUPPORT LIMITED,138389
Portsmouth City Council,PCC,Adult Social Care,Learning Disability Support  Adults (18 - 64),ADULT SERVICES,Third Party Payments,Other establishments,25/04/18,6219053,854.6,VENDOR,CHAOS SUPPORT LIMITED,138389
Portsmouth City Council,PCC,Adult Social Care,Learning Disability Support  Adults (18 - 64),ADULT SERVICES,Third Party Payments,Other establishments,25/04/18,6219053,1100,VENDOR,CHAOS SUPPORT LIMITED,138389
Portsmouth City Council,PCC,Adult Social Care,Learning Disability Support  Adults (18 - 64),ADULT SERVICES,Third Party Payments,Other establishments,25/04/18,6219053,1724,VENDOR,CHAOS SUPPORT LIMITED,138389
Portsmouth City Council,PCC,Adult Social Care,Learning Disability Support  Adults (18 - 64),ADULT SERVICES,Third Party Payments,Other establishments,25/04/18,6219053,2580,VENDOR,CHAOS SUPPORT LIMITED,138389
Portsmouth City Council,PCC,Adult Social Care,Learning Disability Support  Adults (18 - 64),ADULT SERVICES,Third Party Payments,Other establishments,25/04/18,6219053,2700,VENDOR,CHAOS SUPPORT LIMITED,138389
Portsmouth City Council,PCC,Adult Social Care,Learning Disability Support  Adults (18 - 64),ADULT SERVICES,Third Party Payments,Other establishments,25/04/18,6219053,1524,VENDOR,CHAOS SUPPORT LIMITED,138389
Portsmouth City Council,PCC,Adult Social Care,Learning Disability Support  Adults (18 - 64),ADULT SERVICES,Third Party Payments,Other establishments,25/04/18,6219053,979.12,VENDOR,CHAOS SUPPORT LIMITED,138389
Portsmouth City Council,PCC,Adult Social Care,Learning Disability Support  Adults (18 - 64),ADULT SERVICES,Third Party Payments,Other establishments,25/04/18,6219053,979.12,VENDOR,CHAOS SUPPORT LIMITED,138389
Portsmouth City Council,PCC,Adult Social Care,Learning Disability Support  Adults (18 - 64),ADULT SERVICES,Third Party Payments,Other establishments,25/04/18,6219053,123.24,VENDOR,CHAOS SUPPORT LIMITED,138389
Portsmouth City Council,PCC,Adult Social Care,Learning Disabilty Support Older People (65 - 74),ADULT SERVICES,Third Party Payments,Other establishments,25/04/18,6219053,170.92,VENDOR,CHAOS SUPPORT LIMITED,138389
Portsmouth City Council,PCC,Adult Social Care,Learning Disability Support  Adults (18 - 64),ADULT SERVICES,Third Party Payments,Other establishments,25/04/18,6219053,1468.68,VENDOR,CHAOS SUPPORT LIMITED,138389
Portsmouth City Council,PCC,Adult Social Care,Learning Disability Support  Adults (18 - 64),ADULT SERVICES,Third Party Payments,Other establishments,25/04/18,6219053,341.84,VENDOR,CHAOS SUPPORT LIMITED,138389
Portsmouth City Council,PCC,Adult Social Care,Learning Disability Support  Adults (18 - 64),ADULT SERVICES,Third Party Payments,Other establishments,25/04/18,6219053,492.96,VENDOR,CHAOS SUPPORT LIMITED,138389
Portsmouth City Council,PCC,Adult Social Care,Learning Disability Support  Adults (18 - 64),ADULT SERVICES,Third Party Payments,Other establishments,25/04/18,6219053,683.68,VENDOR,CHAOS SUPPORT LIMITED,138389
Portsmouth City Council,PCC,Adult Social Care,Learning Disability Support  Adults (18 - 64),ADULT SERVICES,Third Party Payments,Other establishments,25/04/18,6219053,683.68,VENDOR,CHAOS SUPPORT LIMITED,138389
Portsmouth City Council,PCC,Adult Social Care,Learning Disability Support  Adults (18 - 64),ADULT SERVICES,Third Party Payments,Other establishments,25/04/18,6219053,1030.08,VENDOR,CHAOS SUPPORT LIMITED,138389
Portsmouth City Council,PCC,Adult Social Care,Learning Disability Support  Adults (18 - 64),ADULT SERVICES,Third Party Payments,Other establishments,25/04/18,6219053,683.68,VENDOR,CHAOS SUPPORT LIMITED,138389
Portsmouth City Council,PCC,Adult Social Care,Learning Disability Support  Adults (18 - 64),ADULT SERVICES,Third Party Payments,Other establishments,25/04/18,6219053,683.68,VENDOR,CHAOS SUPPORT LIMITED,138389
Portsmouth City Council,PCC,Adult Social Care,Learning Disability Support  Adults (18 - 64),ADULT SERVICES,Third Party Payments,Other establishments,25/04/18,6219053,1468.68,VENDOR,CHAOS SUPPORT LIMITED,138389
Portsmouth City Council,PCC,Adult Social Care,Learning Disability Support  Adults (18 - 64),ADULT SERVICES,Third Party Payments,Other establishments,25/04/18,6219053,512.76,VENDOR,CHAOS SUPPORT LIMITED,138389
Portsmouth City Council,PCC,Adult Social Care,Learning Disability Support  Adults (18 - 64),ADULT SERVICES,Third Party Payments,Other establishments,25/04/18,6219053,1958.24,VENDOR,CHAOS SUPPORT LIMITED,138389
Portsmouth City Council,PCC,Adult Social Care,Learning Disability Support  Adults (18 - 64),ADULT SERVICES,Third Party Payments,Other establishments,25/04/18,6219053,512.76,VENDOR,CHAOS SUPPORT LIMITED,138389
Portsmouth City Council,PCC,Adult Social Care,Learning Disability Support  Adults (18 - 64),ADULT SERVICES,Third Party Payments,Other establishments,25/04/18,6219053,772.56,VENDOR,CHAOS SUPPORT LIMITED,138389
Portsmouth City Council,PCC,Adult Social Care,Learning Disability Support  Adults (18 - 64),ADULT SERVICES,Third Party Payments,Other establishments,25/04/18,6219053,840,VENDOR,CHAOS SUPPORT LIMITED,138389
Portsmouth City Council,PCC,Adult Social Care,Learning Disability Support  Adults (18 - 64),ADULT SERVICES,Third Party Payments,Other establishments,25/04/18,6219053,138,VENDOR,CHAOS SUPPORT LIMITED,138389
Portsmouth City Council,PCC,Adult Social Care,Learning Disability Support  Adults (18 - 64),ADULT SERVICES,Third Party Payments,Other establishments,25/04/18,6219053,1655.68,VENDOR,CHAOS SUPPORT LIMITED,138389
Portsmouth City Council,PCC,Adult Social Care,Learning Disability Support  Adults (18 - 64),ADULT SERVICES,Third Party Payments,Other establishments,25/04/18,6219053,36,VENDOR,CHAOS SUPPORT LIMITED,138389
Portsmouth City Council,PCC,Adult Social Care,Learning Disability Support  Adults (18 - 64),ADULT SERVICES,Third Party Payments,Other establishments,25/04/18,6219053,393,VENDOR,CHAOS SUPPORT LIMITED,138389
Portsmouth City Council,PCC,Adult Social Care,Learning Disability Support  Adults (18 - 64),ADULT SERVICES,Third Party Payments,Other establishments,25/04/18,6219053,132.48,VENDOR,CHAOS SUPPORT LIMITED,138389
Portsmouth City Council,PCC,Adult Social Care,Learning Disability Support  Adults (18 - 64),ADULT SERVICES,Third Party Payments,Other establishments,25/04/18,6219053,984,VENDOR,CHAOS SUPPORT LIMITED,138389
Portsmouth City Council,PCC,Adult Social Care,Learning Disability Support  Adults (18 - 64),ADULT SERVICES,Third Party Payments,Other establishments,25/04/18,6219053,577.76,VENDOR,CHAOS SUPPORT LIMITED,138389
Portsmouth City Council,PCC,Adult Social Care,Learning Disability Support  Adults (18 - 64),ADULT SERVICES,Third Party Payments,Other establishments,25/04/18,6219053,577.76,VENDOR,CHAOS SUPPORT LIMITED,138389
Portsmouth City Council,PCC,Adult Social Care,Learning Disability Support  Adults (18 - 64),ADULT SERVICES,Third Party Payments,Other establishments,25/04/18,6219053,866.64,VENDOR,CHAOS SUPPORT LIMITED,138389
Portsmouth City Council,PCC,Adult Social Care,Learning Disability Support  Adults (18 - 64),ADULT SERVICES,Third Party Payments,Other establishments,25/04/18,6219053,208,VENDOR,CHAOS SUPPORT LIMITED,138389
Portsmouth City Council,PCC,Adult Social Care,Learning Disability Support  Adults (18 - 64),ADULT SERVICES,Third Party Payments,Other establishments,25/04/18,6219053,840.56,VENDOR,CHAOS SUPPORT LIMITED,138389
Portsmouth City Council,PCC,Adult Social Care,Learning Disability Support  Adults (18 - 64),ADULT SERVICES,Third Party Payments,Other establishments,30/04/18,6219903,132.48,VENDOR,CHAOS SUPPORT LIMITED,138389
Portsmouth City Council,PCC,Adult Social Care,Physical Support Older People (65-74),ADULT SERVICES,Third Party Payments,Other establishments,17/04/18,6217298,4110.38,VENDOR,CHESHIRE HOMES,100957
Portsmouth City Council,PCC,Adult Social Care,Physical Support Older People (65-74),ADULT SERVICES,Income,Customer and client receipts,17/04/18,6217298,-595.51,VENDOR,CHESHIRE HOMES,100957
Portsmouth City Council,PCC,Adult Social Care,Learning Disability Support  Adults (18 - 64),ADULT SERVICES,Third Party Payments,Other establishments,12/04/18,6216727,2520.9,VENDOR,CHOICE CARE GROUP,134468
Portsmouth City Council,PCC,Adult Social Care,Mental Health Support Adults (18 - 64),ADULT SERVICES,Third Party Payments,Other establishments,12/04/18,6216727,5341.84,VENDOR,CHOICE CARE GROUP,134468
Portsmouth City Council,PCC,Adult Social Care,Mental Health Support Adults (18 - 64),ADULT SERVICES,Third Party Payments,Other establishments,27/04/18,6219749,-359.6,VENDOR,CHOICE CARE GROUP,134468
Portsmouth City Council,PCC,Adult Social Care,Mental Health Support Adults (18 - 64),ADULT SERVICES,Third Party Payments,Other establishments,12/04/18,6216727,2157.6,VENDOR,CHOICE CARE GROUP,134468
Portsmouth City Council,PCC,Adult Social Care,Mental Health Support Adults (18 - 64),ADULT SERVICES,Third Party Payments,Other establishments,12/04/18,6216727,3554.1,VENDOR,CHOICE CARE GROUP,134468
Portsmouth City Council,PCC,Adult Social Care,Mental Health Support Adults (18 - 64),ADULT SERVICES,Third Party Payments,Other establishments,12/04/18,6216727,2975.06,VENDOR,CHOICE CARE GROUP,134468
Portsmouth City Council,PCC,Adult Social Care,Learning Disability Support  Adults (18 - 64),ADULT SERVICES,Third Party Payments,Other establishments,12/04/18,6216727,3941.74,VENDOR,CHOICE CARE GROUP,134468
Portsmouth City Council,PCC,Adult Social Care,Mental Health Support Adults (18 - 64),ADULT SERVICES,Third Party Payments,Other establishments,12/04/18,6216727,2334.21,VENDOR,CHOICE CARE GROUP,134468
Portsmouth City Council,PCC,Adult Social Care,Physical Support Adults (18 - 64),ADULT SERVICES,Third Party Payments,Other establishments,12/04/18,6216727,7662.64,VENDOR,CHOICE CARE GROUP,134468
Portsmouth City Council,PCC,Adult Social Care,Mental Health Support Adults (18 - 64),ADULT SERVICES,Third Party Payments,Other establishments,26/04/18,6219629,4170.47,VENDOR,CHOICE CARE GROUP,134468
Portsmouth City Council,PCC,Adult Social Care,Physical Support Adults (18 - 64),ADULT SERVICES,Third Party Payments,Other establishments,27/04/18,6219749,2339.7,VENDOR,CHOICE CARE GROUP,134468
Portsmouth City Council,PCC,Adult Social Care,Mental Health Support Adults (18 - 64),ADULT SERVICES,Third Party Payments,Other establishments,12/04/18,6216727,2384.1,VENDOR,CHOICE CARE GROUP,134468
Portsmouth City Council,PCC,Adult Social Care,Social Care Activities,ADULT SERVICES,Third Party Payments,Other establishments,26/04/18,6219629,9605.36,VENDOR,CHOICE CARE GROUP,134468
Portsmouth City Council,PCC,Adult Social Care,Mental Health Support Adults (18 - 64),ADULT SERVICES,Third Party Payments,Other establishments,12/04/18,6216727,2697.43,VENDOR,CHOICE CARE GROUP,134468
Portsmouth City Council,PCC,Adult Social Care,Learning Disability Support  Adults (18 - 64),ADULT SERVICES,Third Party Payments,Other establishments,26/04/18,6219629,8310.34,VENDOR,CHOICE CARE GROUP,134468
Portsmouth City Council,PCC,Adult Social Care,Learning Disability Support  Adults (18 - 64),ADULT SERVICES,Income,Customer and client receipts,26/04/18,6219629,-438.21,VENDOR,CHOICE CARE GROUP,134468
Portsmouth City Council,PCC,Adult Social Care,Learning Disability Support  Adults (18 - 64),ADULT SERVICES,Third Party Payments,Other establishments,24/04/18,6218900,-331.82,VENDOR,CHOICE SUPPORT HAMPSHIRE,101204
Portsmouth City Council,PCC,Adult Social Care,Physical Support Adults (18 - 64),ADULT SERVICES,Third Party Payments,Other establishments,24/04/18,6218900,536.56,VENDOR,CHOICE SUPPORT HAMPSHIRE,101204
Portsmouth City Council,PCC,Adult Social Care,Physical Support Adults (18 - 64),ADULT SERVICES,Third Party Payments,Other establishments,24/04/18,6218900,536.56,VENDOR,CHOICE SUPPORT HAMPSHIRE,101204
Portsmouth City Council,PCC,Adult Social Care,Learning Disability Support  Adults (18 - 64),ADULT SERVICES,Third Party Payments,Other establishments,24/04/18,6218900,801.31,VENDOR,CHOICE SUPPORT HAMPSHIRE,101204
Portsmouth City Council,PCC,Adult Social Care,Learning Disability Support  Adults (18 - 64),ADULT SERVICES,Third Party Payments,Other establishments,24/04/18,6218900,508.32,VENDOR,CHOICE SUPPORT HAMPSHIRE,101204
Portsmouth City Council,PCC,Adult Social Care,Learning Disability Support  Adults (18 - 64),ADULT SERVICES,Third Party Payments,Other establishments,24/04/18,6218900,264.75,VENDOR,CHOICE SUPPORT HAMPSHIRE,101204
Portsmouth City Council,PCC,Adult Social Care,Physical Support Adults (18 - 64),ADULT SERVICES,Third Party Payments,Other establishments,24/04/18,6218900,600.1,VENDOR,CHOICE SUPPORT HAMPSHIRE,101204
Portsmouth City Council,PCC,Adult Social Care,Learning Disability Support  Adults (18 - 64),ADULT SERVICES,Third Party Payments,Other establishments,24/04/18,6218900,127.08,VENDOR,CHOICE SUPPORT HAMPSHIRE,101204
Portsmouth City Council,PCC,Adult Social Care,Learning Disability Support  Adults (18 - 64),ADULT SERVICES,Third Party Payments,Other establishments,24/04/18,6218900,861.32,VENDOR,CHOICE SUPPORT HAMPSHIRE,101204
Portsmouth City Council,PCC,Adult Social Care,Learning Disability Support  Adults (18 - 64),ADULT SERVICES,Third Party Payments,Other establishments,24/04/18,6218900,487.14,VENDOR,CHOICE SUPPORT HAMPSHIRE,101204
Portsmouth City Council,PCC,Adult Social Care,Learning Disability Support  Adults (18 - 64),ADULT SERVICES,Third Party Payments,Other establishments,24/04/18,6218900,840.14,VENDOR,CHOICE SUPPORT HAMPSHIRE,101204
Portsmouth City Council,PCC,Adult Social Care,Learning Disability Support  Adults (18 - 64),ADULT SERVICES,Third Party Payments,Other establishments,24/04/18,6218900,264.75,VENDOR,CHOICE SUPPORT HAMPSHIRE,101204
Portsmouth City Council,PCC,Adult Social Care,Learning Disability Support  Adults (18 - 64),ADULT SERVICES,Third Party Payments,Other establishments,24/04/18,6218900,225.92,VENDOR,CHOICE SUPPORT HAMPSHIRE,101204
Portsmouth City Council,PCC,Adult Social Care,Learning Disability Support  Adults (18 - 64),ADULT SERVICES,Third Party Payments,Other establishments,24/04/18,6218900,112.96,VENDOR,CHOICE SUPPORT HAMPSHIRE,101204
Portsmouth City Council,PCC,Adult Social Care,Learning Disability Support  Adults (18 - 64),ADULT SERVICES,Third Party Payments,Other establishments,24/04/18,6218900,112.96,VENDOR,CHOICE SUPPORT HAMPSHIRE,101204
Portsmouth City Council,PCC,Adult Social Care,Learning Disability Support  Adults (18 - 64),ADULT SERVICES,Third Party Payments,Other establishments,24/04/18,6218900,282.4,VENDOR,CHOICE SUPPORT HAMPSHIRE,101204
Portsmouth City Council,PCC,Adult Social Care,Learning Disabilty Support Older People (65 - 74),ADULT SERVICES,Third Party Payments,Other establishments,24/04/18,6218900,310.4,VENDOR,CHOICE SUPPORT HAMPSHIRE,101204
Portsmouth City Council,PCC,Adult Social Care,Learning Disability Support  Adults (18 - 64),ADULT SERVICES,Third Party Payments,Other establishments,24/04/18,6218900,112.96,VENDOR,CHOICE SUPPORT HAMPSHIRE,101204
Portsmouth City Council,PCC,Adult Social Care,Learning Disability Support  Adults (18 - 64),ADULT SERVICES,Third Party Payments,Other establishments,24/04/18,6218900,787.19,VENDOR,CHOICE SUPPORT HAMPSHIRE,101204
Portsmouth City Council,PCC,Adult Social Care,Learning Disability Support  Adults (18 - 64),ADULT SERVICES,Third Party Payments,Other establishments,17/04/18,6217299,1876.12,VENDOR,CHOICES 4 U LIMITED,100612
Portsmouth City Council,PCC,Adult Social Care,Learning Disability Support  Adults (18 - 64),ADULT SERVICES,Income,Customer and client receipts,17/04/18,6217299,-445.47,VENDOR,CHOICES 4 U LIMITED,100612
Portsmouth City Council,PCC,Adult Social Care,Support with Memory and Cognition Older People (85+),ADULT SERVICES,Third Party Payments,Other establishments,12/04/18,6216731,17883.45,VENDOR,CLARENDON CARE HOME.,138519
Portsmouth City Council,PCC,Adult Social Care,Social Care Activities,ADULT SERVICES,Third Party Payments,Other establishments,25/04/18,6219059,2170,VENDOR,COLLINGWOOD CARE SERVICES LTD,140887
Portsmouth City Council,PCC,Adult Social Care,Physical Support Older People (85+),ADULT SERVICES,Third Party Payments,Other establishments,25/04/18,6219059,682,VENDOR,COLLINGWOOD CARE SERVICES LTD,140887
Portsmouth City Council,PCC,Adult Social Care,Physical Support Older People (85+),ADULT SERVICES,Third Party Payments,Other establishments,25/04/18,6219059,2604,VENDOR,COLLINGWOOD CARE SERVICES LTD,140887
Portsmouth City Council,PCC,Adult Social Care,Social Care Activities,ADULT SERVICES,Third Party Payments,Other establishments,25/04/18,6219059,1116,VENDOR,COLLINGWOOD CARE SERVICES LTD,140887
Portsmouth City Council,PCC,Adult Social Care,Physical Support Older People (85+),ADULT SERVICES,Third Party Payments,Other establishments,26/04/18,6219632,1231,VENDOR,COLLINGWOOD CARE SERVICES LTD,140887
Portsmouth City Council,PCC,Adult Social Care,Learning Disabilty Support Older People (65 - 74),ADULT SERVICES,Third Party Payments,Other establishments,26/04/18,6219634,-313.54,VENDOR,COMMUNITY INTEGRATED CARE (CIC),102442
Portsmouth City Council,PCC,Adult Social Care,Learning Disability Support  Adults (18 - 64),ADULT SERVICES,Third Party Payments,Other establishments,10/04/18,6216070,3895.19,VENDOR,COMMUNITY INTEGRATED CARE (CIC),102442
Portsmouth City Council,PCC,Adult Social Care,Learning Disability Support  Adults (18 - 64),ADULT SERVICES,Third Party Payments,Other establishments,10/04/18,6216070,6185.74,VENDOR,COMMUNITY INTEGRATED CARE (CIC),102442
Portsmouth City Council,PCC,Adult Social Care,Learning Disability Support  Adults (18 - 64),ADULT SERVICES,Third Party Payments,Other establishments,16/04/18,6217154,3769.54,VENDOR,COMMUNITY INTEGRATED CARE (CIC),102442
Portsmouth City Council,PCC,Adult Social Care,Learning Disability Support  Adults (18 - 64),ADULT SERVICES,Third Party Payments,Other establishments,17/04/18,6217306,8852.7,VENDOR,COMMUNITY INTEGRATED CARE (CIC),102442
Portsmouth City Council,PCC,Adult Social Care,Learning Disability Support  Adults (18 - 64),ADULT SERVICES,Third Party Payments,Other establishments,17/04/18,6217306,941.1,VENDOR,COMMUNITY INTEGRATED CARE (CIC),102442
Portsmouth City Council,PCC,Adult Social Care,Learning Disability Support  Adults (18 - 64),ADULT SERVICES,Third Party Payments,Other establishments,17/04/18,6217306,5937,VENDOR,COMMUNITY INTEGRATED CARE (CIC),102442
Portsmouth City Council,PCC,Adult Social Care,Learning Disability Support  Adults (18 - 64),ADULT SERVICES,Income,Customer and client receipts,17/04/18,6217306,-337.5,VENDOR,COMMUNITY INTEGRATED CARE (CIC),102442
Portsmouth City Council,PCC,Adult Social Care,Learning Disability Support  Adults (18 - 64),ADULT SERVICES,Third Party Payments,Other establishments,17/04/18,6217306,10504.24,VENDOR,COMMUNITY INTEGRATED CARE (CIC),102442
Portsmouth City Council,PCC,Adult Social Care,Learning Disability Support  Adults (18 - 64),ADULT SERVICES,Income,Customer and client receipts,17/04/18,6217306,-587.74,VENDOR,COMMUNITY INTEGRATED CARE (CIC),102442
Portsmouth City Council,PCC,Adult Social Care,Learning Disability Support  Adults (18 - 64),ADULT SERVICES,Third Party Payments,Other establishments,16/04/18,6217154,4481.1,VENDOR,COMMUNITY INTEGRATED CARE (CIC),102442
Portsmouth City Council,PCC,Adult Social Care,Learning Disability Support  Adults (18 - 64),ADULT SERVICES,Third Party Payments,Other establishments,26/04/18,6219634,832,VENDOR,COMMUNITY INTEGRATED CARE (CIC),102442
Portsmouth City Council,PCC,Adult Social Care,Learning Disability Support  Adults (18 - 64),ADULT SERVICES,Third Party Payments,Other establishments,26/04/18,6219634,166.4,VENDOR,COMMUNITY INTEGRATED CARE (CIC),102442
Portsmouth City Council,PCC,Adult Social Care,Learning Disability Support  Adults (18 - 64),ADULT SERVICES,Third Party Payments,Other establishments,18/04/18,6217916,8065.5,VENDOR,COMMUNITY INTEGRATED CARE (CIC),102442
Portsmouth City Council,PCC,Adult Social Care,Learning Disability Support  Adults (18 - 64),ADULT SERVICES,Third Party Payments,Other establishments,17/04/18,6217306,11143.11,VENDOR,COMMUNITY INTEGRATED CARE (CIC),102442
Portsmouth City Council,PCC,Adult Social Care,Learning Disability Support  Adults (18 - 64),ADULT SERVICES,Third Party Payments,Other establishments,18/04/18,6217916,8975.14,VENDOR,COMMUNITY INTEGRATED CARE (CIC),102442
Portsmouth City Council,PCC,Adult Social Care,Learning Disability Support  Adults (18 - 64),ADULT SERVICES,Third Party Payments,Other establishments,17/04/18,6217306,7550.06,VENDOR,COMMUNITY INTEGRATED CARE (CIC),102442
Portsmouth City Council,PCC,Adult Social Care,Learning Disability Support  Adults (18 - 64),ADULT SERVICES,Third Party Payments,Other establishments,17/04/18,6217306,5912.7,VENDOR,COMMUNITY INTEGRATED CARE (CIC),102442
Portsmouth City Council,PCC,Adult Social Care,Learning Disability Support  Adults (18 - 64),ADULT SERVICES,Third Party Payments,Other establishments,17/04/18,6217306,5375.36,VENDOR,COMMUNITY INTEGRATED CARE (CIC),102442
Portsmouth City Council,PCC,Adult Social Care,Learning Disability Support  Adults (18 - 64),ADULT SERVICES,Income,Customer and client receipts,17/04/18,6217306,-583.12,VENDOR,COMMUNITY INTEGRATED CARE (CIC),102442
Portsmouth City Council,PCC,Adult Social Care,Learning Disability Support  Adults (18 - 64),ADULT SERVICES,Third Party Payments,Other establishments,16/04/18,6217154,1243.8,VENDOR,COMMUNITY INTEGRATED CARE (CIC),102442
Portsmouth City Council,PCC,Adult Social Care,Learning Disability Support  Adults (18 - 64),ADULT SERVICES,Third Party Payments,Other establishments,17/04/18,6217306,5373.48,VENDOR,COMMUNITY INTEGRATED CARE (CIC),102442
Portsmouth City Council,PCC,Adult Social Care,Learning Disability Support  Adults (18 - 64),ADULT SERVICES,Income,Customer and client receipts,17/04/18,6217306,-436.38,VENDOR,COMMUNITY INTEGRATED CARE (CIC),102442
Portsmouth City Council,PCC,Adult Social Care,Learning Disability Support  Adults (18 - 64),ADULT SERVICES,Third Party Payments,Other establishments,16/04/18,6217154,5986.2,VENDOR,COMMUNITY INTEGRATED CARE (CIC),102442
Portsmouth City Council,PCC,Adult Social Care,Social Care Activities,ADULT SERVICES,Third Party Payments,Other establishments,17/04/18,6217306,7686.47,VENDOR,COMMUNITY INTEGRATED CARE (CIC),102442
Portsmouth City Council,PCC,Adult Social Care,Social Care Activities,ADULT SERVICES,Third Party Payments,Other establishments,17/04/18,6217306,13265.61,VENDOR,COMMUNITY INTEGRATED CARE (CIC),102442
Portsmouth City Council,PCC,Adult Social Care,Learning Disability Support  Adults (18 - 64),ADULT SERVICES,Third Party Payments,Other establishments,17/04/18,6217306,5887.28,VENDOR,COMMUNITY INTEGRATED CARE (CIC),102442
Portsmouth City Council,PCC,Adult Social Care,Learning Disability Support  Adults (18 - 64),ADULT SERVICES,Income,Customer and client receipts,17/04/18,6217306,-384.68,VENDOR,COMMUNITY INTEGRATED CARE (CIC),102442
Portsmouth City Council,PCC,Adult Social Care,Learning Disability Support  Adults (18 - 64),ADULT SERVICES,Third Party Payments,Other establishments,27/04/18,6219755,5373.48,VENDOR,COMMUNITY INTEGRATED CARE (CIC),102442
Portsmouth City Council,PCC,Adult Social Care,Learning Disability Support  Adults (18 - 64),ADULT SERVICES,Income,Customer and client receipts,27/04/18,6219755,-436.38,VENDOR,COMMUNITY INTEGRATED CARE (CIC),102442
Portsmouth City Council,PCC,Adult Social Care,Learning Disability Support  Adults (18 - 64),ADULT SERVICES,Third Party Payments,Other establishments,17/04/18,6217306,5938.76,VENDOR,COMMUNITY INTEGRATED CARE (CIC),102442
Portsmouth City Council,PCC,Adult Social Care,Learning Disability Support  Adults (18 - 64),ADULT SERVICES,Income,Customer and client receipts,17/04/18,6217306,-407.36,VENDOR,COMMUNITY INTEGRATED CARE (CIC),102442
Portsmouth City Council,PCC,Adult Social Care,Support with Memory and Cognition Older People (85+),ADULT SERVICES,Third Party Payments,Other establishments,12/04/18,6216737,2027.7,VENDOR,CONTEMPLATION HOMES LIMITED,101879
Portsmouth City Council,PCC,Adult Social Care,Social Care Activities,ADULT SERVICES,Third Party Payments,Other establishments,12/04/18,6216736,4112.31,VENDOR,CONTEMPLATION HOMES LIMITED,101879
Portsmouth City Council,PCC,Adult Social Care,Social Care Activities,ADULT SERVICES,Premises-Related Expenditure,"Repairs, alterations and maintenance of buildings",23/04/18,6218751,2500,COMPANY,CORRIGENDA LIMITED T/A CHURCHES,102100
Portsmouth City Council,PCC,Adult Social Care,Support with Memory and Cognition Older People (65 - 74),ADULT SERVICES,Supplies and Services,"Equipment, furniture and materials",09/04/18,6215978,13.2,VENDOR,COURTNEY THORNE LTD,131762
Portsmouth City Council,PCC,Adult Social Care,Support with Memory and Cognition Older People (65 - 74),ADULT SERVICES,Supplies and Services,"Equipment, furniture and materials",09/04/18,6215978,600,VENDOR,COURTNEY THORNE LTD,131762
Portsmouth City Council,PCC,Adult Social Care,Support with Memory and Cognition Older People (65 - 74),ADULT SERVICES,Supplies and Services,"Equipment, furniture and materials",09/04/18,6215978,84,VENDOR,COURTNEY THORNE LTD,131762
Portsmouth City Council,PCC,Adult Social Care,Support with Memory and Cognition Older People (65 - 74),ADULT SERVICES,Supplies and Services,"Equipment, furniture and materials",09/04/18,6215978,158,VENDOR,COURTNEY THORNE LTD,131762
Portsmouth City Council,PCC,Adult Social Care,Support with Memory and Cognition Older People (65 - 74),ADULT SERVICES,Supplies and Services,"Equipment, furniture and materials",10/04/18,6216087,1098.81,VENDOR,COURTNEY THORNE LTD,131762
Portsmouth City Council,PCC,Adult Social Care,Mental Health Support Adults (18 - 64),ADULT SERVICES,Third Party Payments,Other establishments,27/04/18,6219798,3517.8,VENDOR,CRAWFORDS CARE HOMES LTD,134328
Portsmouth City Council,PCC,Adult Social Care,Social Care Activities,ADULT SERVICES,Third Party Payments,Other establishments,17/04/18,6217336,3148.5,VENDOR,CRAWFORDS CARE HOMES LTD,134328
Portsmouth City Council,PCC,Adult Social Care,Learning Disability Support  Adults (18 - 64),ADULT SERVICES,Third Party Payments,Other establishments,19/04/18,6218438,683.68,VENDOR,CREATIVE ADVANCES LTD,100117
Portsmouth City Council,PCC,Adult Social Care,Learning Disability Support  Adults (18 - 64),ADULT SERVICES,Third Party Payments,Other establishments,19/04/18,6218438,683.68,VENDOR,CREATIVE ADVANCES LTD,100117
Portsmouth City Council,PCC,Adult Social Care,Learning Disability Support  Adults (18 - 64),ADULT SERVICES,Third Party Payments,Other establishments,19/04/18,6218438,640.95,VENDOR,CREATIVE ADVANCES LTD,100117
Portsmouth City Council,PCC,Adult Social Care,Learning Disability Support  Adults (18 - 64),ADULT SERVICES,Third Party Payments,Other establishments,06/04/18,6215860,85.46,VENDOR,CREATIVE ADVANCES LTD,100117
Portsmouth City Council,PCC,Adult Social Care,Learning Disability Support  Adults (18 - 64),ADULT SERVICES,Third Party Payments,Other establishments,19/04/18,6218438,3859.32,VENDOR,CREATIVE ADVANCES LTD,100117
Portsmouth City Council,PCC,Adult Social Care,Learning Disability Support  Adults (18 - 64),ADULT SERVICES,Third Party Payments,Other establishments,19/04/18,6218438,683.68,VENDOR,CREATIVE ADVANCES LTD,100117
Portsmouth City Council,PCC,Adult Social Care,Learning Disability Support  Adults (18 - 64),ADULT SERVICES,Third Party Payments,Other establishments,06/04/18,6215860,4996.12,VENDOR,CREATIVE ADVANCES LTD,100117
Portsmouth City Council,PCC,Adult Social Care,Learning Disability Support  Adults (18 - 64),ADULT SERVICES,Third Party Payments,Other establishments,05/04/18,6215635,4996.12,VENDOR,CREATIVE ADVANCES LTD,100117
Portsmouth City Council,PCC,Adult Social Care,Learning Disability Support  Adults (18 - 64),ADULT SERVICES,Third Party Payments,Other establishments,06/04/18,6215860,3114.52,VENDOR,CREATIVE ADVANCES LTD,100117
Portsmouth City Council,PCC,Adult Social Care,Learning Disability Support  Adults (18 - 64),ADULT SERVICES,Third Party Payments,Other establishments,05/04/18,6215635,3114.52,VENDOR,CREATIVE ADVANCES LTD,100117
Portsmouth City Council,PCC,Adult Social Care,Learning Disability Support  Adults (18 - 64),ADULT SERVICES,Third Party Payments,Other establishments,17/04/18,6217337,420,VENDOR,CREATIVE ADVANCES LTD,100117
Portsmouth City Council,PCC,Adult Social Care,Learning Disability Support  Adults (18 - 64),ADULT SERVICES,Third Party Payments,Other establishments,17/04/18,6217337,210,VENDOR,CREATIVE ADVANCES LTD,100117
Portsmouth City Council,PCC,Adult Social Care,Learning Disability Support  Adults (18 - 64),ADULT SERVICES,Third Party Payments,Other establishments,17/04/18,6217337,560,VENDOR,CREATIVE ADVANCES LTD,100117
Portsmouth City Council,PCC,Adult Social Care,Learning Disability Support  Adults (18 - 64),ADULT SERVICES,Third Party Payments,Other establishments,17/04/18,6217337,420,VENDOR,CREATIVE ADVANCES LTD,100117
Portsmouth City Council,PCC,Adult Social Care,Learning Disability Support  Adults (18 - 64),ADULT SERVICES,Third Party Payments,Other establishments,17/04/18,6217337,840,VENDOR,CREATIVE ADVANCES LTD,100117
Portsmouth City Council,PCC,Adult Social Care,Learning Disabilty Support Older People (65 - 74),ADULT SERVICES,Third Party Payments,Other establishments,17/04/18,6217337,140,VENDOR,CREATIVE ADVANCES LTD,100117
Portsmouth City Council,PCC,Adult Social Care,Learning Disability Support  Adults (18 - 64),ADULT SERVICES,Third Party Payments,Other establishments,17/04/18,6217337,420,VENDOR,CREATIVE ADVANCES LTD,100117
Portsmouth City Council,PCC,Adult Social Care,Learning Disability Support  Adults (18 - 64),ADULT SERVICES,Third Party Payments,Other establishments,17/04/18,6217337,455,VENDOR,CREATIVE ADVANCES LTD,100117
Portsmouth City Council,PCC,Adult Social Care,Learning Disability Support  Adults (18 - 64),ADULT SERVICES,Third Party Payments,Other establishments,17/04/18,6217337,140,VENDOR,CREATIVE ADVANCES LTD,100117
Portsmouth City Council,PCC,Adult Social Care,Learning Disability Support  Adults (18 - 64),ADULT SERVICES,Third Party Payments,Other establishments,17/04/18,6217337,105,VENDOR,CREATIVE ADVANCES LTD,100117
Portsmouth City Council,PCC,Adult Social Care,Learning Disabilty Support Older People (65 - 74),ADULT SERVICES,Third Party Payments,Other establishments,17/04/18,6217337,140,VENDOR,CREATIVE ADVANCES LTD,100117
Portsmouth City Council,PCC,Adult Social Care,Learning Disabilty Support Older People (65 - 74),ADULT SERVICES,Third Party Payments,Other establishments,17/04/18,6217337,280,VENDOR,CREATIVE ADVANCES LTD,100117
Portsmouth City Council,PCC,Adult Social Care,Learning Disability Support  Adults (18 - 64),ADULT SERVICES,Third Party Payments,Other establishments,17/04/18,6217337,210,VENDOR,CREATIVE ADVANCES LTD,100117
Portsmouth City Council,PCC,Adult Social Care,Learning Disability Support  Adults (18 - 64),ADULT SERVICES,Third Party Payments,Other establishments,17/04/18,6217337,280,VENDOR,CREATIVE ADVANCES LTD,100117
Portsmouth City Council,PCC,Adult Social Care,Learning Disability Support  Adults (18 - 64),ADULT SERVICES,Third Party Payments,Other establishments,30/04/18,6219924,2082.5,VENDOR,CREATIVE ADVANCES LTD,100117
Portsmouth City Council,PCC,Adult Social Care,Learning Disability Support  Adults (18 - 64),ADULT SERVICES,Third Party Payments,Other establishments,17/04/18,6217337,1050,VENDOR,CREATIVE ADVANCES LTD,100117
Portsmouth City Council,PCC,Adult Social Care,Learning Disability Support  Adults (18 - 64),ADULT SERVICES,Third Party Payments,Other establishments,17/04/18,6217337,105,VENDOR,CREATIVE ADVANCES LTD,100117
Portsmouth City Council,PCC,Adult Social Care,Learning Disability Support  Adults (18 - 64),ADULT SERVICES,Third Party Payments,Other establishments,17/04/18,6217337,945,VENDOR,CREATIVE ADVANCES LTD,100117
Portsmouth City Council,PCC,Adult Social Care,Learning Disability Support  Older People (75 - 84),ADULT SERVICES,Third Party Payments,Other establishments,17/04/18,6217337,210,VENDOR,CREATIVE ADVANCES LTD,100117
Portsmouth City Council,PCC,Adult Social Care,Learning Disability Support  Adults (18 - 64),ADULT SERVICES,Third Party Payments,Other establishments,17/04/18,6217337,1960,VENDOR,CREATIVE ADVANCES LTD,100117
Portsmouth City Council,PCC,Adult Social Care,Learning Disability Support  Adults (18 - 64),ADULT SERVICES,Third Party Payments,Other establishments,17/04/18,6217337,683.68,VENDOR,CREATIVE ADVANCES LTD,100117
Portsmouth City Council,PCC,Adult Social Care,Learning Disability Support  Adults (18 - 64),ADULT SERVICES,Third Party Payments,Other establishments,17/04/18,6217337,683.68,VENDOR,CREATIVE ADVANCES LTD,100117
Portsmouth City Council,PCC,Adult Social Care,Learning Disability Support  Adults (18 - 64),ADULT SERVICES,Third Party Payments,Other establishments,17/04/18,6217337,341.84,VENDOR,CREATIVE ADVANCES LTD,100117
Portsmouth City Council,PCC,Adult Social Care,Learning Disability Support  Adults (18 - 64),ADULT SERVICES,Third Party Payments,Other establishments,17/04/18,6217337,341.84,VENDOR,CREATIVE ADVANCES LTD,100117
Portsmouth City Council,PCC,Adult Social Care,Learning Disability Support  Adults (18 - 64),ADULT SERVICES,Third Party Payments,Other establishments,17/04/18,6217337,854.6,VENDOR,CREATIVE ADVANCES LTD,100117
Portsmouth City Council,PCC,Adult Social Care,Learning Disability Support  Adults (18 - 64),ADULT SERVICES,Third Party Payments,Other establishments,17/04/18,6217337,512.76,VENDOR,CREATIVE ADVANCES LTD,100117
Portsmouth City Council,PCC,Adult Social Care,Learning Disability Support  Adults (18 - 64),ADULT SERVICES,Third Party Payments,Other establishments,17/04/18,6217337,683.68,VENDOR,CREATIVE ADVANCES LTD,100117
Portsmouth City Council,PCC,Adult Social Care,Learning Disability Support  Adults (18 - 64),ADULT SERVICES,Third Party Payments,Other establishments,17/04/18,6217337,854.6,VENDOR,CREATIVE ADVANCES LTD,100117
Portsmouth City Council,PCC,Adult Social Care,Learning Disability Support  Adults (18 - 64),ADULT SERVICES,Third Party Payments,Other establishments,17/04/18,6217337,854.6,VENDOR,CREATIVE ADVANCES LTD,100117
Portsmouth City Council,PCC,Adult Social Care,Learning Disability Support  Adults (18 - 64),ADULT SERVICES,Third Party Payments,Other establishments,17/04/18,6217337,170.92,VENDOR,CREATIVE ADVANCES LTD,100117
Portsmouth City Council,PCC,Adult Social Care,Learning Disability Support  Adults (18 - 64),ADULT SERVICES,Third Party Payments,Other establishments,17/04/18,6217337,683.68,VENDOR,CREATIVE ADVANCES LTD,100117
Portsmouth City Council,PCC,Adult Social Care,Learning Disability Support  Adults (18 - 64),ADULT SERVICES,Third Party Payments,Other establishments,17/04/18,6217337,525,VENDOR,CREATIVE ADVANCES LTD,100117
Portsmouth City Council,PCC,Adult Social Care,Learning Disability Support  Adults (18 - 64),ADULT SERVICES,Third Party Payments,Other establishments,17/04/18,6217337,512.76,VENDOR,CREATIVE ADVANCES LTD,100117
Portsmouth City Council,PCC,Adult Social Care,Learning Disability Support  Adults (18 - 64),ADULT SERVICES,Third Party Payments,Other establishments,17/04/18,6217337,854.6,VENDOR,CREATIVE ADVANCES LTD,100117
Portsmouth City Council,PCC,Adult Social Care,Learning Disability Support  Adults (18 - 64),ADULT SERVICES,Third Party Payments,Other establishments,17/04/18,6217337,854.6,VENDOR,CREATIVE ADVANCES LTD,100117
Portsmouth City Council,PCC,Adult Social Care,Learning Disability Support  Adults (18 - 64),ADULT SERVICES,Third Party Payments,Other establishments,17/04/18,6217337,341.84,VENDOR,CREATIVE ADVANCES LTD,100117
Portsmouth City Council,PCC,Adult Social Care,Learning Disability Support  Adults (18 - 64),ADULT SERVICES,Third Party Payments,Other establishments,17/04/18,6217337,683.68,VENDOR,CREATIVE ADVANCES LTD,100117
Portsmouth City Council,PCC,Adult Social Care,Learning Disabilty Support Older People (65 - 74),ADULT SERVICES,Third Party Payments,Other establishments,17/04/18,6217337,341.84,VENDOR,CREATIVE ADVANCES LTD,100117
Portsmouth City Council,PCC,Adult Social Care,Learning Disability Support  Adults (18 - 64),ADULT SERVICES,Third Party Payments,Other establishments,17/04/18,6217337,256.38,VENDOR,CREATIVE ADVANCES LTD,100117
Portsmouth City Council,PCC,Adult Social Care,Learning Disability Support  Adults (18 - 64),ADULT SERVICES,Third Party Payments,Other establishments,17/04/18,6217337,341.84,VENDOR,CREATIVE ADVANCES LTD,100117
Portsmouth City Council,PCC,Adult Social Care,Learning Disability Support  Adults (18 - 64),ADULT SERVICES,Third Party Payments,Other establishments,17/04/18,6217337,85.46,VENDOR,CREATIVE ADVANCES LTD,100117
Portsmouth City Council,PCC,Adult Social Care,Learning Disability Support  Adults (18 - 64),ADULT SERVICES,Third Party Payments,Other establishments,17/04/18,6217337,854.6,VENDOR,CREATIVE ADVANCES LTD,100117
Portsmouth City Council,PCC,Adult Social Care,Learning Disability Support  Adults (18 - 64),ADULT SERVICES,Third Party Payments,Other establishments,17/04/18,6217337,512.76,VENDOR,CREATIVE ADVANCES LTD,100117
Portsmouth City Council,PCC,Adult Social Care,Learning Disability Support  Adults (18 - 64),ADULT SERVICES,Third Party Payments,Other establishments,17/04/18,6217337,512.76,VENDOR,CREATIVE ADVANCES LTD,100117
Portsmouth City Council,PCC,Adult Social Care,Learning Disability Support  Adults (18 - 64),ADULT SERVICES,Third Party Payments,Other establishments,17/04/18,6217337,683.68,VENDOR,CREATIVE ADVANCES LTD,100117
Portsmouth City Council,PCC,Adult Social Care,Learning Disability Support  Adults (18 - 64),ADULT SERVICES,Third Party Payments,Other establishments,17/04/18,6217337,515.04,VENDOR,CREATIVE ADVANCES LTD,100117
Portsmouth City Council,PCC,Adult Social Care,Learning Disability Support  Adults (18 - 64),ADULT SERVICES,Third Party Payments,Other establishments,17/04/18,6217337,772.56,VENDOR,CREATIVE ADVANCES LTD,100117
Portsmouth City Council,PCC,Adult Social Care,Learning Disability Support  Adults (18 - 64),ADULT SERVICES,Third Party Payments,Other establishments,17/04/18,6217337,257.52,VENDOR,CREATIVE ADVANCES LTD,100117
Portsmouth City Council,PCC,Adult Social Care,Learning Disability Support  Adults (18 - 64),ADULT SERVICES,Third Party Payments,Other establishments,17/04/18,6217337,1287.6,VENDOR,CREATIVE ADVANCES LTD,100117
Portsmouth City Council,PCC,Adult Social Care,Learning Disability Support  Adults (18 - 64),ADULT SERVICES,Third Party Payments,Other establishments,17/04/18,6217337,244.78,VENDOR,CREATIVE ADVANCES LTD,100117
Portsmouth City Council,PCC,Adult Social Care,Learning Disability Support  Adults (18 - 64),ADULT SERVICES,Third Party Payments,Other establishments,17/04/18,6217337,515.04,VENDOR,CREATIVE ADVANCES LTD,100117
Portsmouth City Council,PCC,Adult Social Care,Learning Disability Support  Adults (18 - 64),ADULT SERVICES,Third Party Payments,Other establishments,17/04/18,6217337,1287.6,VENDOR,CREATIVE ADVANCES LTD,100117
Portsmouth City Council,PCC,Adult Social Care,Learning Disability Support  Adults (18 - 64),ADULT SERVICES,Third Party Payments,Other establishments,17/04/18,6217337,515.04,VENDOR,CREATIVE ADVANCES LTD,100117
Portsmouth City Council,PCC,Adult Social Care,Learning Disability Support  Adults (18 - 64),ADULT SERVICES,Third Party Payments,Other establishments,17/04/18,6217337,1287.6,VENDOR,CREATIVE ADVANCES LTD,100117
Portsmouth City Council,PCC,Adult Social Care,Learning Disability Support  Adults (18 - 64),ADULT SERVICES,Third Party Payments,Other establishments,17/04/18,6217337,772.56,VENDOR,CREATIVE ADVANCES LTD,100117
Portsmouth City Council,PCC,Adult Social Care,Learning Disability Support  Adults (18 - 64),ADULT SERVICES,Third Party Payments,Other establishments,17/04/18,6217337,244.78,VENDOR,CREATIVE ADVANCES LTD,100117
Portsmouth City Council,PCC,Adult Social Care,Learning Disability Support  Adults (18 - 64),ADULT SERVICES,Third Party Payments,Other establishments,17/04/18,6217337,772.56,VENDOR,CREATIVE ADVANCES LTD,100117
Portsmouth City Council,PCC,Adult Social Care,Learning Disability Support  Adults (18 - 64),ADULT SERVICES,Third Party Payments,Other establishments,17/04/18,6217337,734.34,VENDOR,CREATIVE ADVANCES LTD,100117
Portsmouth City Council,PCC,Adult Social Care,Learning Disability Support  Adults (18 - 64),ADULT SERVICES,Third Party Payments,Other establishments,17/04/18,6217337,979.12,VENDOR,CREATIVE ADVANCES LTD,100117
Portsmouth City Council,PCC,Adult Social Care,Learning Disability Support  Adults (18 - 64),ADULT SERVICES,Third Party Payments,Other establishments,17/04/18,6217337,489.56,VENDOR,CREATIVE ADVANCES LTD,100117
Portsmouth City Council,PCC,Adult Social Care,Learning Disability Support  Adults (18 - 64),ADULT SERVICES,Third Party Payments,Other establishments,17/04/18,6217337,515.04,VENDOR,CREATIVE ADVANCES LTD,100117
Portsmouth City Council,PCC,Adult Social Care,Learning Disability Support  Adults (18 - 64),ADULT SERVICES,Third Party Payments,Other establishments,17/04/18,6217337,1860,VENDOR,CREATIVE ADVANCES LTD,100117
Portsmouth City Council,PCC,Adult Social Care,Learning Disability Support  Adults (18 - 64),ADULT SERVICES,Third Party Payments,Other establishments,17/04/18,6217337,1114,VENDOR,CREATIVE ADVANCES LTD,100117
Portsmouth City Council,PCC,Adult Social Care,Learning Disability Support  Adults (18 - 64),ADULT SERVICES,Third Party Payments,Other establishments,17/04/18,6217337,467,VENDOR,CREATIVE ADVANCES LTD,100117
Portsmouth City Council,PCC,Adult Social Care,Learning Disability Support  Adults (18 - 64),ADULT SERVICES,Third Party Payments,Other establishments,17/04/18,6217337,1860,VENDOR,CREATIVE ADVANCES LTD,100117
Portsmouth City Council,PCC,Adult Social Care,Learning Disability Support  Adults (18 - 64),ADULT SERVICES,Third Party Payments,Other establishments,17/04/18,6217337,1468.68,VENDOR,CREATIVE ADVANCES LTD,100117
Portsmouth City Council,PCC,Adult Social Care,Learning Disability Support  Adults (18 - 64),ADULT SERVICES,Third Party Payments,Other establishments,17/04/18,6217337,979.12,VENDOR,CREATIVE ADVANCES LTD,100117
Portsmouth City Council,PCC,Adult Social Care,Learning Disability Support  Adults (18 - 64),ADULT SERVICES,Third Party Payments,Other establishments,17/04/18,6217337,1223.9,VENDOR,CREATIVE ADVANCES LTD,100117
Portsmouth City Council,PCC,Adult Social Care,Learning Disability Support  Adults (18 - 64),ADULT SERVICES,Third Party Payments,Other establishments,17/04/18,6217337,2447.8,VENDOR,CREATIVE ADVANCES LTD,100117
Portsmouth City Council,PCC,Adult Social Care,Learning Disability Support  Adults (18 - 64),ADULT SERVICES,Third Party Payments,Other establishments,17/04/18,6217337,1468.68,VENDOR,CREATIVE ADVANCES LTD,100117
Portsmouth City Council,PCC,Adult Social Care,Learning Disability Support  Adults (18 - 64),ADULT SERVICES,Third Party Payments,Other establishments,17/04/18,6217337,979.12,VENDOR,CREATIVE ADVANCES LTD,100117
Portsmouth City Council,PCC,Adult Social Care,Learning Disability Support  Adults (18 - 64),ADULT SERVICES,Third Party Payments,Other establishments,17/04/18,6217337,734.34,VENDOR,CREATIVE ADVANCES LTD,100117
Portsmouth City Council,PCC,Adult Social Care,Learning Disability Support  Adults (18 - 64),ADULT SERVICES,Third Party Payments,Other establishments,17/04/18,6217337,2447.8,VENDOR,CREATIVE ADVANCES LTD,100117
Portsmouth City Council,PCC,Adult Social Care,Learning Disability Support  Adults (18 - 64),ADULT SERVICES,Third Party Payments,Other establishments,17/04/18,6217337,244.78,VENDOR,CREATIVE ADVANCES LTD,100117
Portsmouth City Council,PCC,Adult Social Care,Learning Disability Support  Adults (18 - 64),ADULT SERVICES,Third Party Payments,Other establishments,17/04/18,6217337,1223.9,VENDOR,CREATIVE ADVANCES LTD,100117
Portsmouth City Council,PCC,Adult Social Care,Learning Disability Support  Adults (18 - 64),ADULT SERVICES,Third Party Payments,Other establishments,17/04/18,6217337,244.78,VENDOR,CREATIVE ADVANCES LTD,100117
Portsmouth City Council,PCC,Adult Social Care,Learning Disability Support  Adults (18 - 64),ADULT SERVICES,Third Party Payments,Other establishments,17/04/18,6217337,979.12,VENDOR,CREATIVE ADVANCES LTD,100117
Portsmouth City Council,PCC,Adult Social Care,Learning Disability Support  Adults (18 - 64),ADULT SERVICES,Third Party Payments,Other establishments,17/04/18,6217337,979.12,VENDOR,CREATIVE ADVANCES LTD,100117
Portsmouth City Council,PCC,Adult Social Care,Learning Disability Support  Adults (18 - 64),ADULT SERVICES,Third Party Payments,Other establishments,17/04/18,6217337,367.17,VENDOR,CREATIVE ADVANCES LTD,100117
Portsmouth City Council,PCC,Adult Social Care,Learning Disability Support  Adults (18 - 64),ADULT SERVICES,Third Party Payments,Other establishments,17/04/18,6217337,367.17,VENDOR,CREATIVE ADVANCES LTD,100117
Portsmouth City Council,PCC,Adult Social Care,Physical Support Adults (18 - 64),ADULT SERVICES,Third Party Payments,Other establishments,17/04/18,6217337,162,VENDOR,CREATIVE ADVANCES LTD,100117
Portsmouth City Council,PCC,Adult Social Care,Physical Support Adults (18 - 64),ADULT SERVICES,Third Party Payments,Other establishments,17/04/18,6217337,588,VENDOR,CREATIVE ADVANCES LTD,100117
Portsmouth City Council,PCC,Adult Social Care,Learning Disability Support  Adults (18 - 64),ADULT SERVICES,Third Party Payments,Other establishments,19/04/18,6218438,640,VENDOR,CREATIVE ADVANCES LTD,100117
Portsmouth City Council,PCC,Adult Social Care,Physical Support Older People (65-74),ADULT SERVICES,Third Party Payments,Other establishments,12/04/18,6216764,839.58,VENDOR,CRESCENT CARE LTD,100664
Portsmouth City Council,PCC,Adult Social Care,Physical Support Adults (18 - 64),ADULT SERVICES,Third Party Payments,Other establishments,12/04/18,6216764,1835.1,VENDOR,CRESCENT CARE LTD,100664
Portsmouth City Council,PCC,Adult Social Care,Support with Memory and Cognition Older People (85+),ADULT SERVICES,Third Party Payments,Other establishments,12/04/18,6216764,40123.47,VENDOR,CRESCENT CARE LTD,100664
Portsmouth City Council,PCC,Adult Social Care,Learning Disability Support  Adults (18 - 64),ADULT SERVICES,Third Party Payments,Other establishments,12/04/18,6216764,2216.4,VENDOR,CRESCENT CARE LTD,100664
Portsmouth City Council,PCC,Adult Social Care,Mental Health Support Adults (18 - 64),ADULT SERVICES,Third Party Payments,Other establishments,12/04/18,6216764,6315,VENDOR,CRESCENT CARE LTD,100664
Portsmouth City Council,PCC,Adult Social Care,Physical Support Older People (85+),ADULT SERVICES,Third Party Payments,Other establishments,23/04/18,6218785,-39.3,VENDOR,CRESCENT COMMUNITY CARE SERVICES LTD,100118
Portsmouth City Council,PCC,Adult Social Care,Physical Support Older People (85+),ADULT SERVICES,Third Party Payments,Other establishments,24/04/18,6218914,141.48,VENDOR,CRESCENT COMMUNITY CARE SERVICES LTD,100118
Portsmouth City Council,PCC,Adult Social Care,Physical Support Older People (65-74),ADULT SERVICES,Third Party Payments,Other establishments,24/04/18,6218914,180.78,VENDOR,CRESCENT COMMUNITY CARE SERVICES LTD,100118
Portsmouth City Council,PCC,Adult Social Care,Physical Support Older People (85+),ADULT SERVICES,Third Party Payments,Other establishments,24/04/18,6218914,369.42,VENDOR,CRESCENT COMMUNITY CARE SERVICES LTD,100118
Portsmouth City Council,PCC,Adult Social Care,Physical Support Older People (65-74),ADULT SERVICES,Third Party Payments,Other establishments,24/04/18,6218914,-70.74,VENDOR,CRESCENT COMMUNITY CARE SERVICES LTD,100118
Portsmouth City Council,PCC,Adult Social Care,Physical Support Older People (85+),ADULT SERVICES,Third Party Payments,Other establishments,20/04/18,6218611,271.17,VENDOR,CRESCENT COMMUNITY CARE SERVICES LTD,100118
Portsmouth City Council,PCC,Adult Social Care,Physical Support Older People (85+),ADULT SERVICES,Third Party Payments,Other establishments,20/04/18,6218611,864.6,VENDOR,CRESCENT COMMUNITY CARE SERVICES LTD,100118
Portsmouth City Council,PCC,Adult Social Care,Physical Support Older People (65-74),ADULT SERVICES,Third Party Payments,Other establishments,24/04/18,6218914,385.14,VENDOR,CRESCENT COMMUNITY CARE SERVICES LTD,100118
Portsmouth City Council,PCC,Adult Social Care,Physical Support Older People (85+),ADULT SERVICES,Third Party Payments,Other establishments,24/04/18,6218914,432.3,VENDOR,CRESCENT COMMUNITY CARE SERVICES LTD,100118
Portsmouth City Council,PCC,Adult Social Care,Physical Support Older People (85+),ADULT SERVICES,Third Party Payments,Other establishments,23/04/18,6218785,1135.77,VENDOR,CRESCENT COMMUNITY CARE SERVICES LTD,100118
Portsmouth City Council,PCC,Adult Social Care,Physical Support Older People (85+),ADULT SERVICES,Third Party Payments,Other establishments,23/04/18,6218785,162.24,VENDOR,CRESCENT COMMUNITY CARE SERVICES LTD,100118
Portsmouth City Council,PCC,Adult Social Care,Support with Memory and Cognition Older People (85+),ADULT SERVICES,Third Party Payments,Other establishments,24/04/18,6218914,675.96,VENDOR,CRESCENT COMMUNITY CARE SERVICES LTD,100118
Portsmouth City Council,PCC,Adult Social Care,Physical Support Adults (75 - 84),ADULT SERVICES,Third Party Payments,Other establishments,24/04/18,6218914,70.74,VENDOR,CRESCENT COMMUNITY CARE SERVICES LTD,100118
Portsmouth City Council,PCC,Adult Social Care,Physical Support Adults (75 - 84),ADULT SERVICES,Third Party Payments,Other establishments,24/04/18,6218914,204.36,VENDOR,CRESCENT COMMUNITY CARE SERVICES LTD,100118
Portsmouth City Council,PCC,Adult Social Care,Physical Support Older People (85+),ADULT SERVICES,Third Party Payments,Other establishments,24/04/18,6218914,880.32,VENDOR,CRESCENT COMMUNITY CARE SERVICES LTD,100118
Portsmouth City Council,PCC,Adult Social Care,Physical Support Older People (85+),ADULT SERVICES,Third Party Payments,Other establishments,24/04/18,6218914,432.3,VENDOR,CRESCENT COMMUNITY CARE SERVICES LTD,100118
Portsmouth City Council,PCC,Adult Social Care,Physical Support Adults (75 - 84),ADULT SERVICES,Third Party Payments,Other establishments,19/04/18,6218439,74.11,VENDOR,CRESCENT COMMUNITY CARE SERVICES LTD,100118
Portsmouth City Council,PCC,Adult Social Care,Physical Support Adults (75 - 84),ADULT SERVICES,Third Party Payments,Other establishments,19/04/18,6218439,47.72,VENDOR,CRESCENT COMMUNITY CARE SERVICES LTD,100118
Portsmouth City Council,PCC,Adult Social Care,Physical Support Adults (75 - 84),ADULT SERVICES,Third Party Payments,Other establishments,19/04/18,6218439,23.58,VENDOR,CRESCENT COMMUNITY CARE SERVICES LTD,100118
Portsmouth City Council,PCC,Adult Social Care,Social Care Activities,ADULT SERVICES,Third Party Payments,Other establishments,23/04/18,6218785,1689.9,VENDOR,CRESCENT COMMUNITY CARE SERVICES LTD,100118
Portsmouth City Council,PCC,Adult Social Care,Social Care Activities,ADULT SERVICES,Third Party Payments,Other establishments,23/04/18,6218785,216.32,VENDOR,CRESCENT COMMUNITY CARE SERVICES LTD,100118
Portsmouth City Council,PCC,Adult Social Care,Social Support - Support for Carer,ADULT SERVICES,Third Party Payments,Other establishments,23/04/18,6218785,108.16,VENDOR,CRESCENT COMMUNITY CARE SERVICES LTD,100118
Portsmouth City Council,PCC,Adult Social Care,Physical Support Older People (85+),ADULT SERVICES,Third Party Payments,Other establishments,23/04/18,6218785,440.16,VENDOR,CRESCENT COMMUNITY CARE SERVICES LTD,100118
Portsmouth City Council,PCC,Adult Social Care,Learning Disability Support  Adults (18 - 64),ADULT SERVICES,Third Party Payments,Other establishments,19/04/18,6218439,62.88,VENDOR,CRESCENT COMMUNITY CARE SERVICES LTD,100118
Portsmouth City Council,PCC,Adult Social Care,Learning Disability Support  Adults (18 - 64),ADULT SERVICES,Third Party Payments,Other establishments,19/04/18,6218439,23.07,VENDOR,CRESCENT COMMUNITY CARE SERVICES LTD,100118
Portsmouth City Council,PCC,Adult Social Care,Physical Support Adults (18 - 64),ADULT SERVICES,Third Party Payments,Other establishments,19/04/18,6218439,1155.42,VENDOR,CRESCENT COMMUNITY CARE SERVICES LTD,100118
Portsmouth City Council,PCC,Adult Social Care,Physical Support Older People (85+),ADULT SERVICES,Third Party Payments,Other establishments,19/04/18,6218439,565.92,VENDOR,CRESCENT COMMUNITY CARE SERVICES LTD,100118
Portsmouth City Council,PCC,Adult Social Care,Support with Memory and Cognition Older People (75 - 84),ADULT SERVICES,Third Party Payments,Other establishments,19/04/18,6218439,67.5,VENDOR,CRESCENT COMMUNITY CARE SERVICES LTD,100118
Portsmouth City Council,PCC,Adult Social Care,Physical Support Adults (18 - 64),ADULT SERVICES,Third Party Payments,Other establishments,19/04/18,6218439,880.32,VENDOR,CRESCENT COMMUNITY CARE SERVICES LTD,100118
Portsmouth City Council,PCC,Adult Social Care,Physical Support Older People (85+),ADULT SERVICES,Third Party Payments,Other establishments,19/04/18,6218439,247.59,VENDOR,CRESCENT COMMUNITY CARE SERVICES LTD,100118
Portsmouth City Council,PCC,Adult Social Care,Social Support - Support for Carer,ADULT SERVICES,Third Party Payments,Other establishments,19/04/18,6218439,162.24,VENDOR,CRESCENT COMMUNITY CARE SERVICES LTD,100118
Portsmouth City Council,PCC,Adult Social Care,Physical Support Adults (75 - 84),ADULT SERVICES,Third Party Payments,Other establishments,19/04/18,6218439,330.12,VENDOR,CRESCENT COMMUNITY CARE SERVICES LTD,100118
Portsmouth City Council,PCC,Adult Social Care,Physical Support Older People (85+),ADULT SERVICES,Third Party Payments,Other establishments,19/04/18,6218439,982.5,VENDOR,CRESCENT COMMUNITY CARE SERVICES LTD,100118
Portsmouth City Council,PCC,Adult Social Care,Physical Support Adults (75 - 84),ADULT SERVICES,Third Party Payments,Other establishments,19/04/18,6218439,43.23,VENDOR,CRESCENT COMMUNITY CARE SERVICES LTD,100118
Portsmouth City Council,PCC,Adult Social Care,Physical Support Older People (85+),ADULT SERVICES,Third Party Payments,Other establishments,19/04/18,6218439,1980.72,VENDOR,CRESCENT COMMUNITY CARE SERVICES LTD,100118
Portsmouth City Council,PCC,Adult Social Care,Physical Support Older People (85+),ADULT SERVICES,Third Party Payments,Other establishments,19/04/18,6218439,440.16,VENDOR,CRESCENT COMMUNITY CARE SERVICES LTD,100118
Portsmouth City Council,PCC,Adult Social Care,Physical Support Older People (85+),ADULT SERVICES,Third Party Payments,Other establishments,19/04/18,6218439,330.12,VENDOR,CRESCENT COMMUNITY CARE SERVICES LTD,100118
Portsmouth City Council,PCC,Adult Social Care,Physical Support Older People (85+),ADULT SERVICES,Third Party Payments,Other establishments,19/04/18,6218439,754.56,VENDOR,CRESCENT COMMUNITY CARE SERVICES LTD,100118
Portsmouth City Council,PCC,Adult Social Care,Physical Support Older People (85+),ADULT SERVICES,Third Party Payments,Other establishments,19/04/18,6218439,94.32,VENDOR,CRESCENT COMMUNITY CARE SERVICES LTD,100118
Portsmouth City Council,PCC,Adult Social Care,Support with Memory and Cognition Older People (85+),ADULT SERVICES,Third Party Payments,Other establishments,19/04/18,6218439,550.2,VENDOR,CRESCENT COMMUNITY CARE SERVICES LTD,100118
Portsmouth City Council,PCC,Adult Social Care,Physical Support Older People (85+),ADULT SERVICES,Third Party Payments,Other establishments,19/04/18,6218439,113.97,VENDOR,CRESCENT COMMUNITY CARE SERVICES LTD,100118
Portsmouth City Council,PCC,Adult Social Care,Physical Support Older People (85+),ADULT SERVICES,Third Party Payments,Other establishments,19/04/18,6218439,440.16,VENDOR,CRESCENT COMMUNITY CARE SERVICES LTD,100118
Portsmouth City Council,PCC,Adult Social Care,Physical Support Older People (85+),ADULT SERVICES,Third Party Payments,Other establishments,19/04/18,6218439,373.35,VENDOR,CRESCENT COMMUNITY CARE SERVICES LTD,100118
Portsmouth City Council,PCC,Adult Social Care,Physical Support Older People (85+),ADULT SERVICES,Third Party Payments,Other establishments,19/04/18,6218439,337.98,VENDOR,CRESCENT COMMUNITY CARE SERVICES LTD,100118
Portsmouth City Council,PCC,Adult Social Care,Physical Support Older People (85+),ADULT SERVICES,Third Party Payments,Other establishments,19/04/18,6218439,106.11,VENDOR,CRESCENT COMMUNITY CARE SERVICES LTD,100118
Portsmouth City Council,PCC,Adult Social Care,Physical Support Older People (85+),ADULT SERVICES,Third Party Payments,Other establishments,19/04/18,6218439,660.24,VENDOR,CRESCENT COMMUNITY CARE SERVICES LTD,100118
Portsmouth City Council,PCC,Adult Social Care,Learning Disability Support  Adults (18 - 64),ADULT SERVICES,Third Party Payments,Other establishments,19/04/18,6218439,503.04,VENDOR,CRESCENT COMMUNITY CARE SERVICES LTD,100118
Portsmouth City Council,PCC,Adult Social Care,Physical Support Older People (85+),ADULT SERVICES,Third Party Payments,Other establishments,19/04/18,6218439,196.5,VENDOR,CRESCENT COMMUNITY CARE SERVICES LTD,100118
Portsmouth City Council,PCC,Adult Social Care,Physical Support Adults (18 - 64),ADULT SERVICES,Third Party Payments,Other establishments,19/04/18,6218439,408.72,VENDOR,CRESCENT COMMUNITY CARE SERVICES LTD,100118
Portsmouth City Council,PCC,Adult Social Care,Physical Support Older People (85+),ADULT SERVICES,Third Party Payments,Other establishments,19/04/18,6218439,660.24,VENDOR,CRESCENT COMMUNITY CARE SERVICES LTD,100118
Portsmouth City Council,PCC,Adult Social Care,Sensory Support Older People (65 - 74),ADULT SERVICES,Third Party Payments,Other establishments,19/04/18,6218439,188.64,VENDOR,CRESCENT COMMUNITY CARE SERVICES LTD,100118
Portsmouth City Council,PCC,Adult Social Care,Physical Support Older People (85+),ADULT SERVICES,Third Party Payments,Other establishments,19/04/18,6218439,522.69,VENDOR,CRESCENT COMMUNITY CARE SERVICES LTD,100118
Portsmouth City Council,PCC,Adult Social Care,Physical Support Older People (65-74),ADULT SERVICES,Third Party Payments,Other establishments,19/04/18,6218439,1320.48,VENDOR,CRESCENT COMMUNITY CARE SERVICES LTD,100118
Portsmouth City Council,PCC,Adult Social Care,Physical Support Older People (85+),ADULT SERVICES,Third Party Payments,Other establishments,19/04/18,6218439,200.43,VENDOR,CRESCENT COMMUNITY CARE SERVICES LTD,100118
Portsmouth City Council,PCC,Adult Social Care,Physical Support Older People (85+),ADULT SERVICES,Third Party Payments,Other establishments,19/04/18,6218439,200.75,VENDOR,CRESCENT COMMUNITY CARE SERVICES LTD,100118
Portsmouth City Council,PCC,Adult Social Care,Physical Support Older People (85+),ADULT SERVICES,Third Party Payments,Other establishments,19/04/18,6218439,82.53,VENDOR,CRESCENT COMMUNITY CARE SERVICES LTD,100118
Portsmouth City Council,PCC,Adult Social Care,Physical Support Older People (85+),ADULT SERVICES,Third Party Payments,Other establishments,19/04/18,6218439,54.7,VENDOR,CRESCENT COMMUNITY CARE SERVICES LTD,100118
Portsmouth City Council,PCC,Adult Social Care,Physical Support Older People (85+),ADULT SERVICES,Third Party Payments,Other establishments,19/04/18,6218439,165.06,VENDOR,CRESCENT COMMUNITY CARE SERVICES LTD,100118
Portsmouth City Council,PCC,Adult Social Care,Physical Support Older People (85+),ADULT SERVICES,Third Party Payments,Other establishments,19/04/18,6218439,550.2,VENDOR,CRESCENT COMMUNITY CARE SERVICES LTD,100118
Portsmouth City Council,PCC,Adult Social Care,Physical Support Older People (85+),ADULT SERVICES,Third Party Payments,Other establishments,19/04/18,6218439,11.79,VENDOR,CRESCENT COMMUNITY CARE SERVICES LTD,100118
Portsmouth City Council,PCC,Adult Social Care,Physical Support Older People (85+),ADULT SERVICES,Third Party Payments,Other establishments,19/04/18,6218439,1540.56,VENDOR,CRESCENT COMMUNITY CARE SERVICES LTD,100118
Portsmouth City Council,PCC,Adult Social Care,Physical Support Older People (85+),ADULT SERVICES,Third Party Payments,Other establishments,19/04/18,6218439,20.25,VENDOR,CRESCENT COMMUNITY CARE SERVICES LTD,100118
Portsmouth City Council,PCC,Adult Social Care,Physical Support Adults (75 - 84),ADULT SERVICES,Third Party Payments,Other establishments,19/04/18,6218439,345.84,VENDOR,CRESCENT COMMUNITY CARE SERVICES LTD,100118
Portsmouth City Council,PCC,Adult Social Care,Physical Support Adults (75 - 84),ADULT SERVICES,Third Party Payments,Other establishments,19/04/18,6218439,782.07,VENDOR,CRESCENT COMMUNITY CARE SERVICES LTD,100118
Portsmouth City Council,PCC,Adult Social Care,Physical Support Older People (85+),ADULT SERVICES,Third Party Payments,Other establishments,19/04/18,6218439,157.2,VENDOR,CRESCENT COMMUNITY CARE SERVICES LTD,100118
Portsmouth City Council,PCC,Adult Social Care,Sensory Support Adults (18 - 64),ADULT SERVICES,Third Party Payments,Other establishments,19/04/18,6218439,318.33,VENDOR,CRESCENT COMMUNITY CARE SERVICES LTD,100118
Portsmouth City Council,PCC,Adult Social Care,Physical Support Older People (85+),ADULT SERVICES,Third Party Payments,Other establishments,19/04/18,6218439,424.44,VENDOR,CRESCENT COMMUNITY CARE SERVICES LTD,100118
Portsmouth City Council,PCC,Adult Social Care,Social Support - Support for Carer,ADULT SERVICES,Third Party Payments,Other establishments,19/04/18,6218439,33.8,VENDOR,CRESCENT COMMUNITY CARE SERVICES LTD,100118
Portsmouth City Council,PCC,Adult Social Care,Physical Support Older People (85+),ADULT SERVICES,Third Party Payments,Other establishments,19/04/18,6218439,94.32,VENDOR,CRESCENT COMMUNITY CARE SERVICES LTD,100118
Portsmouth City Council,PCC,Adult Social Care,Physical Support Older People (65-74),ADULT SERVICES,Third Party Payments,Other establishments,19/04/18,6218439,228.58,VENDOR,CRESCENT COMMUNITY CARE SERVICES LTD,100118
Portsmouth City Council,PCC,Adult Social Care,Physical Support Older People (85+),ADULT SERVICES,Third Party Payments,Other establishments,19/04/18,6218439,180.78,VENDOR,CRESCENT COMMUNITY CARE SERVICES LTD,100118
Portsmouth City Council,PCC,Adult Social Care,Physical Support Older People (85+),ADULT SERVICES,Third Party Payments,Other establishments,19/04/18,6218439,660.24,VENDOR,CRESCENT COMMUNITY CARE SERVICES LTD,100118
Portsmouth City Council,PCC,Adult Social Care,Social Support - Support for Carer,ADULT SERVICES,Third Party Payments,Other establishments,19/04/18,6218439,324.48,VENDOR,CRESCENT COMMUNITY CARE SERVICES LTD,100118
Portsmouth City Council,PCC,Adult Social Care,Physical Support Older People (85+),ADULT SERVICES,Third Party Payments,Other establishments,19/04/18,6218439,561.99,VENDOR,CRESCENT COMMUNITY CARE SERVICES LTD,100118
Portsmouth City Council,PCC,Adult Social Care,Physical Support Older People (85+),ADULT SERVICES,Third Party Payments,Other establishments,19/04/18,6218439,636.66,VENDOR,CRESCENT COMMUNITY CARE SERVICES LTD,100118
Portsmouth City Council,PCC,Adult Social Care,Physical Support Older People (85+),ADULT SERVICES,Third Party Payments,Other establishments,19/04/18,6218439,220.08,VENDOR,CRESCENT COMMUNITY CARE SERVICES LTD,100118
Portsmouth City Council,PCC,Adult Social Care,Physical Support Older People (85+),ADULT SERVICES,Third Party Payments,Other establishments,19/04/18,6218439,330.12,VENDOR,CRESCENT COMMUNITY CARE SERVICES LTD,100118
Portsmouth City Council,PCC,Adult Social Care,Physical Support Older People (85+),ADULT SERVICES,Third Party Payments,Other establishments,19/04/18,6218439,318.33,VENDOR,CRESCENT COMMUNITY CARE SERVICES LTD,100118
Portsmouth City Council,PCC,Adult Social Care,Physical Support Older People (85+),ADULT SERVICES,Third Party Payments,Other establishments,19/04/18,6218439,770.28,VENDOR,CRESCENT COMMUNITY CARE SERVICES LTD,100118
Portsmouth City Council,PCC,Adult Social Care,Physical Support Older People (85+),ADULT SERVICES,Third Party Payments,Other establishments,19/04/18,6218439,428.37,VENDOR,CRESCENT COMMUNITY CARE SERVICES LTD,100118
Portsmouth City Council,PCC,Adult Social Care,Social Care Activities,ADULT SERVICES,Third Party Payments,Other establishments,23/04/18,6218785,1705.62,VENDOR,CRESCENT COMMUNITY CARE SERVICES LTD,100118
Portsmouth City Council,PCC,Adult Social Care,Social Care Activities,ADULT SERVICES,Third Party Payments,Other establishments,23/04/18,6218785,216.32,VENDOR,CRESCENT COMMUNITY CARE SERVICES LTD,100118
Portsmouth City Council,PCC,Adult Social Care,Social Support - Support for Carer,ADULT SERVICES,Third Party Payments,Other establishments,23/04/18,6218785,108.16,VENDOR,CRESCENT COMMUNITY CARE SERVICES LTD,100118
Portsmouth City Council,PCC,Adult Social Care,Physical Support Older People (85+),ADULT SERVICES,Third Party Payments,Other establishments,19/04/18,6218439,377.28,VENDOR,CRESCENT COMMUNITY CARE SERVICES LTD,100118
Portsmouth City Council,PCC,Adult Social Care,Physical Support Older People (85+),ADULT SERVICES,Third Party Payments,Other establishments,19/04/18,6218439,157.2,VENDOR,CRESCENT COMMUNITY CARE SERVICES LTD,100118
Portsmouth City Council,PCC,Adult Social Care,Physical Support Adults (18 - 64),ADULT SERVICES,Third Party Payments,Other establishments,19/04/18,6218439,652.38,VENDOR,CRESCENT COMMUNITY CARE SERVICES LTD,100118
Portsmouth City Council,PCC,Adult Social Care,Physical Support Older People (85+),ADULT SERVICES,Third Party Payments,Other establishments,19/04/18,6218439,550.2,VENDOR,CRESCENT COMMUNITY CARE SERVICES LTD,100118
Portsmouth City Council,PCC,Adult Social Care,Physical Support Older People (85+),ADULT SERVICES,Third Party Payments,Other establishments,19/04/18,6218439,137.55,VENDOR,CRESCENT COMMUNITY CARE SERVICES LTD,100118
Portsmouth City Council,PCC,Adult Social Care,Physical Support Older People (65-74),ADULT SERVICES,Third Party Payments,Other establishments,19/04/18,6218439,86.46,VENDOR,CRESCENT COMMUNITY CARE SERVICES LTD,100118
Portsmouth City Council,PCC,Adult Social Care,Physical Support Older People (85+),ADULT SERVICES,Third Party Payments,Other establishments,19/04/18,6218439,141.48,VENDOR,CRESCENT COMMUNITY CARE SERVICES LTD,100118
Portsmouth City Council,PCC,Adult Social Care,Physical Support Older People (85+),ADULT SERVICES,Third Party Payments,Other establishments,19/04/18,6218439,715.26,VENDOR,CRESCENT COMMUNITY CARE SERVICES LTD,100118
Portsmouth City Council,PCC,Adult Social Care,Support with Memory and Cognition Older People (75 - 84),ADULT SERVICES,Third Party Payments,Other establishments,19/04/18,6218439,440.16,VENDOR,CRESCENT COMMUNITY CARE SERVICES LTD,100118
